{"text_format":"1","workbook":"xlsx","n_sheets":9,"sheets":["Copyright","Cover","Instruction","Sheet1","All Result","MEW nonplant","MEW nonplant_WS","MEW plant","MEW plant_WS"],"not_rendered":{"charts":0,"images":0,"macros":1,"external_links":0,"defined_names":3,"comments":3,"pivot_tables":0},"unopened":[],"bounds":{"document_bytes":16777216,"sheet_cells":100000,"rows_first":2000,"rows_last":500,"rows_between":2000,"halvings":0,"cell_chars":16384,"cell_head_chars":4096},"cells_cut":0,"cells_raw":0,"read":"whole","date_system":"1900"}

{"sheet":"Copyright","index":0,"n_rows":0,"n_cols":0,"rows_kept":0,"cut":false,"hidden":false,"merged":[]}

{"sheet":"Cover","index":1,"n_rows":20,"n_cols":7,"rows_kept":20,"cut":false,"hidden":false,"merged":[[18,6,18,8],[14,6,14,8],[13,6,13,8],[4,4,4,10],[9,6,9,8],[12,6,12,8],[5,5,6,9]]}
[]
[]
[]
[]
[null,null,null,null,"Ecotoxicity Data Quality Assessment Method V2"]
[null,null,null,null,null,"To be used to assess the quality of data used for the Australian and New Zealand Guidelines for Fresh and Marine Water Quality (including sediment) and the Australian National Environment Protection (Assessment of Site Contamination) Measure"]
[]
[]
[]
[null,null,null,null,null,null,"Developed by "]
[]
[]
[null,null,null,null,null,null,"Zoe Zhang"]
[null,null,null,null,null,null,"   Dr. Michael Warne"]
[null,null,null,null,null,null,"Alison Vieritz "]
[]
[]
[]
[null,null,null,null,null,null,"Water Quality & Investigations "]
[null,null,null,null,null,"                 Department of Science,Information Technology and Innovation"]

{"sheet":"Instruction","index":2,"n_rows":21,"n_cols":10,"rows_kept":21,"cut":false,"hidden":false,"merged":[[27,6,27,16],[14,6,14,7],[5,4,5,7]]}
[]
[]
[null,"Click here to see \"All Result\" -->","All Result"]
[]
[]
[null,null,null,null,"Freshwater "]
[]
[null,"Tabs contain questionaries -->           ","Freshwater/metal/nonplant",null,"Freshwater/non-metal/non-plant ",null,null,"Freshwater/metal/plant",null,"Freshwater/non-metal/plant"]
[]
[]
[]
[null,"Tabs contain score of paper and short answers to questions -->","Freshwater/metal/nonplant Worksheet",null,"Freshwater/non-metal/non-plant Worksheet",null,null,"Freshwater/metal/plant Worksheet",null,"Freshwater/non-metal/plant/ Worksheet"]
[]
[]
[null,null,"Marine ",null,null,null,"Terrestrial",null,null,"Sediment "]
[]
[null,"Tab contain questionaries -->","Marine or estuarine/non-plant",null,"Marine or estuarine/Plant",null,null,"Terrestrial Data QA",null,"Sediment Data QA"]
[]
[]
[]
[null,"Tab Contains all scores of paper --> ","Marine or estuarine/non-Plant Worksheet",null,"Marine or estuarine/Plant_Worksheet",null,null,"Terrestrial Quality",null,"Sediment Quality"]

{"sheet":"Sheet1","index":3,"n_rows":70,"n_cols":29,"rows_kept":70,"cut":false,"hidden":true,"merged":[]}
[]
[{"$f":"#REF!","v":{"$error":"#REF!"}},{"$f":"#REF!","v":{"$error":"#REF!"}},{"$f":"#REF!","v":{"$error":"#REF!"}},{"$f":"#REF!","v":{"$error":"#REF!"}},{"$f":"#REF!","v":{"$error":"#REF!"}},{"$f":"#REF!","v":{"$error":"#REF!"}},{"$f":"#REF!","v":{"$error":"#REF!"}},{"$f":"#REF!","v":{"$error":"#REF!"}},{"$f":"#REF!","v":{"$error":"#REF!"}},{"$f":"#REF!","v":{"$error":"#REF!"}},{"$f":"#REF!","v":{"$error":"#REF!"}},{"$f":"#REF!","v":{"$error":"#REF!"}},{"$f":"#REF!","v":{"$error":"#REF!"}},{"$f":"#REF!","v":{"$error":"#REF!"}},{"$f":"#REF!","v":{"$error":"#REF!"}},{"$f":"#REF!","v":{"$error":"#REF!"}},{"$f":"#REF!","v":{"$error":"#REF!"}},{"$f":"#REF!","v":{"$error":"#REF!"}},{"$f":"#REF!","v":{"$error":"#REF!"}},{"$f":"#REF!","v":{"$error":"#REF!"}},{"$f":"#REF!","v":{"$error":"#REF!"}},{"$f":"#REF!","v":{"$error":"#REF!"}},{"$f":"#REF!","v":{"$error":"#REF!"}},{"$f":"#REF!","v":{"$error":"#REF!"}},{"$f":"#REF!","v":{"$error":"#REF!"}},{"$f":"#REF!","v":{"$error":"#REF!"}}]
[{"$f":"#REF!","v":{"$error":"#REF!"}},{"$f":"#REF!","v":{"$error":"#REF!"}},{"$f":"#REF!","v":{"$error":"#REF!"}},{"$f":"#REF!","v":{"$error":"#REF!"}}]
[{"$f":"#REF!","v":{"$error":"#REF!"}},{"$f":"#REF!","v":{"$error":"#REF!"}},{"$f":"#REF!","v":{"$error":"#REF!"}},{"$f":"#REF!","v":{"$error":"#REF!"}},{"$f":"#REF!","v":{"$error":"#REF!"}},{"$f":"#REF!","v":{"$error":"#REF!"}},{"$f":"#REF!","v":{"$error":"#REF!"}},{"$f":"#REF!","v":{"$error":"#REF!"}},{"$f":"#REF!","v":{"$error":"#REF!"}},{"$f":"#REF!","v":{"$error":"#REF!"}},{"$f":"#REF!","v":{"$error":"#REF!"}},{"$f":"#REF!","v":{"$error":"#REF!"}},{"$f":"#REF!","v":{"$error":"#REF!"}},{"$f":"#REF!","v":{"$error":"#REF!"}},{"$f":"#REF!","v":{"$error":"#REF!"}},{"$f":"#REF!","v":{"$error":"#REF!"}},{"$f":"#REF!","v":{"$error":"#REF!"}},{"$f":"#REF!","v":{"$error":"#REF!"}},{"$f":"#REF!","v":{"$error":"#REF!"}},{"$f":"#REF!","v":{"$error":"#REF!"}},{"$f":"#REF!","v":{"$error":"#REF!"}},{"$f":"#REF!","v":{"$error":"#REF!"}},{"$f":"#REF!","v":{"$error":"#REF!"}},{"$f":"#REF!","v":{"$error":"#REF!"}},{"$f":"#REF!","v":{"$error":"#REF!"}},{"$f":"#REF!","v":{"$error":"#REF!"}}]
["Answers",{"$f":"IF(#REF!=0,\"\",#REF!)","v":{"$error":"#REF!"}},{"$f":"IF(#REF!=0,\"\",#REF!)","v":{"$error":"#REF!"}},{"$f":"IF(#REF!=0,\"\",#REF!)","v":{"$error":"#REF!"}},{"$f":"IF(#REF!=0,\"\",#REF!)","v":{"$error":"#REF!"}},{"$f":"IF(#REF!=0,\"\",#REF!)","v":{"$error":"#REF!"}},{"$f":"IF(#REF!=0,\"\",#REF!)","v":{"$error":"#REF!"}},{"$f":"IF(#REF!=0,\"\",#REF!)","v":{"$error":"#REF!"}},{"$f":"IF(#REF!=0,\"\",#REF!)","v":{"$error":"#REF!"}},{"$f":"IF(#REF!=0,\"\",#REF!)","v":{"$error":"#REF!"}},{"$f":"IF(#REF!=0,\"\",#REF!)","v":{"$error":"#REF!"}},{"$f":"IF(#REF!=0,\"\",#REF!)","v":{"$error":"#REF!"}},{"$f":"IF(#REF!=0,\"\",#REF!)","v":{"$error":"#REF!"}},{"$f":"IF(#REF!=0,\"\",#REF!)","v":{"$error":"#REF!"}},{"$f":"IF(#REF!=0,\"\",#REF!)","v":{"$error":"#REF!"}},{"$f":"IF(#REF!=0,\"\",#REF!)","v":{"$error":"#REF!"}},{"$f":"IF(#REF!=0,\"\",#REF!)","v":{"$error":"#REF!"}},{"$f":"IF(#REF!=0,\"\",#REF!)","v":{"$error":"#REF!"}},{"$f":"IF(#REF!=0,\"\",#REF!)","v":{"$error":"#REF!"}},{"$f":"IF(#REF!=0,\"\",#REF!)","v":{"$error":"#REF!"}},{"$f":"IF(#REF!=0,\"\",#REF!)","v":{"$error":"#REF!"}},{"$f":"IF(#REF!=0,\"\",#REF!)","v":{"$error":"#REF!"}},{"$f":"IF(#REF!=0,\"\",#REF!)","v":{"$error":"#REF!"}},{"$f":"IF(#REF!=0,\"\",#REF!)","v":{"$error":"#REF!"}}]
[{"$f":"#REF!","v":{"$error":"#REF!"}},{"$f":"#REF!","v":{"$error":"#REF!"}},{"$f":"#REF!","v":{"$error":"#REF!"}},{"$f":"#REF!","v":{"$error":"#REF!"}},{"$f":"#REF!","v":{"$error":"#REF!"}},{"$f":"#REF!","v":{"$error":"#REF!"}},{"$f":"#REF!","v":{"$error":"#REF!"}},{"$f":"#REF!","v":{"$error":"#REF!"}}]
[{"$f":"#REF!","v":{"$error":"#REF!"}},{"$f":"#REF!","v":{"$error":"#REF!"}},{"$f":"#REF!","v":{"$error":"#REF!"}},{"$f":"#REF!","v":{"$error":"#REF!"}},{"$f":"#REF!","v":{"$error":"#REF!"}},{"$f":"IF(#REF!=0,\"\",#REF!)","v":{"$error":"#REF!"}},{"$f":"IF(#REF!=0,\"\",#REF!)","v":{"$error":"#REF!"}},{"$f":"IF(#REF!=0,\"\",#REF!)","v":{"$error":"#REF!"}}]
[]
[]
[]
[{"$f":"#REF!","v":{"$error":"#REF!"}},{"$f":"#REF!","v":{"$error":"#REF!"}},{"$f":"#REF!","v":{"$error":"#REF!"}},{"$f":"#REF!","v":{"$error":"#REF!"}},{"$f":"#REF!","v":{"$error":"#REF!"}},{"$f":"#REF!","v":{"$error":"#REF!"}},{"$f":"#REF!","v":{"$error":"#REF!"}},{"$f":"#REF!","v":{"$error":"#REF!"}},{"$f":"#REF!","v":{"$error":"#REF!"}},{"$f":"#REF!","v":{"$error":"#REF!"}},{"$f":"#REF!","v":{"$error":"#REF!"}},{"$f":"#REF!","v":{"$error":"#REF!"}},{"$f":"#REF!","v":{"$error":"#REF!"}},{"$f":"#REF!","v":{"$error":"#REF!"}},{"$f":"#REF!","v":{"$error":"#REF!"}},{"$f":"#REF!","v":{"$error":"#REF!"}},{"$f":"#REF!","v":{"$error":"#REF!"}},{"$f":"#REF!","v":{"$error":"#REF!"}},{"$f":"#REF!","v":{"$error":"#REF!"}},{"$f":"#REF!","v":{"$error":"#REF!"}},{"$f":"#REF!","v":{"$error":"#REF!"}},{"$f":"#REF!","v":{"$error":"#REF!"}},{"$f":"#REF!","v":{"$error":"#REF!"}},{"$f":"#REF!","v":{"$error":"#REF!"}},{"$f":"#REF!","v":{"$error":"#REF!"}},{"$f":"#REF!","v":{"$error":"#REF!"}},{"$f":"#REF!","v":{"$error":"#REF!"}}]
[{"$f":"#REF!","v":{"$error":"#REF!"}},{"$f":"#REF!","v":{"$error":"#REF!"}},{"$f":"#REF!","v":{"$error":"#REF!"}},{"$f":"#REF!","v":{"$error":"#REF!"}}]
[{"$f":"#REF!","v":{"$error":"#REF!"}},{"$f":"#REF!","v":{"$error":"#REF!"}},{"$f":"#REF!","v":{"$error":"#REF!"}},{"$f":"#REF!","v":{"$error":"#REF!"}},{"$f":"#REF!","v":{"$error":"#REF!"}},{"$f":"#REF!","v":{"$error":"#REF!"}},{"$f":"#REF!","v":{"$error":"#REF!"}},{"$f":"#REF!","v":{"$error":"#REF!"}},{"$f":"#REF!","v":{"$error":"#REF!"}},{"$f":"#REF!","v":{"$error":"#REF!"}},{"$f":"#REF!","v":{"$error":"#REF!"}},{"$f":"#REF!","v":{"$error":"#REF!"}},{"$f":"#REF!","v":{"$error":"#REF!"}},{"$f":"#REF!","v":{"$error":"#REF!"}},{"$f":"#REF!","v":{"$error":"#REF!"}},{"$f":"#REF!","v":{"$error":"#REF!"}},{"$f":"#REF!","v":{"$error":"#REF!"}},{"$f":"#REF!","v":{"$error":"#REF!"}},{"$f":"#REF!","v":{"$error":"#REF!"}},{"$f":"#REF!","v":{"$error":"#REF!"}},{"$f":"#REF!","v":{"$error":"#REF!"}},{"$f":"#REF!","v":{"$error":"#REF!"}},{"$f":"#REF!","v":{"$error":"#REF!"}},{"$f":"#REF!","v":{"$error":"#REF!"}},{"$f":"#REF!","v":{"$error":"#REF!"}},{"$f":"#REF!","v":{"$error":"#REF!"}},{"$f":"#REF!","v":{"$error":"#REF!"}}]
[{"$f":"#REF!","v":{"$error":"#REF!"}},{"$f":"IF(#REF!=0,\"\",#REF!)","v":{"$error":"#REF!"}},{"$f":"IF(#REF!=0,\"\",#REF!)","v":{"$error":"#REF!"}},{"$f":"IF(#REF!=0,\"\",#REF!)","v":{"$error":"#REF!"}},{"$f":"IF(#REF!=0,\"\",#REF!)","v":{"$error":"#REF!"}},null,{"$f":"IF(#REF!=0,\"\",#REF!)","v":{"$error":"#REF!"}},{"$f":"IF(#REF!=0,\"\",#REF!)","v":{"$error":"#REF!"}},{"$f":"IF(#REF!=0,\"\",#REF!)","v":{"$error":"#REF!"}},{"$f":"IF(#REF!=0,\"\",#REF!)","v":{"$error":"#REF!"}},{"$f":"IF(#REF!=0,\"\",#REF!)","v":{"$error":"#REF!"}},{"$f":"IF(#REF!=0,\"\",#REF!)","v":{"$error":"#REF!"}},{"$f":"IF(#REF!=0,\"\",#REF!)","v":{"$error":"#REF!"}},{"$f":"IF(#REF!=0,\"\",#REF!)","v":{"$error":"#REF!"}},{"$f":"IF(#REF!=0,\"\",#REF!)","v":{"$error":"#REF!"}},{"$f":"IF(#REF!=0,\"\",#REF!)","v":{"$error":"#REF!"}},{"$f":"IF(#REF!=0,\"\",#REF!)","v":{"$error":"#REF!"}},{"$f":"IF(#REF!=0,\"\",#REF!)","v":{"$error":"#REF!"}},{"$f":"IF(#REF!=0,\"\",#REF!)","v":{"$error":"#REF!"}},{"$f":"IF(#REF!=0,\"\",#REF!)","v":{"$error":"#REF!"}},{"$f":"IF(#REF!=0,\"\",#REF!)","v":{"$error":"#REF!"}},{"$f":"IF(#REF!=0,\"\",#REF!)","v":{"$error":"#REF!"}},{"$f":"IF(#REF!=0,\"\",#REF!)","v":{"$error":"#REF!"}},{"$f":"IF(#REF!=0,\"\",#REF!)","v":{"$error":"#REF!"}},{"$f":"IF(#REF!=0,\"\",#REF!)","v":{"$error":"#REF!"}}]
[{"$f":"#REF!","v":{"$error":"#REF!"}},{"$f":"#REF!","v":{"$error":"#REF!"}},{"$f":"#REF!","v":{"$error":"#REF!"}},{"$f":"#REF!","v":{"$error":"#REF!"}},{"$f":"#REF!","v":{"$error":"#REF!"}},{"$f":"#REF!","v":{"$error":"#REF!"}},{"$f":"#REF!","v":{"$error":"#REF!"}},{"$f":"#REF!","v":{"$error":"#REF!"}}]
[{"$f":"#REF!","v":{"$error":"#REF!"}},{"$f":"#REF!","v":{"$error":"#REF!"}},{"$f":"#REF!","v":{"$error":"#REF!"}},{"$f":"#REF!","v":{"$error":"#REF!"}},{"$f":"#REF!","v":{"$error":"#REF!"}},{"$f":"IF(#REF!=0,\"\",#REF!)","v":{"$error":"#REF!"}},{"$f":"IF(#REF!=0,\"\",#REF!)","v":{"$error":"#REF!"}},{"$f":"IF(#REF!=0,\"\",#REF!)","v":{"$error":"#REF!"}}]
[]
[]
[]
[{"$f":"#REF!","v":{"$error":"#REF!"}},{"$f":"#REF!","v":{"$error":"#REF!"}},{"$f":"#REF!","v":{"$error":"#REF!"}},{"$f":"#REF!","v":{"$error":"#REF!"}},{"$f":"#REF!","v":{"$error":"#REF!"}},{"$f":"#REF!","v":{"$error":"#REF!"}},{"$f":"#REF!","v":{"$error":"#REF!"}},{"$f":"#REF!","v":{"$error":"#REF!"}},{"$f":"#REF!","v":{"$error":"#REF!"}},{"$f":"#REF!","v":{"$error":"#REF!"}},{"$f":"#REF!","v":{"$error":"#REF!"}},{"$f":"#REF!","v":{"$error":"#REF!"}},{"$f":"#REF!","v":{"$error":"#REF!"}},{"$f":"#REF!","v":{"$error":"#REF!"}},{"$f":"#REF!","v":{"$error":"#REF!"}},{"$f":"#REF!","v":{"$error":"#REF!"}},{"$f":"#REF!","v":{"$error":"#REF!"}},{"$f":"#REF!","v":{"$error":"#REF!"}},{"$f":"#REF!","v":{"$error":"#REF!"}},{"$f":"#REF!","v":{"$error":"#REF!"}},{"$f":"#REF!","v":{"$error":"#REF!"}},{"$f":"#REF!","v":{"$error":"#REF!"}},{"$f":"#REF!","v":{"$error":"#REF!"}},{"$f":"#REF!","v":{"$error":"#REF!"}},{"$f":"#REF!","v":{"$error":"#REF!"}},{"$f":"#REF!","v":{"$error":"#REF!"}}]
[{"$f":"#REF!","v":{"$error":"#REF!"}},{"$f":"#REF!","v":{"$error":"#REF!"}},{"$f":"#REF!","v":{"$error":"#REF!"}},{"$f":"#REF!","v":{"$error":"#REF!"}}]
[{"$f":"#REF!","v":{"$error":"#REF!"}},{"$f":"#REF!","v":{"$error":"#REF!"}},{"$f":"#REF!","v":{"$error":"#REF!"}},{"$f":"#REF!","v":{"$error":"#REF!"}},{"$f":"#REF!","v":{"$error":"#REF!"}},{"$f":"#REF!","v":{"$error":"#REF!"}},{"$f":"#REF!","v":{"$error":"#REF!"}},{"$f":"#REF!","v":{"$error":"#REF!"}},{"$f":"#REF!","v":{"$error":"#REF!"}},{"$f":"#REF!","v":{"$error":"#REF!"}},{"$f":"#REF!","v":{"$error":"#REF!"}},{"$f":"#REF!","v":{"$error":"#REF!"}},{"$f":"#REF!","v":{"$error":"#REF!"}},{"$f":"#REF!","v":{"$error":"#REF!"}},{"$f":"#REF!","v":{"$error":"#REF!"}},{"$f":"#REF!","v":{"$error":"#REF!"}},{"$f":"#REF!","v":{"$error":"#REF!"}},{"$f":"#REF!","v":{"$error":"#REF!"}},{"$f":"#REF!","v":{"$error":"#REF!"}},{"$f":"#REF!","v":{"$error":"#REF!"}},{"$f":"#REF!","v":{"$error":"#REF!"}},{"$f":"#REF!","v":{"$error":"#REF!"}},{"$f":"#REF!","v":{"$error":"#REF!"}},{"$f":"#REF!","v":{"$error":"#REF!"}},{"$f":"#REF!","v":{"$error":"#REF!"}},{"$f":"#REF!","v":{"$error":"#REF!"}}]
[{"$f":"#REF!","v":{"$error":"#REF!"}},{"$f":"IF(#REF!=0,\"\",#REF!)","v":{"$error":"#REF!"}},{"$f":"IF(#REF!=0,\"\",#REF!)","v":{"$error":"#REF!"}},{"$f":"IF(#REF!=0,\"\",#REF!)","v":{"$error":"#REF!"}},{"$f":"IF(#REF!=0,\"\",#REF!)","v":{"$error":"#REF!"}},{"$f":"IF(#REF!=0,\"\",#REF!)","v":{"$error":"#REF!"}},{"$f":"IF(#REF!=0,\"\",#REF!)","v":{"$error":"#REF!"}},{"$f":"IF(#REF!=0,\"\",#REF!)","v":{"$error":"#REF!"}},{"$f":"IF(#REF!=0,\"\",#REF!)","v":{"$error":"#REF!"}},{"$f":"IF(#REF!=0,\"\",#REF!)","v":{"$error":"#REF!"}},{"$f":"IF(#REF!=0,\"\",#REF!)","v":{"$error":"#REF!"}},{"$f":"IF(#REF!=0,\"\",#REF!)","v":{"$error":"#REF!"}},{"$f":"IF(#REF!=0,\"\",#REF!)","v":{"$error":"#REF!"}},{"$f":"IF(#REF!=0,\"\",#REF!)","v":{"$error":"#REF!"}},{"$f":"IF(#REF!=0,\"\",#REF!)","v":{"$error":"#REF!"}},{"$f":"IF(#REF!=0,\"\",#REF!)","v":{"$error":"#REF!"}},{"$f":"IF(#REF!=0,\"\",#REF!)","v":{"$error":"#REF!"}},{"$f":"IF(#REF!=0,\"\",#REF!)","v":{"$error":"#REF!"}},{"$f":"IF(#REF!=0,\"\",#REF!)","v":{"$error":"#REF!"}},{"$f":"IF(#REF!=0,\"\",#REF!)","v":{"$error":"#REF!"}},{"$f":"IF(#REF!=0,\"\",#REF!)","v":{"$error":"#REF!"}},{"$f":"IF(#REF!=0,\"\",#REF!)","v":{"$error":"#REF!"}},{"$f":"IF(#REF!=0,\"\",#REF!)","v":{"$error":"#REF!"}},{"$f":"IF(#REF!=0,\"\",#REF!)","v":{"$error":"#REF!"}}]
[{"$f":"#REF!","v":{"$error":"#REF!"}},{"$f":"#REF!","v":{"$error":"#REF!"}},{"$f":"#REF!","v":{"$error":"#REF!"}},{"$f":"#REF!","v":{"$error":"#REF!"}},{"$f":"#REF!","v":{"$error":"#REF!"}},{"$f":"#REF!","v":{"$error":"#REF!"}},{"$f":"#REF!","v":{"$error":"#REF!"}},{"$f":"#REF!","v":{"$error":"#REF!"}}]
[{"$f":"#REF!","v":{"$error":"#REF!"}},{"$f":"#REF!","v":{"$error":"#REF!"}},{"$f":"#REF!","v":{"$error":"#REF!"}},{"$f":"#REF!","v":{"$error":"#REF!"}},{"$f":"#REF!","v":{"$error":"#REF!"}},{"$f":"IF(#REF!=0,\"\",#REF!)","v":{"$error":"#REF!"}},{"$f":"IF(#REF!=0,\"\",#REF!)","v":{"$error":"#REF!"}},{"$f":"IF(#REF!=0,\"\",#REF!)","v":{"$error":"#REF!"}}]
[]
[]
[]
[{"$f":"#REF!","v":{"$error":"#REF!"}},{"$f":"#REF!","v":{"$error":"#REF!"}},{"$f":"#REF!","v":{"$error":"#REF!"}},{"$f":"#REF!","v":{"$error":"#REF!"}},{"$f":"#REF!","v":{"$error":"#REF!"}},{"$f":"#REF!","v":{"$error":"#REF!"}},{"$f":"#REF!","v":{"$error":"#REF!"}},{"$f":"#REF!","v":{"$error":"#REF!"}},{"$f":"#REF!","v":{"$error":"#REF!"}},{"$f":"#REF!","v":{"$error":"#REF!"}},{"$f":"#REF!","v":{"$error":"#REF!"}},{"$f":"#REF!","v":{"$error":"#REF!"}},{"$f":"#REF!","v":{"$error":"#REF!"}},{"$f":"#REF!","v":{"$error":"#REF!"}},{"$f":"#REF!","v":{"$error":"#REF!"}},{"$f":"#REF!","v":{"$error":"#REF!"}},{"$f":"#REF!","v":{"$error":"#REF!"}},{"$f":"#REF!","v":{"$error":"#REF!"}},{"$f":"#REF!","v":{"$error":"#REF!"}},{"$f":"#REF!","v":{"$error":"#REF!"}},{"$f":"#REF!","v":{"$error":"#REF!"}},{"$f":"#REF!","v":{"$error":"#REF!"}},{"$f":"#REF!","v":{"$error":"#REF!"}},{"$f":"#REF!","v":{"$error":"#REF!"}},{"$f":"#REF!","v":{"$error":"#REF!"}},{"$f":"#REF!","v":{"$error":"#REF!"}},{"$f":"#REF!","v":{"$error":"#REF!"}},{"$f":"#REF!","v":{"$error":"#REF!"}},{"$f":"#REF!","v":{"$error":"#REF!"}}]
[{"$f":"#REF!","v":{"$error":"#REF!"}},{"$f":"#REF!","v":{"$error":"#REF!"}},{"$f":"#REF!","v":{"$error":"#REF!"}},{"$f":"#REF!","v":{"$error":"#REF!"}}]
[{"$f":"#REF!","v":{"$error":"#REF!"}},{"$f":"#REF!","v":{"$error":"#REF!"}},{"$f":"#REF!","v":{"$error":"#REF!"}},{"$f":"#REF!","v":{"$error":"#REF!"}},{"$f":"#REF!","v":{"$error":"#REF!"}},{"$f":"#REF!","v":{"$error":"#REF!"}},{"$f":"#REF!","v":{"$error":"#REF!"}},{"$f":"#REF!","v":{"$error":"#REF!"}},{"$f":"#REF!","v":{"$error":"#REF!"}},{"$f":"#REF!","v":{"$error":"#REF!"}},{"$f":"#REF!","v":{"$error":"#REF!"}},{"$f":"#REF!","v":{"$error":"#REF!"}},{"$f":"#REF!","v":{"$error":"#REF!"}},{"$f":"#REF!","v":{"$error":"#REF!"}},{"$f":"#REF!","v":{"$error":"#REF!"}},{"$f":"#REF!","v":{"$error":"#REF!"}},{"$f":"#REF!","v":{"$error":"#REF!"}},{"$f":"#REF!","v":{"$error":"#REF!"}},{"$f":"#REF!","v":{"$error":"#REF!"}},{"$f":"#REF!","v":{"$error":"#REF!"}},{"$f":"#REF!","v":{"$error":"#REF!"}},{"$f":"#REF!","v":{"$error":"#REF!"}},{"$f":"#REF!","v":{"$error":"#REF!"}},{"$f":"#REF!","v":{"$error":"#REF!"}},{"$f":"#REF!","v":{"$error":"#REF!"}},{"$f":"#REF!","v":{"$error":"#REF!"}},{"$f":"#REF!","v":{"$error":"#REF!"}},{"$f":"#REF!","v":{"$error":"#REF!"}},{"$f":"#REF!","v":{"$error":"#REF!"}}]
[{"$f":"#REF!","v":{"$error":"#REF!"}},{"$f":"IF(#REF!=\"\",\"\",#REF!)","v":{"$error":"#REF!"}},{"$f":"IF(#REF!=\"\",\"\",#REF!)","v":{"$error":"#REF!"}},{"$f":"IF(#REF!=\"\",\"\",#REF!)","v":{"$error":"#REF!"}},{"$f":"IF(#REF!=\"\",\"\",#REF!)","v":{"$error":"#REF!"}},{"$f":"IF(#REF!=\"\",\"\",#REF!)","v":{"$error":"#REF!"}},{"$f":"IF(#REF!=\"\",\"\",#REF!)","v":{"$error":"#REF!"}},{"$f":"IF(#REF!=\"\",\"\",#REF!)","v":{"$error":"#REF!"}},{"$f":"IF(#REF!=\"\",\"\",#REF!)","v":{"$error":"#REF!"}},{"$f":"IF(#REF!=\"\",\"\",#REF!)","v":{"$error":"#REF!"}},{"$f":"IF(#REF!=\"\",\"\",#REF!)","v":{"$error":"#REF!"}},{"$f":"IF(#REF!=\"\",\"\",#REF!)","v":{"$error":"#REF!"}},{"$f":"IF(#REF!=\"\",\"\",#REF!)","v":{"$error":"#REF!"}},{"$f":"IF(#REF!=\"\",\"\",#REF!)","v":{"$error":"#REF!"}},{"$f":"IF(#REF!=\"\",\"\",#REF!)","v":{"$error":"#REF!"}},{"$f":"IF(#REF!=\"\",\"\",#REF!)","v":{"$error":"#REF!"}},{"$f":"IF(#REF!=\"\",\"\",#REF!)","v":{"$error":"#REF!"}},{"$f":"IF(#REF!=\"\",\"\",#REF!)","v":{"$error":"#REF!"}},{"$f":"IF(#REF!=\"\",\"\",#REF!)","v":{"$error":"#REF!"}},{"$f":"IF(#REF!=\"\",\"\",#REF!)","v":{"$error":"#REF!"}},{"$f":"IF(#REF!=\"\",\"\",#REF!)","v":{"$error":"#REF!"}},{"$f":"IF(#REF!=\"\",\"\",#REF!)","v":{"$error":"#REF!"}},{"$f":"IF(#REF!=\"\",\"\",#REF!)","v":{"$error":"#REF!"}},{"$f":"IF(#REF!=\"\",\"\",#REF!)","v":{"$error":"#REF!"}},{"$f":"IF(#REF!=\"\",\"\",#REF!)","v":{"$error":"#REF!"}},{"$f":"IF(#REF!=\"\",\"\",#REF!)","v":{"$error":"#REF!"}},{"$f":"IF(#REF!=\"\",\"\",#REF!)","v":{"$error":"#REF!"}}]
[{"$f":"#REF!","v":{"$error":"#REF!"}},{"$f":"#REF!","v":{"$error":"#REF!"}},{"$f":"#REF!","v":{"$error":"#REF!"}},{"$f":"#REF!","v":{"$error":"#REF!"}},{"$f":"#REF!","v":{"$error":"#REF!"}},{"$f":"#REF!","v":{"$error":"#REF!"}},{"$f":"#REF!","v":{"$error":"#REF!"}},{"$f":"#REF!","v":{"$error":"#REF!"}}]
[{"$f":"#REF!","v":{"$error":"#REF!"}},{"$f":"#REF!","v":{"$error":"#REF!"}},{"$f":"#REF!","v":{"$error":"#REF!"}},{"$f":"#REF!","v":{"$error":"#REF!"}},{"$f":"#REF!","v":{"$error":"#REF!"}},{"$f":"IF(#REF!=\"\",\"\",#REF!)","v":{"$error":"#REF!"}},{"$f":"IF(#REF!=\"\",\"\",#REF!)","v":{"$error":"#REF!"}},{"$f":"IF(#REF!=\"\",\"\",#REF!)","v":{"$error":"#REF!"}}]
[{"$f":"#REF!","v":{"$error":"#REF!"}},{"$f":"#REF!","v":{"$error":"#REF!"}},{"$f":"#REF!","v":{"$error":"#REF!"}},{"$f":"#REF!","v":{"$error":"#REF!"}},{"$f":"#REF!","v":{"$error":"#REF!"}},{"$f":"#REF!","v":{"$error":"#REF!"}},{"$f":"#REF!","v":{"$error":"#REF!"}},{"$f":"#REF!","v":{"$error":"#REF!"}},{"$f":"#REF!","v":{"$error":"#REF!"}},{"$f":"#REF!","v":{"$error":"#REF!"}},{"$f":"#REF!","v":{"$error":"#REF!"}},{"$f":"#REF!","v":{"$error":"#REF!"}},{"$f":"#REF!","v":{"$error":"#REF!"}},{"$f":"#REF!","v":{"$error":"#REF!"}},{"$f":"#REF!","v":{"$error":"#REF!"}},{"$f":"#REF!","v":{"$error":"#REF!"}},{"$f":"#REF!","v":{"$error":"#REF!"}},{"$f":"#REF!","v":{"$error":"#REF!"}},{"$f":"#REF!","v":{"$error":"#REF!"}},{"$f":"#REF!","v":{"$error":"#REF!"}},{"$f":"#REF!","v":{"$error":"#REF!"}}]
[{"$f":"#REF!","v":{"$error":"#REF!"}},{"$f":"#REF!","v":{"$error":"#REF!"}},{"$f":"#REF!","v":{"$error":"#REF!"}},{"$f":"#REF!","v":{"$error":"#REF!"}}]
[{"$f":"#REF!","v":{"$error":"#REF!"}},{"$f":"#REF!","v":{"$error":"#REF!"}},{"$f":"#REF!","v":{"$error":"#REF!"}},{"$f":"#REF!","v":{"$error":"#REF!"}},{"$f":"#REF!","v":{"$error":"#REF!"}},{"$f":"#REF!","v":{"$error":"#REF!"}},{"$f":"#REF!","v":{"$error":"#REF!"}},{"$f":"#REF!","v":{"$error":"#REF!"}},{"$f":"#REF!","v":{"$error":"#REF!"}},{"$f":"#REF!","v":{"$error":"#REF!"}},{"$f":"#REF!","v":{"$error":"#REF!"}},{"$f":"#REF!","v":{"$error":"#REF!"}},{"$f":"#REF!","v":{"$error":"#REF!"}},{"$f":"#REF!","v":{"$error":"#REF!"}},{"$f":"#REF!","v":{"$error":"#REF!"}},{"$f":"#REF!","v":{"$error":"#REF!"}},{"$f":"#REF!","v":{"$error":"#REF!"}},{"$f":"#REF!","v":{"$error":"#REF!"}},{"$f":"#REF!","v":{"$error":"#REF!"}},{"$f":"#REF!","v":{"$error":"#REF!"}},{"$f":"#REF!","v":{"$error":"#REF!"}},{"$f":"#REF!","v":{"$error":"#REF!"}}]
[{"$f":"#REF!","v":{"$error":"#REF!"}},{"$f":"IF(#REF!=\"\",\"\",#REF!)","v":{"$error":"#REF!"}},{"$f":"IF(#REF!=\"\",\"\",#REF!)","v":{"$error":"#REF!"}},{"$f":"IF(#REF!=\"\",\"\",#REF!)","v":{"$error":"#REF!"}},{"$f":"IF(#REF!=\"\",\"\",#REF!)","v":{"$error":"#REF!"}},{"$f":"IF(#REF!=\"\",\"\",#REF!)","v":{"$error":"#REF!"}},{"$f":"IF(#REF!=\"\",\"\",#REF!)","v":{"$error":"#REF!"}},{"$f":"IF(#REF!=\"\",\"\",#REF!)","v":{"$error":"#REF!"}},{"$f":"IF(#REF!=\"\",\"\",#REF!)","v":{"$error":"#REF!"}},{"$f":"IF(#REF!=\"\",\"\",#REF!)","v":{"$error":"#REF!"}},{"$f":"IF(#REF!=\"\",\"\",#REF!)","v":{"$error":"#REF!"}},{"$f":"IF(#REF!=\"\",\"\",#REF!)","v":{"$error":"#REF!"}},{"$f":"IF(#REF!=\"\",\"\",#REF!)","v":{"$error":"#REF!"}},{"$f":"IF(#REF!=\"\",\"\",#REF!)","v":{"$error":"#REF!"}},{"$f":"IF(#REF!=\"\",\"\",#REF!)","v":{"$error":"#REF!"}},{"$f":"IF(#REF!=\"\",\"\",#REF!)","v":{"$error":"#REF!"}},{"$f":"IF(#REF!=\"\",\"\",#REF!)","v":{"$error":"#REF!"}},{"$f":"IF(#REF!=\"\",\"\",#REF!)","v":{"$error":"#REF!"}},{"$f":"IF(#REF!=\"\",\"\",#REF!)","v":{"$error":"#REF!"}}]
[{"$f":"#REF!","v":{"$error":"#REF!"}},{"$f":"#REF!","v":{"$error":"#REF!"}},{"$f":"#REF!","v":{"$error":"#REF!"}},{"$f":"#REF!","v":{"$error":"#REF!"}},{"$f":"#REF!","v":{"$error":"#REF!"}},{"$f":"#REF!","v":{"$error":"#REF!"}},{"$f":"#REF!","v":{"$error":"#REF!"}},{"$f":"#REF!","v":{"$error":"#REF!"}},{"$f":"#REF!","v":{"$error":"#REF!"}},{"$f":"#REF!","v":{"$error":"#REF!"}},{"$f":"#REF!","v":{"$error":"#REF!"}},{"$f":"#REF!","v":{"$error":"#REF!"}},{"$f":"#REF!","v":{"$error":"#REF!"}},{"$f":"#REF!","v":{"$error":"#REF!"}},{"$f":"#REF!","v":{"$error":"#REF!"}},{"$f":"#REF!","v":{"$error":"#REF!"}}]
[{"$f":"#REF!","v":{"$error":"#REF!"}},{"$f":"#REF!","v":{"$error":"#REF!"}},{"$f":"#REF!","v":{"$error":"#REF!"}},{"$f":"#REF!","v":{"$error":"#REF!"}},{"$f":"#REF!","v":{"$error":"#REF!"}},{"$f":"IF(#REF!=\"\",\"\",#REF!)","v":{"$error":"#REF!"}},{"$f":"#REF!","v":{"$error":"#REF!"}},{"$f":"#REF!","v":{"$error":"#REF!"}},{"$f":"#REF!","v":{"$error":"#REF!"}},{"$f":"#REF!","v":{"$error":"#REF!"}},{"$f":"#REF!","v":{"$error":"#REF!"}},{"$f":"#REF!","v":{"$error":"#REF!"}},{"$f":"#REF!","v":{"$error":"#REF!"}},{"$f":"#REF!","v":{"$error":"#REF!"}},{"$f":"IF(#REF!=\"\",\"\",#REF!)","v":{"$error":"#REF!"}},{"$f":"IF(#REF!=\"\",\"\",#REF!)","v":{"$error":"#REF!"}}]
[{"$f":"#REF!","v":{"$error":"#REF!"}},{"$f":"#REF!","v":{"$error":"#REF!"}},{"$f":"#REF!","v":{"$error":"#REF!"}},{"$f":"#REF!","v":{"$error":"#REF!"}},{"$f":"#REF!","v":{"$error":"#REF!"}},{"$f":"#REF!","v":{"$error":"#REF!"}},{"$f":"#REF!","v":{"$error":"#REF!"}},{"$f":"#REF!","v":{"$error":"#REF!"}},{"$f":"#REF!","v":{"$error":"#REF!"}},{"$f":"#REF!","v":{"$error":"#REF!"}},{"$f":"#REF!","v":{"$error":"#REF!"}},{"$f":"#REF!","v":{"$error":"#REF!"}},{"$f":"#REF!","v":{"$error":"#REF!"}},{"$f":"#REF!","v":{"$error":"#REF!"}},{"$f":"#REF!","v":{"$error":"#REF!"}},{"$f":"#REF!","v":{"$error":"#REF!"}},{"$f":"#REF!","v":{"$error":"#REF!"}},{"$f":"#REF!","v":{"$error":"#REF!"}},{"$f":"#REF!","v":{"$error":"#REF!"}},{"$f":"#REF!","v":{"$error":"#REF!"}},{"$f":"#REF!","v":{"$error":"#REF!"}},{"$f":"#REF!","v":{"$error":"#REF!"}},{"$f":"#REF!","v":{"$error":"#REF!"}},{"$f":"#REF!","v":{"$error":"#REF!"}}]
[{"$f":"#REF!","v":{"$error":"#REF!"}},{"$f":"#REF!","v":{"$error":"#REF!"}},{"$f":"#REF!","v":{"$error":"#REF!"}},{"$f":"#REF!","v":{"$error":"#REF!"}}]
[{"$f":"#REF!","v":{"$error":"#REF!"}},{"$f":"#REF!","v":{"$error":"#REF!"}},{"$f":"#REF!","v":{"$error":"#REF!"}},{"$f":"#REF!","v":{"$error":"#REF!"}},{"$f":"#REF!","v":{"$error":"#REF!"}},{"$f":"#REF!","v":{"$error":"#REF!"}},{"$f":"#REF!","v":{"$error":"#REF!"}},{"$f":"#REF!","v":{"$error":"#REF!"}},{"$f":"#REF!","v":{"$error":"#REF!"}},{"$f":"#REF!","v":{"$error":"#REF!"}},{"$f":"#REF!","v":{"$error":"#REF!"}},{"$f":"#REF!","v":{"$error":"#REF!"}},{"$f":"#REF!","v":{"$error":"#REF!"}},{"$f":"#REF!","v":{"$error":"#REF!"}},{"$f":"#REF!","v":{"$error":"#REF!"}},{"$f":"#REF!","v":{"$error":"#REF!"}},{"$f":"#REF!","v":{"$error":"#REF!"}},{"$f":"#REF!","v":{"$error":"#REF!"}},{"$f":"#REF!","v":{"$error":"#REF!"}},{"$f":"#REF!","v":{"$error":"#REF!"}},{"$f":"#REF!","v":{"$error":"#REF!"}},{"$f":"#REF!","v":{"$error":"#REF!"}},{"$f":"#REF!","v":{"$error":"#REF!"}},{"$f":"#REF!","v":{"$error":"#REF!"}},{"$f":"#REF!","v":{"$error":"#REF!"}}]
[{"$f":"#REF!","v":{"$error":"#REF!"}},{"$f":"IF(#REF!=\"\",\"\",#REF!)","v":{"$error":"#REF!"}},{"$f":"IF(#REF!=\"\",\"\",#REF!)","v":{"$error":"#REF!"}},{"$f":"IF(#REF!=\"\",\"\",#REF!)","v":{"$error":"#REF!"}},{"$f":"IF(#REF!=\"\",\"\",#REF!)","v":{"$error":"#REF!"}},{"$f":"IF(#REF!=\"\",\"\",#REF!)","v":{"$error":"#REF!"}},{"$f":"IF(#REF!=\"\",\"\",#REF!)","v":{"$error":"#REF!"}},{"$f":"IF(#REF!=\"\",\"\",#REF!)","v":{"$error":"#REF!"}},{"$f":"IF(#REF!=\"\",\"\",#REF!)","v":{"$error":"#REF!"}},{"$f":"IF(#REF!=\"\",\"\",#REF!)","v":{"$error":"#REF!"}},{"$f":"IF(#REF!=\"\",\"\",#REF!)","v":{"$error":"#REF!"}},{"$f":"IF(#REF!=\"\",\"\",#REF!)","v":{"$error":"#REF!"}},{"$f":"IF(#REF!=\"\",\"\",#REF!)","v":{"$error":"#REF!"}},{"$f":"IF(#REF!=\"\",\"\",#REF!)","v":{"$error":"#REF!"}},{"$f":"IF(#REF!=\"\",\"\",#REF!)","v":{"$error":"#REF!"}},{"$f":"IF(#REF!=\"\",\"\",#REF!)","v":{"$error":"#REF!"}},{"$f":"IF(#REF!=\"\",\"\",#REF!)","v":{"$error":"#REF!"}},{"$f":"IF(#REF!=\"\",\"\",#REF!)","v":{"$error":"#REF!"}},{"$f":"IF(#REF!=\"\",\"\",#REF!)","v":{"$error":"#REF!"}},{"$f":"IF(#REF!=\"\",\"\",#REF!)","v":{"$error":"#REF!"}},{"$f":"IF(#REF!=\"\",\"\",#REF!)","v":{"$error":"#REF!"}},{"$f":"IF(#REF!=\"\",\"\",#REF!)","v":{"$error":"#REF!"}}]
[{"$f":"#REF!","v":{"$error":"#REF!"}},{"$f":"#REF!","v":{"$error":"#REF!"}},{"$f":"#REF!","v":{"$error":"#REF!"}},{"$f":"#REF!","v":{"$error":"#REF!"}},{"$f":"#REF!","v":{"$error":"#REF!"}},{"$f":"#REF!","v":{"$error":"#REF!"}},{"$f":"#REF!","v":{"$error":"#REF!"}},{"$f":"#REF!","v":{"$error":"#REF!"}},{"$f":"#REF!","v":{"$error":"#REF!"}},{"$f":"#REF!","v":{"$error":"#REF!"}},{"$f":"#REF!","v":{"$error":"#REF!"}},{"$f":"#REF!","v":{"$error":"#REF!"}},{"$f":"#REF!","v":{"$error":"#REF!"}},{"$f":"#REF!","v":{"$error":"#REF!"}},{"$f":"#REF!","v":{"$error":"#REF!"}},{"$f":"#REF!","v":{"$error":"#REF!"}}]
[{"$f":"#REF!","v":{"$error":"#REF!"}},{"$f":"#REF!","v":{"$error":"#REF!"}},{"$f":"#REF!","v":{"$error":"#REF!"}},{"$f":"#REF!","v":{"$error":"#REF!"}},{"$f":"#REF!","v":{"$error":"#REF!"}},{"$f":"IF(#REF!=\"\",\"\",#REF!)","v":{"$error":"#REF!"}},{"$f":"#REF!","v":{"$error":"#REF!"}},{"$f":"#REF!","v":{"$error":"#REF!"}},{"$f":"#REF!","v":{"$error":"#REF!"}},{"$f":"#REF!","v":{"$error":"#REF!"}},{"$f":"#REF!","v":{"$error":"#REF!"}},{"$f":"#REF!","v":{"$error":"#REF!"}},{"$f":"#REF!","v":{"$error":"#REF!"}},{"$f":"#REF!","v":{"$error":"#REF!"}},{"$f":"IF(#REF!=\"\",\"\",#REF!)","v":{"$error":"#REF!"}},{"$f":"IF(#REF!=\"\",\"\",#REF!)","v":{"$error":"#REF!"}}]
[{"$f":"#REF!","v":{"$error":"#REF!"}},{"$f":"#REF!","v":{"$error":"#REF!"}},{"$f":"#REF!","v":{"$error":"#REF!"}},{"$f":"#REF!","v":{"$error":"#REF!"}},{"$f":"#REF!","v":{"$error":"#REF!"}},{"$f":"#REF!","v":{"$error":"#REF!"}},{"$f":"#REF!","v":{"$error":"#REF!"}},{"$f":"#REF!","v":{"$error":"#REF!"}},{"$f":"#REF!","v":{"$error":"#REF!"}},{"$f":"#REF!","v":{"$error":"#REF!"}},{"$f":"#REF!","v":{"$error":"#REF!"}},{"$f":"#REF!","v":{"$error":"#REF!"}},{"$f":"#REF!","v":{"$error":"#REF!"}},{"$f":"#REF!","v":{"$error":"#REF!"}},{"$f":"#REF!","v":{"$error":"#REF!"}},{"$f":"#REF!","v":{"$error":"#REF!"}},{"$f":"#REF!","v":{"$error":"#REF!"}},{"$f":"#REF!","v":{"$error":"#REF!"}},{"$f":"#REF!","v":{"$error":"#REF!"}},{"$f":"#REF!","v":{"$error":"#REF!"}},{"$f":"#REF!","v":{"$error":"#REF!"}},{"$f":"#REF!","v":{"$error":"#REF!"}}]
[{"$f":"#REF!","v":{"$error":"#REF!"}},{"$f":"#REF!","v":{"$error":"#REF!"}},{"$f":"#REF!","v":{"$error":"#REF!"}},{"$f":"#REF!","v":{"$error":"#REF!"}}]
[{"$f":"#REF!","v":{"$error":"#REF!"}},{"$f":"#REF!","v":{"$error":"#REF!"}},{"$f":"#REF!","v":{"$error":"#REF!"}},{"$f":"#REF!","v":{"$error":"#REF!"}},{"$f":"#REF!","v":{"$error":"#REF!"}},{"$f":"#REF!","v":{"$error":"#REF!"}},{"$f":"#REF!","v":{"$error":"#REF!"}},{"$f":"#REF!","v":{"$error":"#REF!"}},{"$f":"#REF!","v":{"$error":"#REF!"}},{"$f":"#REF!","v":{"$error":"#REF!"}},{"$f":"#REF!","v":{"$error":"#REF!"}},{"$f":"#REF!","v":{"$error":"#REF!"}},{"$f":"#REF!","v":{"$error":"#REF!"}},{"$f":"#REF!","v":{"$error":"#REF!"}},{"$f":"#REF!","v":{"$error":"#REF!"}},{"$f":"#REF!","v":{"$error":"#REF!"}},{"$f":"#REF!","v":{"$error":"#REF!"}},{"$f":"#REF!","v":{"$error":"#REF!"}},{"$f":"#REF!","v":{"$error":"#REF!"}},{"$f":"#REF!","v":{"$error":"#REF!"}},{"$f":"#REF!","v":{"$error":"#REF!"}},{"$f":"#REF!","v":{"$error":"#REF!"}},null,{"$f":"#REF!","v":{"$error":"#REF!"}}]
[{"$f":"#REF!","v":{"$error":"#REF!"}},{"$f":"IF(#REF!=\"\",\"\",#REF!)","v":{"$error":"#REF!"}},{"$f":"IF(#REF!=\"\",\"\",#REF!)","v":{"$error":"#REF!"}},{"$f":"IF(#REF!=\"\",\"\",#REF!)","v":{"$error":"#REF!"}},{"$f":"IF(#REF!=\"\",\"\",#REF!)","v":{"$error":"#REF!"}},{"$f":"IF(#REF!=\"\",\"\",#REF!)","v":{"$error":"#REF!"}},{"$f":"IF(#REF!=\"\",\"\",#REF!)","v":{"$error":"#REF!"}},{"$f":"IF(#REF!=\"\",\"\",#REF!)","v":{"$error":"#REF!"}},{"$f":"IF(#REF!=\"\",\"\",#REF!)","v":{"$error":"#REF!"}},{"$f":"IF(#REF!=\"\",\"\",#REF!)","v":{"$error":"#REF!"}},{"$f":"IF(#REF!=\"\",\"\",#REF!)","v":{"$error":"#REF!"}},{"$f":"IF(#REF!=\"\",\"\",#REF!)","v":{"$error":"#REF!"}},{"$f":"IF(#REF!=\"\",\"\",#REF!)","v":{"$error":"#REF!"}},{"$f":"IF(#REF!=\"\",\"\",#REF!)","v":{"$error":"#REF!"}},{"$f":"IF(#REF!=\"\",\"\",#REF!)","v":{"$error":"#REF!"}},{"$f":"IF(#REF!=\"\",\"\",#REF!)","v":{"$error":"#REF!"}},{"$f":"IF(#REF!=\"\",\"\",#REF!)","v":{"$error":"#REF!"}},{"$f":"IF(#REF!=\"\",\"\",#REF!)","v":{"$error":"#REF!"}},{"$f":"IF(#REF!=\"\",\"\",#REF!)","v":{"$error":"#REF!"}},{"$f":"IF(#REF!=\"\",\"\",#REF!)","v":{"$error":"#REF!"}}]
[{"$f":"#REF!","v":{"$error":"#REF!"}},{"$f":"#REF!","v":{"$error":"#REF!"}},{"$f":"#REF!","v":{"$error":"#REF!"}},{"$f":"#REF!","v":{"$error":"#REF!"}},{"$f":"#REF!","v":{"$error":"#REF!"}},{"$f":"#REF!","v":{"$error":"#REF!"}},{"$f":"#REF!","v":{"$error":"#REF!"}},{"$f":"#REF!","v":{"$error":"#REF!"}},{"$f":"#REF!","v":{"$error":"#REF!"}},{"$f":"#REF!","v":{"$error":"#REF!"}},{"$f":"#REF!","v":{"$error":"#REF!"}},{"$f":"#REF!","v":{"$error":"#REF!"}},{"$f":"#REF!","v":{"$error":"#REF!"}},{"$f":"#REF!","v":{"$error":"#REF!"}},{"$f":"#REF!","v":{"$error":"#REF!"}},{"$f":"#REF!","v":{"$error":"#REF!"}}]
[{"$f":"#REF!","v":{"$error":"#REF!"}},{"$f":"#REF!","v":{"$error":"#REF!"}},{"$f":"#REF!","v":{"$error":"#REF!"}},{"$f":"#REF!","v":{"$error":"#REF!"}},{"$f":"#REF!","v":{"$error":"#REF!"}},{"$f":"IF(#REF!=\"\",\"\",#REF!)","v":{"$error":"#REF!"}},{"$f":"#REF!","v":{"$error":"#REF!"}},{"$f":"#REF!","v":{"$error":"#REF!"}},{"$f":"#REF!","v":{"$error":"#REF!"}},{"$f":"#REF!","v":{"$error":"#REF!"}},{"$f":"#REF!","v":{"$error":"#REF!"}},{"$f":"#REF!","v":{"$error":"#REF!"}},{"$f":"#REF!","v":{"$error":"#REF!"}},{"$f":"#REF!","v":{"$error":"#REF!"}},{"$f":"IF(#REF!=\"\",\"\",#REF!)","v":{"$error":"#REF!"}},{"$f":"IF(#REF!=\"\",\"\",#REF!)","v":{"$error":"#REF!"}}]
[{"$f":"#REF!","v":{"$error":"#REF!"}},{"$f":"#REF!","v":{"$error":"#REF!"}},{"$f":"#REF!","v":{"$error":"#REF!"}},{"$f":"#REF!","v":{"$error":"#REF!"}},{"$f":"#REF!","v":{"$error":"#REF!"}},{"$f":"#REF!","v":{"$error":"#REF!"}},{"$f":"#REF!","v":{"$error":"#REF!"}},{"$f":"#REF!","v":{"$error":"#REF!"}},{"$f":"#REF!","v":{"$error":"#REF!"}},{"$f":"#REF!","v":{"$error":"#REF!"}},{"$f":"#REF!","v":{"$error":"#REF!"}},{"$f":"#REF!","v":{"$error":"#REF!"}},{"$f":"#REF!","v":{"$error":"#REF!"}},{"$f":"#REF!","v":{"$error":"#REF!"}},{"$f":"#REF!","v":{"$error":"#REF!"}},{"$f":"#REF!","v":{"$error":"#REF!"}},{"$f":"#REF!","v":{"$error":"#REF!"}},{"$f":"#REF!","v":{"$error":"#REF!"}},{"$f":"#REF!","v":{"$error":"#REF!"}},{"$f":"#REF!","v":{"$error":"#REF!"}},{"$f":"#REF!","v":{"$error":"#REF!"}},{"$f":"#REF!","v":{"$error":"#REF!"}},{"$f":"#REF!","v":{"$error":"#REF!"}},{"$f":"#REF!","v":{"$error":"#REF!"}},{"$f":"#REF!","v":{"$error":"#REF!"}}]
[{"$f":"#REF!","v":{"$error":"#REF!"}},{"$f":"#REF!","v":{"$error":"#REF!"}},{"$f":"#REF!","v":{"$error":"#REF!"}},{"$f":"#REF!","v":{"$error":"#REF!"}}]
[{"$f":"#REF!","v":{"$error":"#REF!"}},{"$f":"#REF!","v":{"$error":"#REF!"}},{"$f":"#REF!","v":{"$error":"#REF!"}},{"$f":"#REF!","v":{"$error":"#REF!"}},{"$f":"#REF!","v":{"$error":"#REF!"}},{"$f":"#REF!","v":{"$error":"#REF!"}},{"$f":"#REF!","v":{"$error":"#REF!"}},{"$f":"#REF!","v":{"$error":"#REF!"}},{"$f":"#REF!","v":{"$error":"#REF!"}},{"$f":"#REF!","v":{"$error":"#REF!"}},{"$f":"#REF!","v":{"$error":"#REF!"}},{"$f":"#REF!","v":{"$error":"#REF!"}},{"$f":"#REF!","v":{"$error":"#REF!"}},{"$f":"#REF!","v":{"$error":"#REF!"}},{"$f":"#REF!","v":{"$error":"#REF!"}},{"$f":"#REF!","v":{"$error":"#REF!"}},{"$f":"#REF!","v":{"$error":"#REF!"}},{"$f":"#REF!","v":{"$error":"#REF!"}},{"$f":"#REF!","v":{"$error":"#REF!"}},{"$f":"#REF!","v":{"$error":"#REF!"}},{"$f":"#REF!","v":{"$error":"#REF!"}},{"$f":"#REF!","v":{"$error":"#REF!"}},{"$f":"#REF!","v":{"$error":"#REF!"}},{"$f":"#REF!","v":{"$error":"#REF!"}},{"$f":"#REF!","v":{"$error":"#REF!"}},{"$f":"#REF!","v":{"$error":"#REF!"}}]
[{"$f":"#REF!","v":{"$error":"#REF!"}},{"$f":"IF(#REF!=\"\",\"\",#REF!)","v":{"$error":"#REF!"}},{"$f":"IF(#REF!=\"\",\"\",#REF!)","v":{"$error":"#REF!"}},{"$f":"IF(#REF!=\"\",\"\",#REF!)","v":{"$error":"#REF!"}},{"$f":"IF(#REF!=\"\",\"\",#REF!)","v":{"$error":"#REF!"}},{"$f":"IF(#REF!=\"\",\"\",#REF!)","v":{"$error":"#REF!"}},{"$f":"IF(#REF!=\"\",\"\",#REF!)","v":{"$error":"#REF!"}},{"$f":"IF(#REF!=\"\",\"\",#REF!)","v":{"$error":"#REF!"}},{"$f":"IF(#REF!=\"\",\"\",#REF!)","v":{"$error":"#REF!"}},{"$f":"IF(#REF!=\"\",\"\",#REF!)","v":{"$error":"#REF!"}},{"$f":"IF(#REF!=\"\",\"\",#REF!)","v":{"$error":"#REF!"}},{"$f":"IF(#REF!=\"\",\"\",#REF!)","v":{"$error":"#REF!"}},{"$f":"IF(#REF!=\"\",\"\",#REF!)","v":{"$error":"#REF!"}},{"$f":"IF(#REF!=\"\",\"\",#REF!)","v":{"$error":"#REF!"}},{"$f":"IF(#REF!=\"\",\"\",#REF!)","v":{"$error":"#REF!"}},{"$f":"IF(#REF!=\"\",\"\",#REF!)","v":{"$error":"#REF!"}},{"$f":"IF(#REF!=\"\",\"\",#REF!)","v":{"$error":"#REF!"}},{"$f":"IF(#REF!=\"\",\"\",#REF!)","v":{"$error":"#REF!"}},{"$f":"IF(#REF!=\"\",\"\",#REF!)","v":{"$error":"#REF!"}},{"$f":"IF(#REF!=\"\",\"\",#REF!)","v":{"$error":"#REF!"}},{"$f":"IF(#REF!=\"\",\"\",#REF!)","v":{"$error":"#REF!"}},{"$f":"IF(#REF!=\"\",\"\",#REF!)","v":{"$error":"#REF!"}},{"$f":"IF(#REF!=\"\",\"\",#REF!)","v":{"$error":"#REF!"}}]
[{"$f":"#REF!","v":{"$error":"#REF!"}},{"$f":"#REF!","v":{"$error":"#REF!"}},{"$f":"#REF!","v":{"$error":"#REF!"}},{"$f":"#REF!","v":{"$error":"#REF!"}},{"$f":"#REF!","v":{"$error":"#REF!"}},{"$f":"#REF!","v":{"$error":"#REF!"}},{"$f":"#REF!","v":{"$error":"#REF!"}},{"$f":"#REF!","v":{"$error":"#REF!"}},{"$f":"#REF!","v":{"$error":"#REF!"}},{"$f":"#REF!","v":{"$error":"#REF!"}},{"$f":"#REF!","v":{"$error":"#REF!"}},{"$f":"#REF!","v":{"$error":"#REF!"}},{"$f":"#REF!","v":{"$error":"#REF!"}},{"$f":"#REF!","v":{"$error":"#REF!"}},{"$f":"#REF!","v":{"$error":"#REF!"}},{"$f":"#REF!","v":{"$error":"#REF!"}}]
[{"$f":"#REF!","v":{"$error":"#REF!"}},{"$f":"#REF!","v":{"$error":"#REF!"}},{"$f":"#REF!","v":{"$error":"#REF!"}},{"$f":"#REF!","v":{"$error":"#REF!"}},{"$f":"#REF!","v":{"$error":"#REF!"}},{"$f":"IF(#REF!=\"\",\"\",#REF!)","v":{"$error":"#REF!"}},{"$f":"#REF!","v":{"$error":"#REF!"}},{"$f":"#REF!","v":{"$error":"#REF!"}},{"$f":"#REF!","v":{"$error":"#REF!"}},{"$f":"#REF!","v":{"$error":"#REF!"}},{"$f":"#REF!","v":{"$error":"#REF!"}},{"$f":"#REF!","v":{"$error":"#REF!"}},{"$f":"#REF!","v":{"$error":"#REF!"}},{"$f":"#REF!","v":{"$error":"#REF!"}},{"$f":"IF(#REF!=\"\",\"\",#REF!)","v":{"$error":"#REF!"}},{"$f":"IF(#REF!=\"\",\"\",#REF!)","v":{"$error":"#REF!"}}]
[{"$f":"'MEW nonplant'!B11","v":"No."},{"$f":"'MEW nonplant'!B13","v":1},{"$f":"'MEW nonplant'!B16","v":2},{"$f":"'MEW nonplant'!B19","v":3},{"$f":"'MEW nonplant'!B21","v":4},{"$f":"'MEW nonplant'!B23","v":5},{"$f":"'MEW nonplant'!B26","v":6},{"$f":"'MEW nonplant'!B29","v":7},{"$f":"'MEW nonplant'!B32","v":8},{"$f":"'MEW nonplant'!B35","v":9},{"$f":"'MEW nonplant'!B39","v":10},{"$f":"'MEW nonplant'!B42","v":11},{"$f":"'MEW nonplant'!B45","v":12},{"$f":"'MEW nonplant'!B48","v":13},{"$f":"'MEW nonplant'!B51","v":14},{"$f":"'MEW nonplant'!B53","v":15},{"$f":"'MEW nonplant'!B58","v":16.100000000000001},{"$f":"'MEW nonplant'!B61","v":16.2},{"$f":"'MEW nonplant'!B64","v":16.3},{"$f":"'MEW nonplant'!B67","v":17},{"$f":"'MEW nonplant'!B70","v":18},{"$f":"'MEW nonplant'!C75","v":"Total score"},{"$f":"'MEW nonplant'!C77","v":"Quality Score"}]
[{"$f":"'MEW nonplant'!C2","v":"Category"},{"$f":"'MEW nonplant'!E2","v":"MEW_nonplant"},{"$f":"'MEW nonplant'!C3","v":"Paper and data unique identifier(eg. 1-1,10-150)"},{"$f":"'MEW nonplant'!E3","v":"126-25"}]
[{"$f":"'MEW nonplant'!G11","v":"Scores"},{"$f":"'MEW nonplant'!G12","v":10},{"$f":"'MEW nonplant'!G15","v":10},{"$f":"'MEW nonplant'!G18","v":5},{"$f":"'MEW nonplant'!G21","v":0},{"$f":"'MEW nonplant'!G23","v":5},{"$f":"'MEW nonplant'!G26","v":5},{"$f":"'MEW nonplant'!G29","v":2},{"$f":"'MEW nonplant'!G32","v":5},{"$f":"'MEW nonplant'!G35","v":5},{"$f":"'MEW nonplant'!G38","v":0},{"$f":"'MEW nonplant'!G41","v":4},{"$f":"'MEW nonplant'!G44","v":4},{"$f":"'MEW nonplant'!G47","v":4},{"$f":"'MEW nonplant'!G50","v":4},{"$f":"'MEW nonplant'!G53","v":4},{"$f":"'MEW nonplant'!G57","v":3},{"$f":"'MEW nonplant'!G60","v":3},{"$f":"'MEW nonplant'!G63","v":3},{"$f":"'MEW nonplant'!G66","v":3},{"$f":"'MEW nonplant'!G69","v":3},{"$f":"'MEW nonplant'!G75","v":82},{"$f":"'MEW nonplant'!G77","v":0.87234042553191493},{"$f":"'MEW nonplant'!H77","v":""}]
[{"$f":"'MEW nonplant'!H11","v":"Answers"},{"$f":"IF('MEW nonplant'!H12=\"\",\"\",'MEW nonplant'!H12)","v":"48 h"},{"$f":"IF('MEW nonplant'!H15=\"\",\"\",'MEW nonplant'!H15)","v":"Defined as alive if motile or had an elongate shape"},{"$f":"IF('MEW nonplant'!H18=\"\",\"\",'MEW nonplant'!H18)","v":"LOEC"},{"$f":"IF('MEW nonplant'!H21=\"\",\"\",'MEW nonplant'!H21)","v":""},{"$f":"IF('MEW nonplant'!H23=\"\",\"\",'MEW nonplant'!H23)","v":""},{"$f":"IF('MEW nonplant'!H26=\"\",\"\",'MEW nonplant'!H26)","v":"5 replicates"},{"$f":"IF('MEW nonplant'!H29=\"\",\"\",'MEW nonplant'!H29)","v":"Previous method development had been conducted. The control survival rate was 87% at 72-h (not given for 48-h). Because it is a tropical bioassay, there aren't standard methods in standardized texts."},{"$f":"IF('MEW nonplant'!H32=\"\",\"\",'MEW nonplant'!H32)","v":"4.5 day old larvae"},{"$f":"IF('MEW nonplant'!H35=\"\",\"\",'MEW nonplant'!H35)","v":"unfiltered sperm-free natural seawater"},{"$f":"IF('MEW nonplant'!H38=\"\",\"\",'MEW nonplant'!H38)","v":"static renewal every 1-2 d"},{"$f":"IF('MEW nonplant'!H41=\"\",\"\",'MEW nonplant'!H41)","v":"Filtered (0.45 µm) and unfiltered (total Fe) water samples were collected, acidified, stored at 4oC until analysis by ICP-OES"},{"$f":"IF('MEW nonplant'!H44=\"\",\"\",'MEW nonplant'!H44)","v":""},{"$f":"IF('MEW nonplant'!H47=\"\",\"\",'MEW nonplant'!H47)","v":""},{"$f":"IF('MEW nonplant'!H50=\"\",\"\",'MEW nonplant'!H50)","v":"ANOVA with Tukey HSD using R"},{"$f":"IF('MEW nonplant'!H53=\"\",\"\",'MEW nonplant'!H53)","v":"P<0.05"},{"$f":"IF('MEW nonplant'!H57=\"\",\"\",'MEW nonplant'!H57)","v":"37-39 (no units given but assume ppt)"},{"$f":"IF('MEW nonplant'!H60=\"\",\"\",'MEW nonplant'!H60)","v":"6.08-7.92 mg/L DO"},{"$f":"IF('MEW nonplant'!H63=\"\",\"\",'MEW nonplant'!H63)","v":"7.81-8.37 pH units"},{"$f":"IF('MEW nonplant'!H66=\"\",\"\",'MEW nonplant'!H66)","v":"23.5-26 oC"},{"$f":"IF('MEW nonplant'!H69=\"\",\"\",'MEW nonplant'!H69)","v":"High purity FeCl3 used 97% ACS Sigma-Aldrich"}]
[{"$f":"'MEW nonplant'!G3","v":"Species (Scientific name)"},{"$f":"'MEW nonplant'!G4","v":"Lifestage"},{"$f":"'MEW nonplant'!G5","v":"Exposure duration"},{"$f":"'MEW nonplant'!G6","v":"Measure of toxicity"},{"$f":"'MEW nonplant'!G7","v":"Toxicity endpoint"},{"$f":"'MEW nonplant'!G8","v":"Toxicity value"},{"$f":"'MEW nonplant'!J2","v":"Taxonomic group"},{"$f":"'MEW nonplant'!J3","v":"Phylum"},{"$f":"'MEW nonplant'!J4","v":"Class"},{"$f":"'MEW nonplant'!J5","v":"Media"},{"$f":"'MEW nonplant'!J6","v":"Temperature "},{"$f":"'MEW nonplant'!J7","v":"Acute Or Chronic "},{"$f":"'MEW nonplant'!J8","v":"PH"},{"$f":"'MEW nonplant'!J9","v":"Salinity/Conductivity"},{"$f":"'MEW nonplant'!C4","v":"Citation"},{"$f":"'MEW nonplant'!G2","v":"Citation No."}]
[{"$f":"'MEW nonplant'!Q3","v":"Platygyra daedalea"},{"$f":"'MEW nonplant'!T3","v":"larvae"},{"$f":"'MEW nonplant'!W3","v":"72 h"},{"$f":"'MEW nonplant'!Z3","v":"LOEC"},{"$f":"'MEW nonplant'!AC3","v":"Survival"},{"$f":"IF('MEW nonplant'!H8=\"\",\"\",'MEW nonplant'!H8)","v":"27,200 µg/L total iron"},{"$f":"'MEW nonplant'!AF3","v":"Coral"},{"$f":"'MEW nonplant'!AI3","v":"Cnidaria"},{"$f":"'MEW nonplant'!AL3","v":"Anthozoa"},{"$f":"'MEW nonplant'!AO3","v":"Unfiltered natural seawater"},{"$f":"'MEW nonplant'!AR3","v":"23.5-26 oC"},{"$f":"'MEW nonplant'!AU3","v":"Acute"},{"$f":"'MEW nonplant'!AX3","v":"7.81-8.37"},{"$f":"'MEW nonplant'!BA3","v":"37-39 ppt"},{"$f":"IF('MEW nonplant'!E4=\"\", \"\",'MEW nonplant'!E4)","v":"Leigh-Smith J, Reichelt-Brushett A, Rose AL. 2018. The characterization of iron (III) in seawater and related toxicity to early life stages of scleractinian corals. Environmental Toxicology and Chemistry 37:1104-1114."},{"$f":"IF('MEW nonplant'!H2=\"\", \"\",'MEW nonplant'!H2)","v":"126"}]
[{"$f":"'MEW plant'!B11","v":"No."},{"$f":"'MEW plant'!B13","v":1},{"$f":"'MEW plant'!B16","v":2},{"$f":"'MEW plant'!B19","v":3},{"$f":"'MEW plant'!B21","v":4},{"$f":"'MEW plant'!B23","v":5},{"$f":"'MEW plant'!B26","v":6},{"$f":"'MEW plant'!B29","v":7},{"$f":"'MEW plant'!B32","v":8},{"$f":"'MEW plant'!B35","v":9},{"$f":"'MEW plant'!B39","v":10},{"$f":"'MEW plant'!B42","v":11},{"$f":"'MEW plant'!B45","v":12},{"$f":"'MEW plant'!B48","v":13},{"$f":"'MEW plant'!B51","v":14},{"$f":"'MEW plant'!B53","v":15},{"$f":"'MEW plant'!B57","v":16.100000000000001},{"$f":"'MEW plant'!B61","v":16.2},{"$f":"'MEW plant'!B64","v":17},{"$f":"'MEW plant'!B67","v":18},{"$f":"'MEW plant'!C72","v":"Total score"},{"$f":"'MEW plant'!C74","v":"Quality Score"}]
[{"$f":"'MEW plant'!C2","v":"Category"},{"$f":"'MEW plant'!E2","v":"MEW_plant"},{"$f":"'MEW plant'!C3","v":"Paper and data unique identifier(eg. 1-1,10-150)"},{"$f":"'MEW plant'!E3","v":"124.6"}]
[{"$f":"'MEW plant'!G11","v":"Scores"},{"$f":"'MEW plant'!G12","v":10},{"$f":"'MEW plant'!G15","v":10},{"$f":"'MEW plant'!G18","v":0},{"$f":"'MEW plant'!G21","v":5},{"$f":"'MEW plant'!G23","v":0},{"$f":"'MEW plant'!G26","v":5},{"$f":"'MEW plant'!G29","v":0},{"$f":"'MEW plant'!G32","v":0},{"$f":"'MEW plant'!G35","v":5},{"$f":"'MEW plant'!G38","v":0},{"$f":"'MEW plant'!G41","v":0},{"$f":"'MEW plant'!G44","v":0},{"$f":"'MEW plant'!G47","v":4},{"$f":"'MEW plant'!G50","v":4},{"$f":"'MEW plant'!G53","v":4},{"$f":"'MEW plant'!G57","v":1},{"$f":"'MEW plant'!G61","v":0},{"$f":"'MEW plant'!G64","v":0},{"$f":"'MEW plant'!G67","v":0},{"$f":"'MEW plant'!G72","v":49},{"$f":"'MEW plant'!G74","v":0.53846153846153844},{"$f":"'MEW plant'!H74","v":"The highest possible grade for this datum is acceptable."}]
[{"$f":"'MEW plant'!H11","v":"Answers"},{"$f":"IF('MEW plant'!H12=\"\",\"\",'MEW plant'!H12)","v":""},{"$f":"IF('MEW plant'!H15=\"\",\"\",'MEW plant'!H15)","v":""},{"$f":"IF('MEW plant'!H18=\"\",\"\",'MEW plant'!H18)","v":""},{"$f":"IF('MEW plant'!H21=\"\",\"\",'MEW plant'!H21)","v":"multiple comparisons"},{"$f":"IF('MEW plant'!H23=\"\",\"\",'MEW plant'!H23)","v":"control had the standard Fe concentrations for the F/2 media"},{"$f":"IF('MEW plant'!H26=\"\",\"\",'MEW plant'!H26)","v":"3 reps"},{"$f":"IF('MEW plant'!H29=\"\",\"\",'MEW plant'!H29)","v":""},{"$f":"IF('MEW plant'!H32=\"\",\"\",'MEW plant'!H32)","v":""},{"$f":"IF('MEW plant'!H35=\"\",\"\",'MEW plant'!H35)","v":"F/2 media"},{"$f":"IF('MEW plant'!H38=\"\",\"\",'MEW plant'!H38)","v":""},{"$f":"IF('MEW plant'!H41=\"\",\"\",'MEW plant'!H41)","v":""},{"$f":"IF('MEW plant'!H44=\"\",\"\",'MEW plant'!H44)","v":""},{"$f":"IF('MEW plant'!H47=\"\",\"\",'MEW plant'!H47)","v":""},{"$f":"IF('MEW plant'!H50=\"\",\"\",'MEW plant'!H50)","v":"ANOVA with Duncan's (Dunnett's ) pairwise comparisons"},{"$f":"IF('MEW plant'!H53=\"\",\"\",'MEW plant'!H53)","v":""},{"$f":"IF('MEW plant'!H57=\"\",\"\",'MEW plant'!H57)","v":""},{"$f":"IF('MEW plant'!H60=\"\",\"\",'MEW plant'!H60)","v":""},{"$f":"IF('MEW plant'!H63=\"\",\"\",'MEW plant'!H63)","v":""},{"$f":"IF('MEW plant'!H66=\"\",\"\",'MEW plant'!H66)","v":""}]
[{"$f":"'MEW plant'!G3","v":"Species (Scientific name)"},{"$f":"'MEW plant'!G4","v":"Lifestage"},{"$f":"'MEW plant'!G5","v":"Exposure duration"},{"$f":"'MEW plant'!G6","v":"Measure of toxicity"},{"$f":"'MEW plant'!G7","v":"Toxicity endpoint"},{"$f":"'MEW plant'!G8","v":"Toxicity value"},{"$f":"'MEW plant'!J2","v":"Taxonomic group"},{"$f":"'MEW plant'!J3","v":"Phylum"},{"$f":"'MEW plant'!J4","v":"Class"},{"$f":"'MEW plant'!J5","v":"Media"},{"$f":"'MEW plant'!J6","v":"Temperature "},{"$f":"'MEW plant'!J7","v":"Acute Or Chronic "},{"$f":"'MEW plant'!J8","v":"PH"},{"$f":"'MEW plant'!J9","v":"Salinity/Conductivity"},{"$f":"'MEW plant'!C4","v":"Citation"},{"$f":"'MEW plant'!G2","v":"Citation No."}]
[{"$f":"'MEW plant'!Q3","v":"Pavlova viridis"},{"$f":"'MEW plant'!T3","v":"Not stated"},{"$f":"'MEW plant'!W3","v":"10 d"},{"$f":"'MEW plant'!Z3","v":"growth rate inhibition"},{"$f":"'MEW plant'!AC3","v":"LOEC"},{"$f":"IF('MEW plant'!H8=\"\",\"\",'MEW plant'!H8)","v":"67000 ug/L"},{"$f":"'MEW plant'!AF3","v":"Microalga"},{"$f":"'MEW plant'!AI3","v":"Haptophyta"},{"$f":"'MEW plant'!AL3","v":"Pavlovophyceae"},{"$f":"'MEW plant'!AO3","v":"F/2 media"},{"$f":"'MEW plant'!AR3","v":"20 oC"},{"$f":"'MEW plant'!AU3","v":"Chronic"},{"$f":"'MEW plant'!AX3","v":"Not stated"},{"$f":"'MEW plant'!BA3","v":"20 ppt"},{"$f":"IF('MEW plant'!E4=\"\",\"\",'MEW plant'!E4)","v":"Huang X, Wei L, Huang Z and Yan J (2014). Effect of high ferric ion concentrations on total lipids and lipid characteristics of Tetraselmis subcordiformis, Nannochloropsis oculata and Pavlova viridis. Journal of Applied Phycology, 26(1), 105-114. "},{"$f":"IF('MEW plant'!H2=\"\",\"\",'MEW plant'!H2)","v":"124.6"}]

{"sheet":"All Result","index":4,"n_rows":96,"n_cols":22,"rows_kept":96,"cut":false,"hidden":false,"merged":[]}
["Chemical:","Iron"]
["Medium:","Marine"]
["Category","Paper and data unique identifier(eg. 1-1,10-150)","Total score","Quality Score","Comment ","Species (Scientific name)","Lifestage","Exposure duration","Measure of toxicity","Toxicity endpoint","Toxicity value","Taxonomic group","Phylum","Class","Media","Temperature ","Acute Or Chronic ","PH","Salinity/Conductivity","Citation","Citation No.","Comment"]
["MEW_nonplant","100-1",44,0.46808510638297873,"The highest possible grade for this datum is acceptable.","Perna perna","Adult","12-120 h","N.A.","N.A.","N.A","Mollusca","Mollusca","Bivalvia","Marinewater","19-21 oC","Acute","N.A.","N.A.","Almeida EA, Bainy ACD, Medeiros MHG and Di Mascio P (2003) Effects of trace metal and exposure to air on serotonin and dopamine levels in tissues of the mussel Perna perna. Marine Pollution Bulletin 46(11), 1485-1490. DOI: 10.1016/s0025-326x(03)00256-x.","100","Did not pass QA question 7 therefore is unacceptable and  not useable"]
["MEW_nonplant","101-1",55,0.58510638297872342,"The highest possible grade for this datum is acceptable.","Nitocra spinipes","Adult","96 h","LC50","Survival","21000 µg/L","Crustacea","Crustacea","Copepoda","Estuarine",20,"Acute",8,"7 ppt","Bengtsson BE (1978). Use of a harpacticoid copepod in toxicity tests. Marine Pollution Bulletin, 9(9), 238-241. ","101","Did not pass QA question 7 therefore is unacceptable and  not useable"]
["MEW_nonplant","102-1",49,0.52127659574468088,"The highest possible grade for this datum is acceptable.","Artemia salina","Adult","N.A.","N.A.","Survival","N/A","Crustacea","Crustacea","Branchiopoda","Marinewater","20 oC","Acute","N.A.","N.A.","Brown B and Ahsanullah M (1971). Effect of heavy metals on mortality and growth. Marine Pollution Bulletin, 2(12), 182-187. ","102","no toxicity value"]
["MEW_nonplant","102-2",49,0.52127659574468088,"The highest possible grade for this datum is acceptable.","Ophryotrocha labronica","Adult","N.A.","N.A.","Survival","N/A","Annelida","Annelida","Polychaeta","Marinewater","20 oC","Acute","N.A.","N.A.","Brown B and Ahsanullah M (1971). Effect of heavy metals on mortality and growth. Marine Pollution Bulletin, 2(12), 182-187. ","102","no toxicity value"]
["MEW_nonplant","103-1",56,0.5957446808510638,"","Periophthalmus waltoni","Not stated","96 h","LC5","Survival","2.69 µg/L","Fish ","Chordata","Pisces","Marinewater","22.3 oC","Acute",8.1,"38 ppt","Bu-Olayan AH and Thomas BV (2008). Trace metals toxicity and bioaccumulation in mudskipper Periophthalmus waltoni Koumans 1941 (Gobiidae: Perciformes). Turk. J. Fish. Aquat. Sci., 8(2), 215-218. ","103","Did not pass QA question 7 therefore is unacceptable and  not useable and pseudoreplication"]
["MEW_nonplant","103-2",56,0.5957446808510638,"","Periophthalmus waltoni","Not stated","96 h","LC15","Survival","3.73 µg/L","Fish ","Chordata","Pisces","Marinewater","22.3 oC","Acute",8.1,"38 ppt","Bu-Olayan AH and Thomas BV (2008). Trace metals toxicity and bioaccumulation in mudskipper Periophthalmus waltoni Koumans 1941 (Gobiidae: Perciformes). Turk. J. Fish. Aquat. Sci., 8(2), 215-218. ","103","Did not pass QA question 7 therefore is unacceptable and  not useable and pseudoreplication"]
["MEW_nonplant","103-3",56,0.5957446808510638,"","Periophthalmus waltoni","Not stated","96 h","LC50","Survival","6.48 µg/L","Fish ","Chordata","Pisces","Marinewater","22.3 oC","Acute",8.1,"38 ppt","Bu-Olayan AH and Thomas BV (2008). Trace metals toxicity and bioaccumulation in mudskipper Periophthalmus waltoni Koumans 1941 (Gobiidae: Perciformes). Turk. J. Fish. Aquat. Sci., 8(2), 215-218. ","103","Did not pass QA question 7 therefore is unacceptable and  not useable and pseudoreplication"]
["MEW_nonplant","103-4",56,0.5957446808510638,"","Periophthalmus waltoni","Not stated","96 h","LC90","Survival","12.85 µg/L","Fish ","Chordata","Pisces","Marinewater","22.3 oC","Acute",8.1,"38 ppt","Bu-Olayan AH and Thomas BV (2008). Trace metals toxicity and bioaccumulation in mudskipper Periophthalmus waltoni Koumans 1941 (Gobiidae: Perciformes). Turk. J. Fish. Aquat. Sci., 8(2), 215-218. ","103","Did not pass QA question 7 therefore is unacceptable and  not useable and pseudoreplication"]
["MEW_nonplant","103-5",56,0.5957446808510638,"","Periophthalmus waltoni","Not stated","96 h","LC99","Survival","22.45 µg/L","Fish ","Chordata","Pisces","Marinewater","22.3 oC","Acute",8.1,"38 ppt","Bu-Olayan AH and Thomas BV (2008). Trace metals toxicity and bioaccumulation in mudskipper Periophthalmus waltoni Koumans 1941 (Gobiidae: Perciformes). Turk. J. Fish. Aquat. Sci., 8(2), 215-218. ","103","Did not pass QA question 7 therefore is unacceptable and  not useable and pseudoreplication"]
["MEW_nonplant","104-1",29,0.30851063829787234,"The highest possible grade for this datum is acceptable.","Artemia salina","Not stated","24 h","LC50","Survival","10387 ug/L","Crustacea","Crustacea","Branchiopoda","Not stated","Not stated","Acute","Not stated","Not stated","Calleja MC, Persoone G and Geladi P (1994). Comparative acute toxicity of the first 50 multicenter evaluation of in-vitro cytoxicity chemicals to aquatic non-vertebrates. Archives of environmental contamination and toxicology, 26(1), 69-78.","104","Score <51% therefore unacceptable"]
["MEW_nonplant","104-2",29,0.30851063829787234,"The highest possible grade for this datum is acceptable.","Photobacterium phosphoreum","Not stated","24 h","LC50","Survival","43671 ug/L","Bacteria","Proteobacteria","Gammaproteobacteria","Not stated","Not stated","Acute","Not stated","Not stated","Calleja MC, Persoone G and Geladi P (1994). Comparative acute toxicity of the first 50 multicenter evaluation of in-vitro cytoxicity chemicals to aquatic non-vertebrates. Archives of environmental contamination and toxicology, 26(1), 69-78.","104","Score <51% therefore unacceptable"]
["MEW_plant","105-1",39,0.42857142857142855,"","Phytoplankton community","N.A.","4 d","N.A.","N.A.","non-given","Microalga","Chlorophyta","N.A.","Marinewater","N.A.","Chronic","N.A.","N.A.","Crawford DW, Lipsen MS, Purdie DA, Lohan MC, Statham PJ, Whitney FA, Putland JN, Johnson WK and Sutherla N (2003). Influence of zinc and iron enrichments on phytoplankton growth in the northeastern subarctic pacific. Limnol. Oceanogr., 48(4), 1583-1600. ","105","Did not pass QA question 7 therefore is unacceptable"]
["MEW_nonplant","106-1",44,0.46808510638297873,"The highest possible grade for this datum is acceptable.","Perna perna","Adult","12-120 h","N.A.","Changes in biomarkers","N/A","Mollusca","Mollusca","Bivalvia","Marinewater","19-21 oC","Chronic","Not stated","Not stated","de Almeida EA, Miyamoto S, Bainy ACD, Medeiros MHG and Di Mascio P (2004). Protective effect of phospholipid hydroperoxide glutathione peroxidase (PHGPx) against lipid peroxidation in mussels Perna perna exposed to different metals. Marine Pollution Bulletin, 49(5-6), 386-392. ","106","Did not pass QA question 7 therefore is unacceptable"]
["MEW_nonplant","107-1",53,0.56382978723404253,"The highest possible grade for this datum is acceptable.","Fundulus heteroclitus","Not stated","24, 48, 72, 96 h","LC50","Survival","31500 - 315000 ug/L","Fish ","Chordata","Pisces","Estuarine","20 oC","Acute","Not stated","7.3 and 18.8 ppt","Dorfman D (1977). Tolerance of Fundulus-heteroclitus to different metals in salt waters. Bulletin New Jersey Academy of Science, 22(2), 21-23","107","Paper states that toxicity was due to decrease in pH for Fe treatments above 10 mg/L where pH <4 therefore confounding factor makes it unacceptable"]
["MEW_nonplant","108-1",47,0.5,"The highest possible grade for this datum is acceptable.","Therapon humeralis","Not stated","24 h","LC50","Survival","16700 ug/L","Fish ","Chordata","Pisces","Marinewater","20 oC","Acute",8.1,"35 ppt","Francesconi KA and Edmonds JS (1995). Short-term effects on Sea Trumpeter (Therapon humeralis) of oxidizing iron(II) in seawater. Bulletin of Environmental Contamination and Toxicology, 54(1), 15-21.","108","Used this data. Did not pass QA question 7, but did measure FeII oxidized to FeIII in chemistry reps without fish and measured pH at highest Fe treatment (20 mg/L) - went as low as pH 6.95, therefore because this is the best fish data, it would be worthwhile using"]
["MEW_nonplant","108-2",47,0.5,"The highest possible grade for this datum is acceptable.","Therapon humeralis","Not stated","24 h","LC50","Survival","11800 ug/L","Fish ","Chordata","Pisces","Marinewater","25°C","Acute",8.1,"35 ppt","Francesconi KA and Edmonds JS (1995). Short-term effects on Sea Trumpeter (Therapon humeralis) of oxidizing iron(II) in seawater. Bulletin of Environmental Contamination and Toxicology, 54(1), 15-21.","108","Used this data. Did not pass QA question 7, but did measure FeII oxidized to FeIII in chemistry reps without fish and measured pH at highest Fe treatment (20 mg/L) - went as low as pH 6.95, therefore because this is the best fish data, it would be worthwhile using"]
["MEW_nonplant","109-1",83,0.88297872340425532,"The highest possible grade for this datum is acceptable.","Litopenaeus vannamei","postlarval","24 h","LC50","Survival","60000 ug/L","Crustacea","Crustacea","Malacostraca","Marinewater","26.8 - 27.6 oC","Acute","8.0 - 8.1","34 ppt","Frias-Espericueta MG, Voltolina D and Osuna-Lopez JI (2003). Acute toxicity of copper, zinc, iron, and manganese and of the mixtures copper-zinc and iron-manoanese to whiteleg shrimp Litopenaeus vannamei postlarvae. Bulletin of Environmental Contamination and Toxicology, 71(1), 68-74. ","109","Used this data. All nominal and read from graph - used FeCl3.6H2O general reagent grade"]
["MEW_nonplant","109-2",83,0.88297872340425532,"The highest possible grade for this datum is acceptable.","Litopenaeus vannamei","postlarval","48 h","LC50","Survival","55000 ug/L","Crustacea","Crustacea","Malacostraca","Marinewater","26.8 - 27.6 oC","Acute","8.0 - 8.1","34 ppt","Frias-Espericueta MG, Voltolina D and Osuna-Lopez JI (2003). Acute toxicity of copper, zinc, iron, and manganese and of the mixtures copper-zinc and iron-manoanese to whiteleg shrimp Litopenaeus vannamei postlarvae. Bulletin of Environmental Contamination and Toxicology, 71(1), 68-74. ","109","Used this data. All nominal and read from graph - used FeCl3.6H2O general reagent grade"]
["MEW_nonplant","109-3",83,0.88297872340425532,"The highest possible grade for this datum is acceptable.","Litopenaeus vannamei","postlarval","72 h","LC50","Survival","50000 ug/L","Crustacea","Crustacea","Malacostraca","Marinewater","26.8 - 27.6 oC","Acute","8.0 - 8.1","34 ppt","Frias-Espericueta MG, Voltolina D and Osuna-Lopez JI (2003). Acute toxicity of copper, zinc, iron, and manganese and of the mixtures copper-zinc and iron-manoanese to whiteleg shrimp Litopenaeus vannamei postlarvae. Bulletin of Environmental Contamination and Toxicology, 71(1), 68-74. ","109","Used this data. All nominal and read from graph - used FeCl3.6H2O general reagent grade"]
["MEW_nonplant","109-4",83,0.88297872340425532,"The highest possible grade for this datum is acceptable.","Litopenaeus vannamei","postlarval","96 h","LC50","Survival","50000 ug/L","Crustacea","Crustacea","Malacostraca","Marinewater","26.8 - 27.6 oC","Acute","8.0 - 8.1","34 ppt","Frias-Espericueta MG, Voltolina D and Osuna-Lopez JI (2003). Acute toxicity of copper, zinc, iron, and manganese and of the mixtures copper-zinc and iron-manoanese to whiteleg shrimp Litopenaeus vannamei postlarvae. Bulletin of Environmental Contamination and Toxicology, 71(1), 68-74. ","109","Used this data. All nominal and read from graph - used FeCl3.6H2O general reagent grade"]
["MEW_nonplant","110-1",77,0.81914893617021278,"The highest possible grade for this datum is acceptable.","Artemia salina","Nauplii","24 h","LC50","Survival","18200 ug/L (22 ug/L SD)","Crustacea","Crustacea","Branchiopoda","Marinewater","28 oC","Acute","7.5 - 8.4","32.94 - 33.53 ppt","Gajbhiye SN and Hirota R (1990). Toxicity of heavy metals to brine shrimp Artemia. Journal of the Indian Fisheries Association, 20, 43-50. ","110","All nominal and response curve did not match stated effect concentration therefore did not use"]
["MEW_nonplant","110-2",77,0.81914893617021278,"The highest possible grade for this datum is acceptable.","Artemia salina","Nauplii","48 h","LC50","Survival","13900 ug/L (20 ug/L SD)","Crustacea","Crustacea","Branchiopoda","Marinewater","28 oC","Acute","7.5 - 8.4","32.94 - 33.53 ppt","Gajbhiye SN and Hirota R (1990). Toxicity of heavy metals to brine shrimp Artemia. Journal of the Indian Fisheries Association, 20, 43-50. ","110","All nominal and response curve did not match stated effect concentration therefore did not use"]
["MEW_nonplant","111-1",25,0.26595744680851063,"The highest possible grade for this datum is acceptable.","Idotea baltica","Not stated","20 d","N.A.","Survival","No value calculated","Crustacea","Crustacea","Malacostraca","Marinewater","16 oC","Chronic","Not stated","Not stated","Gambardella C, De Benedictis A, Guarino SM and De Nicola M (1998). Metal determination by atomic absorption spectrophotometry and X-ray microanalysis in Idotea baltica exposed to iron and copper. Annali di Chimica, 88(3-4), 223-234. ","111","Did not pass QA question 7 therefore is unacceptable"]
["MEW_nonplant","112-1",76,0.80851063829787229,"The highest possible grade for this datum is acceptable.","Haliotis rubra","embryo 1 h post fert.","48 h","EC10","Normal development","4364 ug/L (4058 - 4578 ug/L 95%CL)","Mollusca","Mollusca","Gastropoda","Marinewater","20 oC","Chronic",7.3,"Not stated","Gorski J and Nugegoda D (2006). Sublethal toxicity of trace metals to larvae of the blacklip abalone, Haliotis rubra. Environmental Toxicology and Chemistry, 25(5), 1360-1367. ","112","Used this data. Nominal concentrations used"]
["MEW_nonplant","112-2",76,0.80851063829787229,"The highest possible grade for this datum is acceptable.","Haliotis rubra","embryo 1 h post fert.","48 h","EC50","Normal development","5111 ug/L (4860 - 5375 ug/L 95%CL)","Mollusca","Mollusca","Gastropoda","Marinewater","20 oC","Chronic",7.3,"Not stated","Gorski J and Nugegoda D (2006). Sublethal toxicity of trace metals to larvae of the blacklip abalone, Haliotis rubra. Environmental Toxicology and Chemistry, 25(5), 1360-1367. ","112","Used this data. Nominal concentrations used"]
["MEW_nonplant","112-3",76,0.80851063829787229,"The highest possible grade for this datum is acceptable.","Haliotis rubra","embryo 1 h post fert.","48 h","NOEC","Normal development","1280 ug/L ","Mollusca","Mollusca","Gastropoda","Marinewater","20 oC","Chronic",7.3,"Not stated","Gorski J and Nugegoda D (2006). Sublethal toxicity of trace metals to larvae of the blacklip abalone, Haliotis rubra. Environmental Toxicology and Chemistry, 25(5), 1360-1367. ","112","Used this data. Nominal concentrations used"]
["MEW_nonplant","113-1",59,0.62765957446808507,"The highest possible grade for this datum is acceptable.","Cancer anthonyi","embryo","168 h","LOEC","Survival","1,000,000 ug/L","Crustacea","Crustacea","Malacostraca","Marinewater","20 oC","Chronic",7.8,"34 ppt","Macdonald JM, Shields JD and Zimmerfaust RK (1988). Acute toxicities of 11 metals to early life-history stages of the yellow crab cancer-anthonyi. Marine Biology, 98(2), 201-207. ","113","Used this data. Did not pass QA question 7 and nominal concentrations used but did score well, cites basis for protocol in other references and is mostly a well written paper so will accept it"]
["MEW_nonplant","113-2",59,0.62765957446808507,"The highest possible grade for this datum is acceptable.","Cancer anthonyi","embryo","168 h","NOEC","Survival","100,000 ug/L","Crustacea","Crustacea","Malacostraca","Marinewater","20 oC","Chronic",7.8,"34 ppt","Macdonald JM, Shields JD and Zimmerfaust RK (1988). Acute toxicities of 11 metals to early life-history stages of the yellow crab cancer-anthonyi. Marine Biology, 98(2), 201-207. ","113","Used this data. Did not pass QA question 7 and nominal concentrations used but did score well, cites basis for protocol in other references and is mostly a well written paper so will accept it"]
["MEW_nonplant","113-3",59,0.62765957446808507,"The highest possible grade for this datum is acceptable.","Cancer anthonyi","embryo","168 h","LOEC","Hatching","10,000 ug/L","Crustacea","Crustacea","Malacostraca","Marinewater","20 oC","Chronic",7.8,"34 ppt","Macdonald JM, Shields JD and Zimmerfaust RK (1988). Acute toxicities of 11 metals to early life-history stages of the yellow crab cancer-anthonyi. Marine Biology, 98(2), 201-207. ","113","Used this data. Did not pass QA question 7 and nominal concentrations used but did score well, cites basis for protocol in other references and is mostly a well written paper so will accept it"]
["MEW_nonplant","113-4",59,0.62765957446808507,"The highest possible grade for this datum is acceptable.","Cancer anthonyi","embryo","168 h","NOEC","Hatching","1000 ug/L","Crustacea","Crustacea","Malacostraca","Marinewater","20 oC","Chronic",7.8,"34 ppt","Macdonald JM, Shields JD and Zimmerfaust RK (1988). Acute toxicities of 11 metals to early life-history stages of the yellow crab cancer-anthonyi. Marine Biology, 98(2), 201-207. ","113","Used this data. Did not pass QA question 7 and nominal concentrations used but did score well, cites basis for protocol in other references and is mostly a well written paper so will accept it"]
["MEW_nonplant","114-1",53,0.56382978723404253,"The highest possible grade for this datum is acceptable.","Sphaerechinus granularis","embryo","72 h","NOEC","Normal development","<55.8 ug/L","Echinodermata","Echinodermata","Echinoidea","Marinewater","18 oC","Chronic","Not stated","35 ppt","Pagano G, His E, Beiras R, DeBiase A, Korkina LG, Iaccarino M, Oral R, Quiniou F, Warnau M and Trieff NM (1996). Cytogenetic, developmental, and biochemical effects of aluminum, iron, and their mixture in sea urchins and mussels. Archives of environmental contamination and toxicology, 31(4), 466-474. ","114","Did not pass QA question 7 and nominal concentrations used but did score greater than 51%, cites basis for protocol in other references and was mostly written well so will acknowledge it but not use it because of dilution series used"]
["MEW_nonplant","114-2",53,0.56382978723404253,"The highest possible grade for this datum is acceptable.","Sphaerechinus granularis","Sperm","10 min","NOEC","Fertilisation rate","55.8 ug/L","Echinodermata","Echinodermata","Echinoidea","Marinewater","18 oC","Acute","Not stated","35 ppt","Pagano G, His E, Beiras R, DeBiase A, Korkina LG, Iaccarino M, Oral R, Quiniou F, Warnau M and Trieff NM (1996). Cytogenetic, developmental, and biochemical effects of aluminum, iron, and their mixture in sea urchins and mussels. Archives of environmental contamination and toxicology, 31(4), 466-474. ","114","Did not pass QA question 7 and nominal concentrations used but did score greater than 51%, cites basis for protocol in other references and was mostly written well so will acknowledge it but not use it because of dilution series used"]
["MEW_nonplant","114-3",53,0.56382978723404253,"The highest possible grade for this datum is acceptable.","Sphaerechinus granularis","Sperm","10 min","LOEC","Fertilisation rate","558 ug/L","Echinodermata","Echinodermata","Echinoidea","Marinewater","18 oC","Acute","Not stated","35 ppt","Pagano G, His E, Beiras R, DeBiase A, Korkina LG, Iaccarino M, Oral R, Quiniou F, Warnau M and Trieff NM (1996). Cytogenetic, developmental, and biochemical effects of aluminum, iron, and their mixture in sea urchins and mussels. Archives of environmental contamination and toxicology, 31(4), 466-474. ","114","Did not pass QA question 7 and nominal concentrations used but did score greater than 51%, cites basis for protocol in other references and was mostly written well so will acknowledge it but not use it because of dilution series used"]
["MEW_nonplant","114-4",53,0.56382978723404253,"The highest possible grade for this datum is acceptable.","Paracentrotus lividus","embryo","72 h","NOEC","Normal development","5.58 ug/L","Echinodermata","Echinodermata","Echinoidea","Marinewater","18 oC","Chronic","Not stated","35 ppt","Pagano G, His E, Beiras R, DeBiase A, Korkina LG, Iaccarino M, Oral R, Quiniou F, Warnau M and Trieff NM (1996). Cytogenetic, developmental, and biochemical effects of aluminum, iron, and their mixture in sea urchins and mussels. Archives of environmental contamination and toxicology, 31(4), 466-474. ","114","Did not pass QA question 7 and nominal concentrations used but did score greater than 51%, cites basis for protocol in other references and was mostly written well so will acknowledge it but not use it because of dilution series used"]
["MEW_nonplant","114-5",53,0.56382978723404253,"The highest possible grade for this datum is acceptable.","Paracentrotus lividus","embryo","72 h","LOEC","Normal development","55.8 ug/L","Echinodermata","Echinodermata","Echinoidea","Marinewater","18 oC","Chronic","Not stated","35 ppt","Pagano G, His E, Beiras R, DeBiase A, Korkina LG, Iaccarino M, Oral R, Quiniou F, Warnau M and Trieff NM (1996). Cytogenetic, developmental, and biochemical effects of aluminum, iron, and their mixture in sea urchins and mussels. Archives of environmental contamination and toxicology, 31(4), 466-474. ","114","Did not pass QA question 7 and nominal concentrations used but did score greater than 51%, cites basis for protocol in other references and was mostly written well so will acknowledge it but not use it because of dilution series used"]
["MEW_nonplant","114-6",53,0.56382978723404253,"The highest possible grade for this datum is acceptable.","Psammechinus microtuberculatus","embryo","72 h","NOEC","Normal development","<0.558 ug/L","Echinodermata","Echinodermata","Echinoidea","Marinewater","18 oC","Chronic","Not stated","35 ppt","Pagano G, His E, Beiras R, DeBiase A, Korkina LG, Iaccarino M, Oral R, Quiniou F, Warnau M and Trieff NM (1996). Cytogenetic, developmental, and biochemical effects of aluminum, iron, and their mixture in sea urchins and mussels. Archives of environmental contamination and toxicology, 31(4), 466-474. ","114","Did not pass QA question 7 and nominal concentrations used but did score greater than 51%, cites basis for protocol in other references and was mostly written well so will acknowledge it but not use it because of dilution series used"]
["MEW_nonplant","114-6",53,0.56382978723404253,"The highest possible grade for this datum is acceptable.","Mytilus galloprovincialis","Sperm","30 min","NOEC"," Embryogenic anomalies","167.54 ug/L","Mollusca","Mollusca","Bivalvia","Marinewater","18 oC","Acute","Not stated","35 ppt","Pagano G, His E, Beiras R, DeBiase A, Korkina LG, Iaccarino M, Oral R, Quiniou F, Warnau M and Trieff NM (1996). Cytogenetic, developmental, and biochemical effects of aluminum, iron, and their mixture in sea urchins and mussels. Archives of environmental contamination and toxicology, 31(4), 466-474. ","114","Did not pass QA question 7 and nominal concentrations used but did score greater than 51%, cites basis for protocol in other references and was mostly written well but the value is an acute one compared to the chronic value for the same species in Kadar et al. (2010) therefore did not use"]
["MEW_nonplant","115-1",36,0.38297872340425532,"The highest possible grade for this datum is acceptable.","Ophryotrocha diadema","Not stated","48 h","LC50","Survival","10000 - 33000 ug/L","Annelida","Annelida","Polychaeta","Marinewater","21 oC","Acute","Not stated","32 ppt","Parker JG (1984). The effects of selected chemicals and water quality on the marine polychate - Ophryotrocha diadema. Water Research, 18(7), 865-868. ","115","Did not pass QA question 7 and nominal concentrations used"]
["MEW_nonplant","116-1",44,0.46808510638297873,"The highest possible grade for this datum is acceptable.","Crangon crangon","Not stated","48 h","LC50","Survival","33000 - 100000 ug/L","Crustacea","Crustacea","Malacostraca","Marinewater","15°C","Acute","Not stated","Not stated","Portmann JE (1972). Results of acute toxicity tests with marine organisms, using a standard method. In: Ruvio M (ed.) Marine pollution and sea life. FAO, London, England.","116","Did not pass QA question 7 and nominal concentrations used"]
["MEW_nonplant","116-2",44,0.46808510638297873,"The highest possible grade for this datum is acceptable.","Cardium edule","Not stated","48 h","LC50","Survival","100000 - 330000 ug/L","Mollusca","Mollusca","Bivalvia","Marinewater","15°C","Acute","Not stated","Not stated","Portmann JE (1972). Results of acute toxicity tests with marine organisms, using a standard method. In: Ruvio M (ed.) Marine pollution and sea life. FAO, London, England.","116","Did not pass QA question 7 and nominal concentrations used"]
["MEW_nonplant","117-1",41,0.43617021276595747,"The highest possible grade for this datum is acceptable.","Artemia salina","Egg","72 h","LC50","Hatching","8000 ug/L","Crustacea","Crustacea","Branchiopoda","Marinewater","28 oC","Acute","Not stated","37.5 ppt","Saliba LJ and Krzyz RM (1976). Effect of heavy metals on hatching of brine-shrimp eggs. Marine Pollut. IUCN Bull, 7(10), 181-182. ","117","Did not pass QA question 7 and nominal concentrations used"]
["MEW_nonplant","118-1",61,0.64893617021276595,"The highest possible grade for this datum is acceptable.","Mytilus galloprovincialis","Not stated","24 h","LC50","Survival",">6000 ug/L","Mollusca","Mollusca","Bivalvia","Marinewater","25°C","Acute","Not stated","35 ppt","Vlahogianni TH and Valavanidis A (2007). Heavy-metal effects on lipid peroxidation and antioxidant defence enzymes in mussels Mytilus galloprovincialis. Chemistry and Ecology, 23(5), 361-371. ","188","Did not pass QA question 7 and nominal concentrations used"]
["MEW_nonplant","119-1",20,0.21276595744680851,"The highest possible grade for this datum is acceptable.","Arbacia punctulata","blastula","13 days","Not stated","Not stated","no value given","Echinodermata","Echinodermata","Echinoidea","Marinewater","Not stated","Chronic","Not stated","Not stated","Waterman AJ (1937). Effect of salts of heavy metals on development of the sea urchin, Arbacia punctulata. Biol Bull, 73((3)), 401-420. ","119","Did not pass QA question 7 and nominal concentrations used"]
["MEW_nonplant","120-1",68,0.72340425531914898,"","Saccostrea commercialis","embryo","48 h","LOEC","Normal development","200 ug/L","Mollusca","Mollusca","Bivalvia","Marinewater","24 oC","Chronic",8,"34 ppt","Wilson SP and Hyne RV (1997). Toxicity of acid-sulfate soil leachate and aluminum to embryos of the Sydney Rock oyster. Ecotoxicology and environmental safety, 37(1), 30-36. ","120","Use this data"]
["MEW_nonplant","120-2",68,0.72340425531914898,"","Saccostrea commercialis","embryo","48 h","NOEC","Normal development","100 ug/L","Mollusca","Mollusca","Bivalvia","Marinewater","24 oC","Chronic",8,"34 ppt","Wilson SP and Hyne RV (1997). Toxicity of acid-sulfate soil leachate and aluminum to embryos of the Sydney Rock oyster. Ecotoxicology and environmental safety, 37(1), 30-36. ","120","Use this data"]
["MEW_nonplant","120-3",68,0.72340425531914898,"","Saccostrea commercialis","embryo","48 h","NOEC","Normal development","150 ug/L","Mollusca","Mollusca","Bivalvia","Marinewater","24 oC","Chronic",8,"34 ppt","Wilson SP and Hyne RV (1997). Toxicity of acid-sulfate soil leachate and aluminum to embryos of the Sydney Rock oyster. Ecotoxicology and environmental safety, 37(1), 30-36. ","120","Use this data"]
["MEW_plant","121-1",37,0.40659340659340659,"The highest possible grade for this datum is acceptable.","Glenodinium halli","Not stated","48 h","Cell yield - chlorophyll a","Maximum non-toxic level  (NTL)","200 ug/L","Microalga","Myzozoa","Dinophyceae","Artificial seawater","20 oC","Chronic","8 - 8.2","28 ppt","Wilson WB and Freeburg LR (1980). Toxicity of metals to marine phytoplankton cultures. U.S. EPA, Narragansett, RI.","121","Did not pass QA question 7 and nominal concentrations used"]
["MEW_plant","121-2",37,0.40659340659340659,"The highest possible grade for this datum is acceptable.","Glenodinium halli","Not stated","48 h","Cell yield - chlorophyll a","Maximum non-toxic level  (NTL)","2000 ug/L","Microalga","Myzozoa","Dinophyceae","Artificial seawater","20 oC","Chronic","8 - 8.2","28 ppt","Wilson WB and Freeburg LR (1980). Toxicity of metals to marine phytoplankton cultures. U.S. EPA, Narragansett, RI.","121","Did not pass QA question 7 and nominal concentrations used"]
["MEW_plant","121-3",37,0.40659340659340659,"The highest possible grade for this datum is acceptable.","Gymnodinium splendens","Not stated","48 h","Cell yield - chlorophyll a","Maximum non-toxic level  (NTL)","100 ug/L","Microalga","Myzozoa","Dinophyceae","Artificial seawater","20 oC","Chronic","8 - 8.2","28 ppt","Wilson WB and Freeburg LR (1980). Toxicity of metals to marine phytoplankton cultures. U.S. EPA, Narragansett, RI.","121","Did not pass QA question 7 and nominal concentrations used"]
["MEW_plant","121-4",37,0.40659340659340659,"The highest possible grade for this datum is acceptable.","Gymnodinium splendens","Not stated","48 h","Cell yield - chlorophyll a","Maximum non-toxic level  (NTL)","4000 ug/L","Microalga","Myzozoa","Dinophyceae","Artificial seawater","20 oC","Chronic","8 - 8.2","28 ppt","Wilson WB and Freeburg LR (1980). Toxicity of metals to marine phytoplankton cultures. U.S. EPA, Narragansett, RI.","121","Did not pass QA question 7 and nominal concentrations used"]
["MEW_plant","121-5",37,0.40659340659340659,"The highest possible grade for this datum is acceptable.","Isochrysis galbana","Not stated","48 h","Cell yield - chlorophyll a","Maximum non-toxic level  (NTL)","500 ug/L","Microalga","Haptophyta","Prymnesiophyceae","Artificial seawater","20 oC","Chronic","8 - 8.2","28 ppt","Wilson WB and Freeburg LR (1980). Toxicity of metals to marine phytoplankton cultures. U.S. EPA, Narragansett, RI.","121","Did not pass QA question 7 and nominal concentrations used"]
["MEW_plant","121-6",37,0.40659340659340659,"The highest possible grade for this datum is acceptable.","Isochrysis galbana","Not stated","48 h","Cell yield - chlorophyll a","Maximum non-toxic level  (NTL)","20000 ug/L","Microalga","Haptophyta","Prymnesiophyceae","Artificial seawater","20 oC","Chronic","8 - 8.2","28 ppt","Wilson WB and Freeburg LR (1980). Toxicity of metals to marine phytoplankton cultures. U.S. EPA, Narragansett, RI.","121","Did not pass QA question 7 and nominal concentrations used"]
["MEW_plant","121-7",37,0.40659340659340659,"The highest possible grade for this datum is acceptable.","Thalassiosira pseudonana","Not stated","48 h","Cell yield - chlorophyll a","Maximum non-toxic level  (NTL)","7000 ug/L","Diatom","Ochrophyta","Bacillariophyceae","Artificial seawater","20 oC","Chronic","8 - 8.2","28 ppt","Wilson WB and Freeburg LR (1980). Toxicity of metals to marine phytoplankton cultures. U.S. EPA, Narragansett, RI.","121","Did not pass QA question 7 and nominal concentrations used"]
["MEW_plant","121-8",37,0.40659340659340659,"The highest possible grade for this datum is acceptable.","Thalassiosira pseudonana","Not stated","48 h","Cell yield - chlorophyll a","Maximum non-toxic level  (NTL)",">20000 ug/L","Diatom","Ochrophyta","Bacillariophyceae","Artificial seawater","20 oC","Chronic","8 - 8.2","28 ppt","Wilson WB and Freeburg LR (1980). Toxicity of metals to marine phytoplankton cultures. U.S. EPA, Narragansett, RI.","121","Did not pass QA question 7 and nominal concentrations used"]
["MEW_plant","122-1",48,0.52747252747252749,"","Isochrysis galbana","Not stated","96 h","NOEC","growth rate inhibition","25000 ug/L","Microalga","Haptophyta","Prymnesiophyceae","F/2 media without trace metals and without EDTA","20 oC","Chronic","8.1 - 8.3","34 ppt","Keller AA, Garner K, Miller RJ and Lenihan HS (2012). Toxicity of Nano-Zero Valent Iron to Freshwater and Marine Organisms. PLoS ONE, 7(8). ","122","Use this data. Did not pass QA question 7 and nominal concentrations used althrough background total Fe was measured in the media used (F/2 without EDTA).  The is  the better of the microalgal studies so will use this data as the score was >50%"]
["MEW_plant","122-2",48,0.52747252747252749,"","Isochrysis galbana","Not stated","96 h","NOEC","growth rate inhibition","50000 ug/L","Microalga","Haptophyta","Prymnesiophyceae","F/2 media without trace metals and without EDTA","20 oC","Chronic","8.1 - 8.3","34 ppt","Keller AA, Garner K, Miller RJ and Lenihan HS (2012). Toxicity of Nano-Zero Valent Iron to Freshwater and Marine Organisms. PLoS ONE, 7(8). ","122","Use this data. Did not pass QA question 7 and nominal concentrations used althrough background total Fe was measured in the media used (F/2 without EDTA).  The is  the better of the microalgal studies so will use this data as the score was >50%"]
["MEW_plant","122-3",48,0.52747252747252749,"","Isochrysis galbana","Not stated","96 h","LOEC","growth rate inhibition","50000 ug/L","Microalga","Haptophyta","Prymnesiophyceae","F/2 media without trace metals and without EDTA","20 oC","Chronic","8.1 - 8.3","34 ppt","Keller AA, Garner K, Miller RJ and Lenihan HS (2012). Toxicity of Nano-Zero Valent Iron to Freshwater and Marine Organisms. PLoS ONE, 7(8). ","122","Use this data. Did not pass QA question 7 and nominal concentrations used althrough background total Fe was measured in the media used (F/2 without EDTA).  The is  the better of the microalgal studies so will use this data as the score was >50%"]
["MEW_plant","122-4",48,0.52747252747252749,"","Isochrysis galbana","Not stated","96 h","LOEC","growth rate inhibition","75000 ug/L","Microalga","Haptophyta","Prymnesiophyceae","F/2 media without trace metals and without EDTA","20 oC","Chronic","8.1 - 8.3","34 ppt","Keller AA, Garner K, Miller RJ and Lenihan HS (2012). Toxicity of Nano-Zero Valent Iron to Freshwater and Marine Organisms. PLoS ONE, 7(8). ","122","Use this data. Did not pass QA question 7 and nominal concentrations used althrough background total Fe was measured in the media used (F/2 without EDTA).  The is  the better of the microalgal studies so will use this data as the score was >50%"]
["MEW_plant","122-5",48,0.52747252747252749,"","Isochrysis galbana","Not stated","96 h","IC50","growth rate inhibition","80000 ug/L","Microalga","Haptophyta","Prymnesiophyceae","F/2 media without trace metals and without EDTA","20 oC","Chronic","8.1 - 8.3","34 ppt","Keller AA, Garner K, Miller RJ and Lenihan HS (2012). Toxicity of Nano-Zero Valent Iron to Freshwater and Marine Organisms. PLoS ONE, 7(8). ","122","Use this data. Did not pass QA question 7 and nominal concentrations used althrough background total Fe was measured in the media used (F/2 without EDTA).  The is  the better of the microalgal studies so will use this data as the score was >50%"]
["MEW_plant","122-6",48,0.52747252747252749,"","Isochrysis galbana","Not stated","96 h","IC50","growth rate inhibition","100000 ug/L","Microalga","Haptophyta","Prymnesiophyceae","F/2 media without trace metals and without EDTA","20 oC","Chronic","8.1 - 8.3","34 ppt","Keller AA, Garner K, Miller RJ and Lenihan HS (2012). Toxicity of Nano-Zero Valent Iron to Freshwater and Marine Organisms. PLoS ONE, 7(8). ","122","Use this data. Did not pass QA question 7 and nominal concentrations used althrough background total Fe was measured in the media used (F/2 without EDTA).  The is  the better of the microalgal studies so will use this data as the score was >50%"]
["MEW_nonplant","123-1",48,0.51063829787234039,"","Mytilus galloprovincialis","embryo","48 h","NOEC","Normal development",">800 ug/L","Mollusca","Mollusca","Bivalvia","Marinewater","15°C","Chronic",8.1,"35 ppt","Kadar E, Simmance F, Martin O, Voulvoulis N, Widdicombe S, Mitov S, Lead JR and Readman JW (2010). The influence of engineered Fe2O3 nanoparticles and soluble (FeCl3) iron on the developmental toxicity caused by CO 2-induced seawater acidification. Environmental Pollution, 158(12), 3490-3497. ","123","Use this data. Did not pass QA question 7 but measured concentrations used and score is greater than 50% and this is the only mussel species. However, note that control normal development was 55%"]
["MEW_plant","124.1",49,0.53846153846153844,"The highest possible grade for this datum is acceptable.","Tetraselmis subcordiformis","Not stated","10 d","NOEC","growth rate inhibition","6700 ug/L","Microalga","Chlorophyta","Prasinophyceae","F/2 media","20 oC","Chronic","Not stated","20 ppt","Huang X, Wei L, Huang Z and Yan J (2014). Effect of high ferric ion concentrations on total lipids and lipid characteristics of Tetraselmis subcordiformis, Nannochloropsis oculata and Pavlova viridis. Journal of Applied Phycology, 26(1), 105-114. ","124.1","Did not pass QA question 7 and nominal concentrations used"]
["MEW_plant","124.2",49,0.53846153846153844,"The highest possible grade for this datum is acceptable.","Tetraselmis subcordiformis","Not stated","10 d","LOEC","growth rate inhibition","67000 ug/L","Microalga","Chlorophyta","Prasinophyceae","F/2 media","20 oC","Chronic","Not stated","20 ppt","Huang X, Wei L, Huang Z and Yan J (2014). Effect of high ferric ion concentrations on total lipids and lipid characteristics of Tetraselmis subcordiformis, Nannochloropsis oculata and Pavlova viridis. Journal of Applied Phycology, 26(1), 105-114. ","124.2","Did not pass QA question 7 and nominal concentrations used"]
["MEW_plant","124.3",49,0.53846153846153844,"The highest possible grade for this datum is acceptable.","Nannochloropsis oculata","Not stated","10 d","NOEC","growth rate inhibition","6700 ug/L","Microalga","Harosa","Ochrophyta","F/2 media","25°C","Chronic","Not stated","20 ppt","Huang X, Wei L, Huang Z and Yan J (2014). Effect of high ferric ion concentrations on total lipids and lipid characteristics of Tetraselmis subcordiformis, Nannochloropsis oculata and Pavlova viridis. Journal of Applied Phycology, 26(1), 105-114. ","124.2","Did not pass QA question 7 and nominal concentrations used"]
["MEW_plant","124.4",49,0.53846153846153844,"The highest possible grade for this datum is acceptable.","Nannochloropsis oculata","Not stated","10 d","LOEC","growth rate inhibition","67000 ug/L","Microalga","Harosa","Ochrophyta","F/2 media","25°C","Chronic","Not stated","20 ppt","Huang X, Wei L, Huang Z and Yan J (2014). Effect of high ferric ion concentrations on total lipids and lipid characteristics of Tetraselmis subcordiformis, Nannochloropsis oculata and Pavlova viridis. Journal of Applied Phycology, 26(1), 105-114. ","124.4","Did not pass QA question 7 and nominal concentrations used"]
["MEW_plant","124.5",49,0.53846153846153844,"The highest possible grade for this datum is acceptable.","Pavlova viridis","Not stated","10 d","NOEC","growth rate inhibition","6700 ug/L","Microalga","Haptophyta","Pavlovophyceae","F/2 media","20 oC","Chronic","Not stated","20 ppt","Huang X, Wei L, Huang Z and Yan J (2014). Effect of high ferric ion concentrations on total lipids and lipid characteristics of Tetraselmis subcordiformis, Nannochloropsis oculata and Pavlova viridis. Journal of Applied Phycology, 26(1), 105-114. ","124.5","Did not pass QA question 7 and nominal concentrations used"]
["MEW_plant","124.6",49,0.53846153846153844,"The highest possible grade for this datum is acceptable.","Pavlova viridis","Not stated","10 d","LOEC","growth rate inhibition","67000 ug/L","Microalga","Haptophyta","Pavlovophyceae","F/2 media","20 oC","Chronic","Not stated","20 ppt","Huang X, Wei L, Huang Z and Yan J (2014). Effect of high ferric ion concentrations on total lipids and lipid characteristics of Tetraselmis subcordiformis, Nannochloropsis oculata and Pavlova viridis. Journal of Applied Phycology, 26(1), 105-114. ","124.6","Did not pass QA question 7 and nominal concentrations used"]
["MEW_nonplant","125-1",31,0.32978723404255317,"The highest possible grade for this datum is acceptable.","Anthocidaris crassispina","embryo","27-30 h","NOEC","Normal development","210 ug/L","Echinodermata","Echinodermata","Echinoidea","Marinewater","28 oC","Chronic","Not stated","Not stated","Kobayashi N and Okamura H (2005). Effects of heavy metals on sea urchin embryo development. Part 2. Interactive toxic effects of heavy metals in synthetic mine effluents. Chemosphere, 61(8), 1198-1203. ","125","Did not pass QA question 7 and nominal concentrations used"]
["MEW_nonplant","126-1",85,0.9042553191489362,"","Acropora spathulata","gametes","5.5 h","EC10","Fertilization","26,000 µg/L total iron","Coral","Cnidaria","Anthozoa","Unfiltered natural seawater","24-25 oC","Chronic","7.88-8.45","37-39 ppt","Leigh-Smith J, Reichelt-Brushett A, Rose AL. 2018. The characterization of iron (III) in seawater and related toxicity to early life stages of scleractinian corals. Environmental Toxicology and Chemistry 37:1104-1114.","126","Based on measured unfiltered (total) Fe, Expt 1"]
["MEW_nonplant","126-2",85,0.9042553191489362,"","Acropora spathulata","gametes","5.5 h","EC10","Fertilization","12,000 µg/L total iron","Coral","Cnidaria","Anthozoa","Unfiltered natural seawater","24-25 oC","Chronic","7.88-8.45","37-39 ppt","Leigh-Smith J, Reichelt-Brushett A, Rose AL. 2018. The characterization of iron (III) in seawater and related toxicity to early life stages of scleractinian corals. Environmental Toxicology and Chemistry 37:1104-1114.","126","Based on measured unfiltered (total) Fe, Expt 2"]
["MEW_nonplant","126-3",85,0.9042553191489362,"","Acropora spathulata","gametes","5.5 h","EC10","Fertilization","21,000 µg/L total iron","Coral","Cnidaria","Anthozoa","Unfiltered natural seawater","24-25 oC","Chronic","7.88-8.45","37-39 ppt","Leigh-Smith J, Reichelt-Brushett A, Rose AL. 2018. The characterization of iron (III) in seawater and related toxicity to early life stages of scleractinian corals. Environmental Toxicology and Chemistry 37:1104-1114.","126","Based on measured unfiltered (total) Fe, Expt 3"]
["MEW_nonplant","126-4",85,0.9042553191489362,"","Acropora spathulata","gametes","5.5 h","EC50","Fertilization","66,000 µg/L total iron","Coral","Cnidaria","Anthozoa","Unfiltered natural seawater","24-25 oC","Chronic","7.88-8.45","37-39 ppt","Leigh-Smith J, Reichelt-Brushett A, Rose AL. 2018. The characterization of iron (III) in seawater and related toxicity to early life stages of scleractinian corals. Environmental Toxicology and Chemistry 37:1104-1114.","126","Based on measured unfiltered (total) Fe, Expt 1"]
["MEW_nonplant","126-5",85,0.9042553191489362,"","Acropora spathulata","gametes","5.5 h","EC50","Fertilization","40,000 µg/L total iron","Coral","Cnidaria","Anthozoa","Unfiltered natural seawater","24-25 oC","Chronic","7.88-8.45","37-39 ppt","Leigh-Smith J, Reichelt-Brushett A, Rose AL. 2018. The characterization of iron (III) in seawater and related toxicity to early life stages of scleractinian corals. Environmental Toxicology and Chemistry 37:1104-1114.","126","Based on measured unfiltered (total) Fe, Expt 2"]
["MEW_nonplant","126-6",85,0.9042553191489362,"","Acropora spathulata","gametes","5.5 h","EC50","Fertilization","55,000 µg/L total iron","Coral","Cnidaria","Anthozoa","Unfiltered natural seawater","24-25 oC","Chronic","7.88-8.45","37-39 ppt","Leigh-Smith J, Reichelt-Brushett A, Rose AL. 2018. The characterization of iron (III) in seawater and related toxicity to early life stages of scleractinian corals. Environmental Toxicology and Chemistry 37:1104-1114.","126","Based on measured unfiltered (total) Fe, Expt 3"]
["MEW_nonplant","126-7",85,0.9042553191489362,"","Acropora spathulata","gametes","5.5 h","NOEC","Fertilization","3,000 µg/L total iron","Coral","Cnidaria","Anthozoa","Unfiltered natural seawater","24-25 oC","Chronic","7.88-8.45","37-39 ppt","Leigh-Smith J, Reichelt-Brushett A, Rose AL. 2018. The characterization of iron (III) in seawater and related toxicity to early life stages of scleractinian corals. Environmental Toxicology and Chemistry 37:1104-1114.","126","Based on measured unfiltered (total) Fe, Expt 1"]
["MEW_nonplant","126-8",85,0.9042553191489362,"","Acropora spathulata","gametes","5.5 h","NOEC","Fertilization","2,185 µg/L total iron","Coral","Cnidaria","Anthozoa","Unfiltered natural seawater","24-25 oC","Chronic","7.88-8.45","37-39 ppt","Leigh-Smith J, Reichelt-Brushett A, Rose AL. 2018. The characterization of iron (III) in seawater and related toxicity to early life stages of scleractinian corals. Environmental Toxicology and Chemistry 37:1104-1114.","126","Based on measured unfiltered (total) Fe, Expt 2"]
["MEW_nonplant","126-9",85,0.9042553191489362,"","Acropora spathulata","gametes","5.5 h","NOEC","Fertilization","2,185 µg/L total iron","Coral","Cnidaria","Anthozoa","Unfiltered natural seawater","24-25 oC","Chronic","7.88-8.45","37-39 ppt","Leigh-Smith J, Reichelt-Brushett A, Rose AL. 2018. The characterization of iron (III) in seawater and related toxicity to early life stages of scleractinian corals. Environmental Toxicology and Chemistry 37:1104-1114.","126","Based on measured unfiltered (total) Fe, Expt 3"]
["MEW_nonplant","126-10",80,0.85106382978723405,"","Acropora spathulata","gametes","5.5 h","LOEC","Fertilization","25,300 µg/L total iron","Coral","Cnidaria","Anthozoa","Unfiltered natural seawater","24-25 oC","Chronic","7.88-8.45","37-39 ppt","Leigh-Smith J, Reichelt-Brushett A, Rose AL. 2018. The characterization of iron (III) in seawater and related toxicity to early life stages of scleractinian corals. Environmental Toxicology and Chemistry 37:1104-1114.","126","Based on measured unfiltered (total) Fe, Expt 1"]
["MEW_nonplant","126-11",80,0.85106382978723405,"","Acropora spathulata","gametes","5.5 h","LOEC","Fertilization","27,400 µg/L total iron","Coral","Cnidaria","Anthozoa","Unfiltered natural seawater","24-25 oC","Chronic","7.88-8.45","37-39 ppt","Leigh-Smith J, Reichelt-Brushett A, Rose AL. 2018. The characterization of iron (III) in seawater and related toxicity to early life stages of scleractinian corals. Environmental Toxicology and Chemistry 37:1104-1114.","126","Based on measured unfiltered (total) Fe, Expt 2"]
["MEW_nonplant","126-12",80,0.85106382978723405,"","Acropora spathulata","gametes","5.5 h","LOEC","Fertilization","27,400 µg/L total iron","Coral","Cnidaria","Anthozoa","Unfiltered natural seawater","24-25 oC","Chronic","7.88-8.45","37-39 ppt","Leigh-Smith J, Reichelt-Brushett A, Rose AL. 2018. The characterization of iron (III) in seawater and related toxicity to early life stages of scleractinian corals. Environmental Toxicology and Chemistry 37:1104-1114.","126","Based on measured unfiltered (total) Fe, Expt 3"]
["MEW_nonplant","126-13",85,0.9042553191489362,"","Platygyra daedalea","gametes","5.5 h","EC50","Fertilization","25,000 µg/L total iron","Coral","Cnidaria","Anthozoa","Unfiltered natural seawater","24-25 oC","Chronic","7.88-8.45","37-39 ppt","Leigh-Smith J, Reichelt-Brushett A, Rose AL. 2018. The characterization of iron (III) in seawater and related toxicity to early life stages of scleractinian corals. Environmental Toxicology and Chemistry 37:1104-1114.","126","Based on measured unfiltered (total) Fe, Expt 4"]
["MEW_nonplant","126-14",81,0.9042553191489362,"","Platygyra daedalea","gametes","5.5 h","NOEC","Fertilization","2,750 µg/L total iron","Coral","Cnidaria","Anthozoa","Unfiltered natural seawater","24-25 oC","Chronic","7.88-8.45","37-39 ppt","Leigh-Smith J, Reichelt-Brushett A, Rose AL. 2018. The characterization of iron (III) in seawater and related toxicity to early life stages of scleractinian corals. Environmental Toxicology and Chemistry 37:1104-1114.","126","Based on measured unfiltered (total) Fe, Expt 4"]
["MEW_nonplant","126-15",80,0.85106382978723405,"","Platygyra daedalea","gametes","5.5 h","LOEC","Fertilization","27,200 µg/L total iron","Coral","Cnidaria","Anthozoa","Unfiltered natural seawater","24-25 oC","Chronic","7.88-8.45","37-39 ppt","Leigh-Smith J, Reichelt-Brushett A, Rose AL. 2018. The characterization of iron (III) in seawater and related toxicity to early life stages of scleractinian corals. Environmental Toxicology and Chemistry 37:1104-1114.","126","Based on measured unfiltered (total) Fe, Expt 4"]
["MEW_nonplant","126-16",83,0.88297872340425498,"","Platygyra daedalea","larvae","24 h","LC10","Survival","22,000 µg/L total iron","Coral","Cnidaria","Anthozoa","Unfiltered natural seawater","23.5-26 oC","Acute","7.81-8.37","37-39 ppt","Leigh-Smith J, Reichelt-Brushett A, Rose AL. 2018. The characterization of iron (III) in seawater and related toxicity to early life stages of scleractinian corals. Environmental Toxicology and Chemistry 37:1104-1114.","126","Based on measured unfiltered (total) Fe"]
["MEW_nonplant","126-17",83,0.88297872340425498,"","Platygyra daedalea","larvae","24 h","LC50","Survival","165,000 µg/L total iron","Coral","Cnidaria","Anthozoa","Unfiltered natural seawater","23.5-26 oC","Acute","7.81-8.37","37-39 ppt","Leigh-Smith J, Reichelt-Brushett A, Rose AL. 2018. The characterization of iron (III) in seawater and related toxicity to early life stages of scleractinian corals. Environmental Toxicology and Chemistry 37:1104-1114.","126","Based on measured unfiltered (total) Fe"]
["MEW_nonplant","126-18",87,0.92553191489361697,"","Platygyra daedalea","larvae","48 h","LC50","Survival","69,000 µg/L total iron","Coral","Cnidaria","Anthozoa","Unfiltered natural seawater","23.5-26 oC","Acute","7.81-8.37","37-39 ppt","Leigh-Smith J, Reichelt-Brushett A, Rose AL. 2018. The characterization of iron (III) in seawater and related toxicity to early life stages of scleractinian corals. Environmental Toxicology and Chemistry 37:1104-1114.","126","Based on measured unfiltered (total) Fe"]
["MEW_nonplant","126-19",87,0.92553191489361697,"","Platygyra daedalea","larvae","72 h","LC50","Survival","47,000 µg/L total iron","Coral","Cnidaria","Anthozoa","Unfiltered natural seawater","23.5-26 oC","Acute","7.81-8.37","37-39 ppt","Leigh-Smith J, Reichelt-Brushett A, Rose AL. 2018. The characterization of iron (III) in seawater and related toxicity to early life stages of scleractinian corals. Environmental Toxicology and Chemistry 37:1104-1114.","126","Based on measured unfiltered (total) Fe"]
["MEW_nonplant","126-20",82,0.87234042553191493,"","Platygyra daedalea","larvae","24 h","NOEC","Survival","260 µg/L total iron","Coral","Cnidaria","Anthozoa","Unfiltered natural seawater","23.5-26 oC","Acute","7.81-8.37","37-39 ppt","Leigh-Smith J, Reichelt-Brushett A, Rose AL. 2018. The characterization of iron (III) in seawater and related toxicity to early life stages of scleractinian corals. Environmental Toxicology and Chemistry 37:1104-1114.","126","Based on measured unfiltered (total) Fe"]
["MEW_nonplant","126-21",82,0.87234042553191493,"","Platygyra daedalea","larvae","48 h","NOEC","Survival","2,750 µg/L total iron","Coral","Cnidaria","Anthozoa","Unfiltered natural seawater","23.5-26 oC","Acute","7.81-8.37","37-39 ppt","Leigh-Smith J, Reichelt-Brushett A, Rose AL. 2018. The characterization of iron (III) in seawater and related toxicity to early life stages of scleractinian corals. Environmental Toxicology and Chemistry 37:1104-1114.","126","Based on measured unfiltered (total) Fe"]
["MEW_nonplant","126-22",82,0.87234042553191493,"","Platygyra daedalea","larvae","72 h","NOEC","Survival","2,750 µg/L total iron","Coral","Cnidaria","Anthozoa","Unfiltered natural seawater","23.5-26 oC","Acute","7.81-8.37","37-39 ppt","Leigh-Smith J, Reichelt-Brushett A, Rose AL. 2018. The characterization of iron (III) in seawater and related toxicity to early life stages of scleractinian corals. Environmental Toxicology and Chemistry 37:1104-1114.","126","Based on measured unfiltered (total) Fe"]
["MEW_nonplant","126-23",82,0.87234042553191493,"","Platygyra daedalea","larvae","24 h","LOEC","Survival","2,749 µg/L total iron","Coral","Cnidaria","Anthozoa","Unfiltered natural seawater","23.5-26 oC","Acute","7.81-8.37","37-39 ppt","Leigh-Smith J, Reichelt-Brushett A, Rose AL. 2018. The characterization of iron (III) in seawater and related toxicity to early life stages of scleractinian corals. Environmental Toxicology and Chemistry 37:1104-1114.","126","Based on measured unfiltered (total) Fe"]
["MEW_nonplant","126-24",82,0.87234042553191493,"","Platygyra daedalea","larvae","48 h","LOEC","Survival","27,200 µg/L total iron","Coral","Cnidaria","Anthozoa","Unfiltered natural seawater","23.5-26 oC","Acute","7.81-8.37","37-39 ppt","Leigh-Smith J, Reichelt-Brushett A, Rose AL. 2018. The characterization of iron (III) in seawater and related toxicity to early life stages of scleractinian corals. Environmental Toxicology and Chemistry 37:1104-1114.","126","Based on measured unfiltered (total) Fe"]
["MEW_nonplant","126-25",82,0.87234042553191493,"","Platygyra daedalea","larvae","72 h","LOEC","Survival","27,200 µg/L total iron","Coral","Cnidaria","Anthozoa","Unfiltered natural seawater","23.5-26 oC","Acute","7.81-8.37","37-39 ppt","Leigh-Smith J, Reichelt-Brushett A, Rose AL. 2018. The characterization of iron (III) in seawater and related toxicity to early life stages of scleractinian corals. Environmental Toxicology and Chemistry 37:1104-1114.","126","Based on measured unfiltered (total) Fe"]

{"sheet":"MEW nonplant","index":5,"n_rows":84,"n_cols":53,"rows_kept":84,"cut":false,"hidden":false,"merged":[[68,2,71,2],[68,7,71,7],[56,7,58,7],[65,7,67,7],[52,2,54,2],[52,7,54,7],[59,7,61,7],[65,2,67,2],[62,2,64,2],[62,7,64,7],[43,2,45,2],[43,7,45,7],[46,2,48,2],[46,7,48,7],[49,2,51,2],[49,7,51,7],[34,2,36,2],[34,7,36,7],[37,2,39,2],[37,7,39,7],[40,2,42,2],[40,7,42,7],[25,2,27,2],[25,7,27,7],[28,2,30,2],[28,7,30,7],[31,2,33,2],[31,7,33,7],[17,2,19,2],[17,7,19,7],[20,2,21,2],[20,7,21,7],[22,2,24,2],[22,7,24,7],[3,4,7,4],[9,2,9,4],[11,2,13,2],[11,7,13,7],[14,2,16,2],[14,7,16,7]]}
[null,1,"Fill in the blank cells below, based on information provided in the paper being assessed. You can either pick an option from the dropdown list or add the appropriate detail using the 'Add to list' button. ",null,null,{"$f":"IF(BA3=\"\",0,1)","v":1},null,null,null,null,null,null,null,null,"* All the text in RED are used for drop down list ,make changes with caution."]
[null,null,"Category",{"$f":"IF(AF3=\"\",0,1)","v":1},"MEW_nonplant",{"$f":"IF(E3=\"\",0,1)","v":1},"Citation No.",{"$f":"IF(ISERROR(FIND(\"-\",E3)),E3,LEFT(E3,FIND(\"-\",E3)-1))","v":"126"},null,"Taxonomic group",null,null,null,null,"Species",null,null,"Lifestage",null,null,"Exposure duration",null,null,"Measure of toxicity",null,null,"Toxicity endpoint",null,null,"Taxonomic group",null,null,"Phylum",null,null,"Class",null,null,"Media",null,null,"Temperature ",null,null,"Acute Or Chronic",null,null,"PH",null,null,"Salinity/Comdictivity"]
[null,null,"Paper and data unique identifier(eg. 1-1,10-150)",{"$f":"IF(AI3=\"\",0,1)","v":1},"126-25",{"$f":"IF(E4=\"\",0,1)","v":1},"Species (Scientific name)",null,null,"Phylum",null,null,null,null,"Aedes albopictus",28,{"$f":"IF(P3=0,\"\",INDEX(O3:O105,P3))","v":"Platygyra daedalea"},"1 month",14,{"$f":"IF(S3=0,\"\",INDEX(R3:R105,S3))","v":"larvae"},"10 min",12,{"$f":"IF(V3=0,\"\",INDEX(U3:U105,V3))","v":"72 h"},"EC10",9,{"$f":"IF(Y3=0,\"\",INDEX(X3:X105,Y3))","v":"LOEC"},"Changes in biomarkers",9,{"$f":"IF(AB3=0,\"\",INDEX(AA3:AA105,AB3))","v":"Survival"},"Annelida",9,{"$f":"IF(AE3=0,\"\",INDEX(AD3:AD105,AE3))","v":"Coral"},"Annelida",10,{"$f":"IF(AH3=0,\"\",INDEX(AG3:AG105,AH3))","v":"Cnidaria"},"Bivalvia",13,{"$f":"IF(AK3=0,\"\",INDEX(AJ3:AJ105,AK3))","v":"Anthozoa"},"Estuarine",6,{"$f":"IF(AN3=0,\"\",INDEX(AM3:AM105,AN3))","v":"Unfiltered natural seawater"},20,16,{"$f":"IF(AQ3=0,\"\",INDEX(AP3:AP105,AQ3))","v":"23.5-26 oC"},"Acute",1,{"$f":"IF(AT3=0,\"\",INDEX(AS3:AS105,AT3))","v":"Acute"},7.3,12,{"$f":"IF(AW3=0,\"\",INDEX(AV3:AV105,AW3))","v":"7.81-8.37"},7,15,{"$f":"IF(AZ3=0,\"\",INDEX(AY3:AY105,AZ3))","v":"37-39 ppt"}]
[null,null,"Citation",{"$f":"IF(AL3=\"\",0,1)","v":1},"Leigh-Smith J, Reichelt-Brushett A, Rose AL. 2018. The characterization of iron (III) in seawater and related toxicity to early life stages of scleractinian corals. Environmental Toxicology and Chemistry 37:1104-1114.",{"$f":"IF(H8=\"\",0,1)","v":1},"Lifestage",null,null,"Class",null,null,null,null,"Anthocidaris crassipina",null,null,"1 year old",null,null,"11 hour",null,null,"EC50",null,null,"Fertilisation rate",null,null,"Bacteria",null,null,"Chlorophyta",null,null,"Branchiopoda",null,null,"Freshwater",null,null,"15°C",null,null,"Chronic",null,null,7.8,null,null,"150 uS/cm"]
[null,null,null,{"$f":"IF(AO3=\"\",0,1)","v":1},null,{"$f":"IF(AX3=\"\",0,1)","v":1},"Exposure duration",null,null,"Media",null,null,null,null,"Anthocidaris crassispina",null,null,"Adult",null,null,"12-120 h",null,null,"LC15",null,null,"Hatching",null,null,"Crustacea",null,null,"Chordata",null,null,"Branchiopoda",null,null,"Marinewater",null,null,"16 oC",null,null,"N.A.",null,null,8,null,null,"30 ppt"]
[null,null,null,{"$f":"IF(AR3=\"\",0,1)","v":1},null,{"$f":"IF(Q3=\"\",0,1)","v":1},"Measure of toxicity",null,null,"Temperature ",null,null,null,null,"Arbacia punctulata",null,null,"blastula",null,null,"13 days",null,null,"LC5",null,null,"Mortality",null,null,"Echinodermata",null,null,"Crustacea",null,null,"Chlorophyceae",null,null,"N.A.",null,null,"18 oC",null,null,null,null,null,8.1,null,null,"32 ppt"]
[null,null,null,{"$f":"IF(AU3=\"\",0,1)","v":1},null,{"$f":"IF(T3=\"\",0,1)","v":1},"Toxicity endpoint",null,null,"Acute Or Chronic ",null,null,null,null,"Artemia salina",null,null,"Egg",null,null,"168 h",null,null,"LC50",null,null,"N.A.",null,null,"Fish ",null,null,"Echinodermata",null,null,"Copepoda",null,null,"Not stated",null,null,"19-21 oC",null,null,null,null,null,"7.5 - 8.4",null,null,"32.94 - 33.53 ppt"]
[null,null,null,null,null,{"$f":"IF(W3=\"\",0,1)","v":1},"Toxicity value","27,200 µg/L total iron",null,"PH",null,null,null,null,"Australian Bass",null,null,"embryo",null,null,"20 d",null,null,"LC50",null,null,"Normal development",null,null,"Microalga",null,null,"Mollusca",null,null,"Echinoidea",null,null,"Unfiltered natural seawater",null,null,"20 oC",null,null,null,null,null,"8.0 - 8.1",null,null,"34 ppt"]
[null,2,"Select the appropriate answer option to each question. Comments can be added to the cells in column H.",null,null,{"$f":"IF(Z3=\"\",0,1)","v":1},null,null,null,"Salinity/Conductivity",null,null,null,null,"Cancer anthonyi",null,null,"embryo 1 h post fert.",null,null,"24 h",null,null,"LC90",null,null,"Not stated",null,null,"Mollusca",null,null,"N.A.",null,null,"Gammaproteobacteria",null,null,null,null,null,"21 oC",null,null,null,null,null,"N.A.",null,null,"35 ppt"]
[null,"*","If the selected answer option does not work try clicking on any other cell first and then click back on the answer option again.",null,null,{"$f":"IF(AC3=\"\",0,1)","v":1},null,null,null,null,null,null,null,null,"Cardium edule",null,null,"N.A.",null,null,"24, 48, 72, 96 h",null,null,"LC99",null,null,"Reproduction",null,null,"N.A.",null,null,"Proteobacteria",null,null,"Gastropoda",null,null,null,null,null,"22.3 oC",null,null,null,null,null,"Not stated",null,null,"37.5 ppt"]
[null,"No.","Question","Marks Awarded","Answer Options","Option References","Scores","Answers",null,null,null,null,null,null,"Crangon crangon",null,null,"Nauplii",null,null,"27-30 h",null,null,"LOEC",null,null,"Survival",null,null,"Coral",null,null,"Tracheophyta",null,null,"Malacostraca",null,null,null,null,null,"24 oC",null,null,null,null,null,"PH11",null,null,"38 ppt"]
[null,null,"Was the duration of the exposure stated (e.g. 48 or 96 h)?",10,null,1,{"$f":"IF(F15=0,0,INDEX($D12:$D13,F12,1))","v":10},"48 h",null,null,null,null,null,null,"Fundulus heteroclitus",null,null,"Not stated",null,null,"30 min",null,null,"LT50",null,null,"Fertilization",null,null,null,null,null,"Cnidaria",null,null,"N.A.",null,null,null,null,null,"25°C",null,null,null,null,null,"PH7.0",null,null,"7 ppt"]
[null,1,null,0,null,null,null,null,null,null,null,null,null,null,"Haliotis rubra",null,null,"postlarval",null,null,"48 h",null,null,"N.A.",null,null,null,null,null,null,null,null,null,null,null,"Pisces",null,null,null,null,null,"26.8 - 27.6 oC",null,null,null,null,null,"7.88-8.45",null,null,"7.3 and 18.8 ppt"]
[null,null,null,null,null,null,null,null,null,null,null,null,null,null,"Idotea baltica",null,null,"Sperm",null,null,"72 h",null,null,"NOEC",null,null,null,null,null,null,null,null,null,null,null,"Polychaeta",null,null,null,null,null,"28 oC",null,null,null,null,null,"7.81-8.37",null,null,"N.A."]
[null,null,"Was the biological endpoint (e.g., immobilization or population growth) stated and defined (10 marks)? Award 5 marks if the biological endpoint is only stated.",10,null,1,{"$f":"IF(F15=0,0,INDEX($D15:$D17,F15,1))","v":10},"Defined as alive if motile or had an elongate shape",null,null,null,null,null,null,"Litopenaeus vannamei",null,null,"gametes",null,null,"96 h",null,null,"Not stated",null,null,null,null,null,null,null,null,null,null,null,"Anthozoa",null,null,null,null,null,"N.A.",null,null,null,null,null,null,null,null,"Not stated"]
[null,2,null,5,null,null,null,null,null,null,null,null,null,null,"Mytilus galloprovincialis",null,null,"larvae",null,null,"N.A.",null,null,"LC10",null,null,null,null,null,null,null,null,null,null,null,null,null,null,null,null,null,"Not stated",null,null,null,null,null,null,null,null,"37-39 ppt"]
[null,null,null,0,null,null,null,null,null,null,null,null,null,null,"N.A.",null,null,null,null,null,"Not stated",null,null,null,null,null,null,null,null,null,null,null,null,null,null,null,null,null,null,null,null,"24-25 oC",null,null,null,null,null,null,null,null,"37-39 ppt"]
[null,null,"Was the biological effect stated (e.g. LC or NOEC)?",5,null,1,{"$f":"IF(F18=0,0,INDEX($D18:$D19,F18,1))","v":5},"LOEC",null,null,null,null,null,null,"Nitocra spinipes",null,null,null,null,null,"30 min",null,null,null,null,null,null,null,null,null,null,null,null,null,null,null,null,null,null,null,null,"23.5-26 oC"]
[null,3,null,0,null,null,null,null,null,null,null,null,null,null,"Ophryotrocha diadema",null,null,null,null,null,"5.5 h"]
[null,null,null,null,null,null,null,null,null,null,null,null,null,null,"Ophryotrocha labronica"]
[null,4,"Was the biological effect quantified (e.g. 50% effect, 25% effect)? \nNote: The effect for NOEC and LOEC data must be quantified.",5,null,2,{"$f":"IF(F21=0,0,INDEX($D21:$D22,F21,1))","v":0},null,null,null,null,null,null,null,"Paracentrotus lividus"]
[null,null,null,0,null,null,null,null,null,null,null,null,null,null,"Periophthalmus waltoni"]
[null,5,"Were appropriate controls (e.g. a no-toxicant control and/or solvent control) used?",5,null,1,{"$f":"IF(F23=0,0,INDEX($D23:$D24,F23,1))","v":5},null,null,null,null,null,null,null,"Perna perna"]
[null,null,null,0,null,null,null,null,null,null,null,null,null,null,"Photobacterium phosphoreum"]
[null,null,null,null,null,null,null,null,null,null,null,null,null,null,"Psammechinus microtuberculatus"]
[null,6,"Was each control and contaminant concentration at least duplicated?",5,null,1,{"$f":"IF(F26=0,0,INDEX($D26:$D27,F26,1))","v":5},"5 replicates",null,null,null,null,null,null,"Saccostrea commercialis"]
[null,null,null,0,null,null,null,null,null,null,null,null,null,null,"Sphaerechinus granularis"]
[null,null,null,null,null,null,null,null,null,null,null,null,null,null,"Therapon humeralis"]
[null,7,"Were test acceptability criteria stated (e.g. mortality in controls must not exceed a certain percentage) (5 marks)?\nOR Were test acceptability criteria inferred (e.g. test method used [USEPA, OECD, ASTM etc.]) (award 2 marks). \nNote: Data that fail the acceptability criteria are automatically deemed to be of unacceptable quality and must not be used. ",5,null,2,{"$f":"IF(F29=0,0,INDEX($D29:$D31,F29,1))","v":2},"Previous method development had been conducted. The control survival rate was 87% at 72-h (not given for 48-h). Because it is a tropical bioassay, there aren't standard methods in standardized texts.",null,null,null,null,null,null,"Acropora spathulata"]
[null,null,null,2,null,null,null,null,null,null,null,null,null,null,"Platygyra daedalea"]
[null,null,null,0]
[null,8,"Were the characteristics of the test organism (e.g. length, mass, age) stated?",5,null,1,{"$f":"IF(F32=0,0,INDEX($D32:$D34,F32,1))","v":5},"4.5 day old larvae"]
[null,null,null,0]
[]
[null,9,"Was the type of test media used stated?",5,null,1,{"$f":"IF(F35=0,0,INDEX($D35:$D37,F35,1))","v":5},"unfiltered sperm-free natural seawater"]
[null,null,null,0]
[]
[null,null,"Was the type of exposure (e.g. static, flow through) stated? ",4,null,2,{"$f":"IF(F38=0,0,INDEX($D38:$D40,F38,1))","v":0},"static renewal every 1-2 d"]
[null,10,null,0]
[]
[null,null,"Were the contaminant concentrations measured at the beginning and end of the exposure (4 marks)? Award 2 marks if they were measured only once during the test.\nNote: If the concentrations were not measured then automatically the data cannot be high quality. ",4,null,1,{"$f":"IF(F41=0,0,INDEX($D41:$D43,F41,1))","v":4},"Filtered (0.45 µm) and unfiltered (total Fe) water samples were collected, acidified, stored at 4oC until analysis by ICP-OES"]
[null,11,null,2]
[null,null,null,0]
[null,null,"Were parallel reference toxicant toxicity tests conducted?",4,null,1,{"$f":"IF(F44=0,0,INDEX($D44:$D46,F44,1))","v":4}]
[null,12,null,0]
[]
[null,null,"Was there a concentration–response relationship either observable or stated?",4,null,1,{"$f":"IF(F47=0,0,INDEX($D47:$D49,F47,1))","v":4}]
[null,13,null,0]
[]
[null,null,"Was an appropriate statistical method or model used to determine the toxicity?\nNote: They should be accepted by a recognised national or international regulatory body (e.g. USEPA, OECD, ASTM). ",4,null,1,{"$f":"IF(F50=0,0,INDEX($D50:$D52,F50,1))","v":4},"ANOVA with Tukey HSD using R"]
[null,14,null,0]
[]
[null,15,"For LC/EC/BEC data was an estimate of variability provided? \nOR \nFor NO EC/LOEC data was the significance level 0.05 or less?  \n\n",4,null,1,{"$f":"IF(F53=0,0,INDEX($D53:$D55,F53,1))","v":4},"P<0.05"]
[null,null,null,0]
[]
[null,16,"Were the following parameters measured and stated? (3 marks if measured and stated, 1 mark if just measured)."]
[null,null,null,3,null,1,{"$f":"IF(F57=0,0,INDEX($D57:$D59,F57,1))","v":3},"37-39 (no units given but assume ppt)"]
[null,16.100000000000001,"Conductivity/Salinity",1]
[null,null,null,0]
[null,null,null,3,null,1,{"$f":"IF(F60=0,0,INDEX($D60:$D62,F60,1))","v":3},"6.08-7.92 mg/L DO"]
[null,16.2,"Dissolved Oxygen",1]
[null,null,null,0]
[null,null,"pH",3,null,1,{"$f":"IF(F63=0,0,INDEX(D63:D65,F63,1))","v":3},"7.81-8.37 pH units"]
[null,16.3,null,1]
[null,null,null,0]
[null,null,"Was the temperature measured and stated (3 marks)? Award 1 mark if the temperature was measured but not stated or if only the temperature settings of the room or chamber are stated.\n\n",3,null,1,{"$f":"IF(F66=0,0,INDEX(D66:D68,F66,1))","v":3},"23.5-26 oC"]
[null,17,null,1]
[null,null,null,0]
[null,null,"Were test solutions, blanks and/or controls tested for contamination OR were analytical reagent grade chemicals used or the highest possible purity chemicals used for the experiment? (3 marks).",3,null,1,{"$f":"IF(F69=0,0,INDEX($D69:$D70,F69,1))","v":3},"High purity FeCl3 used 97% ACS Sigma-Aldrich"]
[null,18,null,0]
[]
[null,null,null,null,null,null,null,null,{"$f":"(COUNTIF(F12:F70,\"=0\"))+COUNTIF(F1:F10,\"=0\")+COUNTIF(D2:D7,\"=0\")","v":0}]
[]
[]
[null,null,"Total score",null,null,null,{"$f":"IF(SUM(G12:G69)=0,\"\",SUM(G12:G69))","v":82}]
[null,null,"Total Max. possible score for the various types of data and contaminants ",null,{"$f":"D12+D15+D18+D21+D23+D26+D29+D32+D35+D38+D41+D44+D47+D50+D53+D57+D60+D66+D69+D63","v":94}]
[null,null,"Quality Score",null,{"$f":"\"= [Total score / Total possible score] * 100 = \"","v":"= [Total score / Total possible score] * 100 = "},null,{"$f":"IF(ISERROR(G75/E76),#N/A,G75/E76)","v":0.87234042553191493},{"$f":"IF(F41=3,\"The highest possible grade for this datum is acceptable.\",\"\")","v":""}]
[]
[null,null,"H = high quality                           Quality score ≥ 80%"]
[null,null,"A = acceptable quality         > 50% Quality score < 80%  "]
[null,null,"U = unacceptable quality              Quality score ≤ 50%"]
[]
[3,null,"Click the 'Save & Update' button to save and export the answers to the 'All results' worksheet. "]
[null,null,"Select the 'Reset Answers' button if you wish to clear all answers."]

{"sheet":"MEW nonplant_WS","index":6,"n_rows":221,"n_cols":24,"rows_kept":221,"cut":false,"hidden":false,"merged":[]}
[]
["Question No.",1,2,3,4,5,6,7,8,9,10,11,12,13,14,15,16.100000000000001,16.2,16.3,17,18,"Total Score","Quality Score"]
["Short Questions","Duration of the exposure ","Biological endpoint","Biological effect stated or not","Biological effect quantified or not","Appropriate controls","Control & contaminant concentration","Test acceptability criteria","Characteristics of the test organism"," Type of test media","Type of exposure","Contaminant concentrations","Parallel reference toxicant toxicity tests","Concentration–response relationship","Determine the toxicity","NOEC/LOEC or LC/EC/BEC","Conductivity/Salinity","Dissolved Oxygen","PH","Temperature","Grade or purity"]
["Marks Awarded ","10 or 0","10,5 or 0","5 or 0 ","5 or 0 ","5 or 0 ","5 or 0 ","5 or 0 ","5 or 0 ","5 or 0 ","4 or 0","4 or 2 or 0","4 or 2","4 or 2","4 or 2","4 or 2","3 or 1 or 0","3 or 1 or 0","3 or 1 or 0","3 or 0","3 or 0 "]
["Max. Possible Score",10,10,5,5,5,5,5,5,5,4,4,4,4,4,4,3,3,3,3,3,{"$f":"SUM(B5:U5)","v":94}]
["Category","MEW_nonplant","Paper and data unique identifier(eg. 1-1,10-150)","100-1"]
["Scores",10,5,0,0,5,5,0,5,5,4,0,0,4,0,0,0,0,0,1,0,44,0.46808510638297873,"The highest possible grade for this datum is acceptable."]
["Answers","multiple time points at 12, 24, 72 and 120 h","Measurement of Serotonin and Dopamine in various tissues","","","","","","8-12 cm length","seawater - no other details given","Static renewal inferred by water changes","one concentration used","","Dopamin or seratonin measured over time","N.A. no toxicity endpoint was calculated","","","","","",""]
["Category","MEW_nonplant","Paper and data unique identifier(eg. 1-1,10-150)","101-1"]
["Scores",10,10,5,5,0,0,0,5,5,4,0,0,0,0,4,3,0,3,1,0,55,0.58510638297872342,"The highest possible grade for this datum is acceptable."]
["Answers","96 h","Survival","LC",50,"Not stated","Not stated","","","","","","","","not stated","","","","","","reagent grade used"]
["Category","MEW_nonplant","Paper and data unique identifier(eg. 1-1,10-150)","102-1"]
["Scores",0,5,5,5,5,5,5,5,5,4,0,0,4,0,0,0,0,0,1,0,49,0.52127659574468088,"The highest possible grade for this datum is acceptable."]
["Answers","Counted days to 50% mortality at each concentration","","But was incorrectly calculated","","","6 reps","Cited other references for acute toxicity testing not OECD, USPEA of ASTM","","","static renewal","precipitation of Fe II sulfate noted at 100 mg/L but pH remained above 7.9","","But was time to 50% mortaility at each concentration - not useful","Incorrect caluclation of LC50","","","","","",""]
["Category","MEW_nonplant","Paper and data unique identifier(eg. 1-1,10-150)","102-2"]
["Scores",0,5,5,5,5,5,5,5,5,4,0,0,4,0,0,0,0,0,1,0,49,0.52127659574468088,"The highest possible grade for this datum is acceptable."]
["Answers","Counted days to 50% mortality at each concentration","","But was incorrectly calculated","","","6 reps","Cited other references for acute toxicity testing not OECD, USPEA of ASTM","","","static renewal","precipitation of Fe II sulfate noted at 100 mg/L but pH remained above 7.9","","But was time to 50% mortaility at each concentration - not useful","Incorrect caluclation of LC50","","","","","",""]
["Category","MEW_nonplant","Paper and data unique identifier(eg. 1-1,10-150)","103-1"]
["Scores",10,5,5,5,0,0,0,5,5,4,2,0,0,4,4,1,1,1,1,3,56,0.5957446808510638,""]
["Answers","","","","","Not stated","psuedo replication of 10 individual fish ","","weight = 8.2 +/- 2 kg and length = 10+/-3 cm","","static renewal","not stated when measured","","","but applied to pseudoreplicated data","95 % CL","38 ppt","8.1 mg/L",8.1999999999999993,"22 +/-3 oC","Spectrosol standard used"]
["Category","MEW_nonplant","Paper and data unique identifier(eg. 1-1,10-150)","103-2"]
["Scores",10,5,5,5,0,0,0,5,5,4,2,0,0,4,4,1,1,1,1,3,56,0.5957446808510638,""]
["Answers","","","","","Not stated","psuedo replication of 10 individual fish ","","weight = 8.2 +/- 2 kg and length = 10+/-3 cm","","static renewal","not stated when measured","","","but applied to pseudoreplicated data","95 % CL","38 ppt","8.1 mg/L",8.1999999999999993,"22 +/-3 oC","Spectrosol standard used"]
["Category","MEW_nonplant","Paper and data unique identifier(eg. 1-1,10-150)","103-3"]
["Scores",10,5,5,5,0,0,0,5,5,4,2,0,0,4,4,1,1,1,1,3,56,0.5957446808510638,""]
["Answers","","","","","Not stated","psuedo replication of 10 individual fish ","","weight = 8.2 +/- 2 kg and length = 10+/-3 cm","","static renewal","not stated when measured","","","but applied to pseudoreplicated data","95 % CL","38 ppt","8.1 mg/L",8.1999999999999993,"22 +/-3 oC","Spectrosol standard used"]
["Category","MEW_nonplant","Paper and data unique identifier(eg. 1-1,10-150)","103-4"]
["Scores",10,5,5,5,0,0,0,5,5,4,2,0,0,4,4,1,1,1,1,3,56,0.5957446808510638,""]
["Answers","","","","","Not stated","psuedo replication of 10 individual fish ","","weight = 8.2 +/- 2 kg and length = 10+/-3 cm","","static renewal","not stated when measured","","","but applied to pseudoreplicated data","95 % CL","38 ppt","8.1 mg/L",8.1999999999999993,"22 +/-3 oC","Spectrosol standard used"]
["Category","MEW_nonplant","Paper and data unique identifier(eg. 1-1,10-150)","103-5"]
["Scores",10,5,5,5,0,0,0,5,5,4,2,0,0,4,4,1,1,1,1,3,56,0.5957446808510638,""]
["Answers","","","","","Not stated","psuedo replication of 10 individual fish ","","weight = 8.2 +/- 2 kg and length = 10+/-3 cm","","static renewal","not stated when measured","","","but applied to pseudoreplicated data","95 % CL","38 ppt","8.1 mg/L",8.1999999999999993,"22 +/-3 oC","Spectrosol standard used"]
["Category","MEW_nonplant","Paper and data unique identifier(eg. 1-1,10-150)","104-1"]
["Scores",10,0,5,5,0,0,5,0,0,0,0,0,0,4,0,0,0,0,0,0,29,0.30851063829787234,"The highest possible grade for this datum is acceptable."]
["Answers","","","","","Not stated","Not stated","Referred to standard method of test tox kit manufacturer","","","","","","","","","","","","",""]
["Category","MEW_nonplant","Paper and data unique identifier(eg. 1-1,10-150)","104-2"]
["Scores",10,0,5,5,0,0,5,0,0,0,0,0,0,4,0,0,0,0,0,0,29,0.30851063829787234,"The highest possible grade for this datum is acceptable."]
["Answers","","","","","Not stated","Not stated","Referred to standard method of test tox kit manufacturer","","","","","","","","","","","","",""]
["Category","MEW_nonplant","Paper and data unique identifier(eg. 1-1,10-150)","106-1"]
["Scores",10,10,0,0,5,5,0,5,5,4,0,0,0,0,0,0,0,0,0,0,44,0.46808510638297873,"The highest possible grade for this datum is acceptable."]
["Answers","","","","","","","","","","","","","","","","","","","",""]
["Category","MEW_nonplant","Paper and data unique identifier(eg. 1-1,10-150)","107-1"]
["Scores",10,5,5,5,5,5,5,5,5,0,0,0,0,0,0,1,0,1,1,0,53,0.56382978723404253,"The highest possible grade for this datum is acceptable."]
["Answers","","","","","","","Stated that if more than one control fish died, the test was repeated. No standard method cited"," 1.1 - 6.0 g weight","","","","","","","","","","","",""]
["Category","MEW_nonplant","Paper and data unique identifier(eg. 1-1,10-150)","108-1"]
["Scores",10,5,5,5,0,0,0,5,5,0,0,0,4,0,4,1,1,1,1,0,47,0.5,"The highest possible grade for this datum is acceptable."]
["Answers","","","","","Not stated if controls were used","Unclear - 14 tests conducted and 7 concentrations of Fe used but no mention of replicate tanks ","","80 - 105 mm in length","","","Measured Fe in replicated tanks without fish present and measurements taken over 1 h","","","not stated","","","","measured in chemistry tanks that did not contain fish","","not stated"]
["Category","MEW_nonplant","Paper and data unique identifier(eg. 1-1,10-150)","108-2"]
["Scores",10,5,5,5,0,0,0,5,5,0,0,0,4,0,4,1,1,1,1,0,47,0.5,"The highest possible grade for this datum is acceptable."]
["Answers","","","","","Not stated if controls were used","Unclear - 14 tests conducted and 7 concentrations of Fe used but no mention of replicate tanks ","","80 - 105 mm in length","","","Measured Fe in replicated tanks without fish present and measurements taken over 1 h","","","not stated","","","","measured in chemistry tanks that did not contain fish","","not stated"]
["Category","MEW_nonplant","Paper and data unique identifier(eg. 1-1,10-150)","109-1"]
["Scores",10,10,5,5,5,5,5,5,5,4,0,0,4,4,4,3,3,3,3,0,83,0.88297872340425532,"The highest possible grade for this datum is acceptable."]
["Answers","","","","","","3 reps","APHA","1.2 +/- 0.2 cm","","static renewal","States nominal but does mention measuring dissolved and total iron but does not make it clear that effect concentrations use either measured or dissolved","","","","Had to read LC50 values from a graph",34,"5.05 - 5.69 mg/L","8.0 - 8.1","26.8 - 27.6","general reagent grade chemical"]
["Category","MEW_nonplant","Paper and data unique identifier(eg. 1-1,10-150)","109-2"]
["Scores",10,10,5,5,5,5,5,5,5,4,0,0,4,4,4,3,3,3,3,0,83,0.88297872340425532,"The highest possible grade for this datum is acceptable."]
["Answers","","","","","","3 reps","APHA","1.2 +/- 0.2 cm","","static renewal","States nominal but does mention measuring dissolved and total iron but does not make it clear that effect concentrations use either measured or dissolved","","","","Had to read LC50 values from a graph",34,"5.05 - 5.69 mg/L","8.0 - 8.1","26.8 - 27.6","general reagent grade chemical"]
["Category","MEW_nonplant","Paper and data unique identifier(eg. 1-1,10-150)","109-3"]
["Scores",10,10,5,5,5,5,5,5,5,4,0,0,4,4,4,3,3,3,3,0,83,0.88297872340425532,"The highest possible grade for this datum is acceptable."]
["Answers","","","","","","3 reps","APHA","1.2 +/- 0.2 cm","","static renewal","States nominal but does mention measuring dissolved and total iron but does not make it clear that effect concentrations use either measured or dissolved","","","","Had to read LC50 values from a graph",34,"5.05 - 5.69 mg/L","8.0 - 8.1","26.8 - 27.6","general reagent grade chemical"]
["Category","MEW_nonplant","Paper and data unique identifier(eg. 1-1,10-150)","109-4"]
["Scores",10,10,5,5,5,5,5,5,5,4,0,0,4,4,4,3,3,3,3,0,83,0.88297872340425532,"The highest possible grade for this datum is acceptable."]
["Answers","","","","","","3 reps","APHA","1.2 +/- 0.2 cm","","static renewal","States nominal but does mention measuring dissolved and total iron but does not make it clear that effect concentrations use either measured or dissolved","","","","Had to read LC50 values from a graph",34,"5.05 - 5.69 mg/L","8.0 - 8.1","26.8 - 27.6","general reagent grade chemical"]
["Category","MEW_nonplant","Paper and data unique identifier(eg. 1-1,10-150)","110-1"]
["Scores",10,10,5,5,5,5,5,5,5,4,0,0,4,0,4,3,3,3,1,0,77,0.81914893617021278,"The highest possible grade for this datum is acceptable."]
["Answers","","","","","","","","","","","","","Values read from the response curve did not match LC50 value in the table","","","","","","",""]
["Category","MEW_nonplant","Paper and data unique identifier(eg. 1-1,10-150)","110-2"]
["Scores",10,10,5,5,5,5,5,5,5,4,0,0,4,0,4,3,3,3,1,0,77,0.81914893617021278,"The highest possible grade for this datum is acceptable."]
["Answers","","","","","","","","","","","","","Values read from the response curve did not match LC50 value in the table","","","","","","",""]
["Category","MEW_nonplant","Paper and data unique identifier(eg. 1-1,10-150)","111-1"]
["Scores",10,0,0,0,5,5,0,0,5,0,0,0,0,0,0,0,0,0,0,0,25,0.26595744680851063,"The highest possible grade for this datum is acceptable."]
["Answers","","","","","","","","","","","","","Only one exposure concentration of 500 ug/L","","","","","","",""]
["Category","MEW_nonplant","Paper and data unique identifier(eg. 1-1,10-150)","112-1"]
["Scores",10,10,5,5,5,5,5,5,5,0,0,0,4,4,4,0,3,3,3,0,76,0.80851063829787229,"The highest possible grade for this datum is acceptable."]
["Answers","","","","","","","","","","","","","","","","","","","",""]
["Category","MEW_nonplant","Paper and data unique identifier(eg. 1-1,10-150)","112-2"]
["Scores",10,10,5,5,5,5,5,5,5,0,0,0,4,4,4,0,3,3,3,0,76,0.80851063829787229,"The highest possible grade for this datum is acceptable."]
["Answers","","","","","","","","","","","","","","","","","","","",""]
["Category","MEW_nonplant","Paper and data unique identifier(eg. 1-1,10-150)","112-3"]
["Scores",10,10,5,5,5,5,5,5,5,0,0,0,4,4,4,0,3,3,3,0,76,0.80851063829787229,"The highest possible grade for this datum is acceptable."]
["Answers","","","","","","","","","","","","","","","","","","","",""]
["Category","MEW_nonplant","Paper and data unique identifier(eg. 1-1,10-150)","113-1"]
["Scores",10,5,0,5,5,5,0,5,5,4,0,0,0,4,4,1,1,1,1,3,59,0.62765957446808507,"The highest possible grade for this datum is acceptable."]
["Answers","","","","LOECS and NOECs statistically testing at 5% level of probability","","","","4 lobed setae bearing embyros where heart beat was visible","filtered seawater","static renewal","","","","one way ANOVA and Tukey's HSD NOEC and LOECS","","34 ppt","6.5 - 8.0 mg/L",7.8,"","FeCl3"]
["Category","MEW_nonplant","Paper and data unique identifier(eg. 1-1,10-150)","113-2"]
["Scores",10,5,0,5,5,5,0,5,5,4,0,0,0,4,4,1,1,1,1,3,59,0.62765957446808507,"The highest possible grade for this datum is acceptable."]
["Answers","","","","LOECS and NOECs statistically testing at 5% level of probability","","","","4 lobed setae bearing embyros where heart beat was visible","filtered seawater","static renewal","","","","one way ANOVA and Tukey's HSD NOEC and LOECS","","34 ppt","6.5 - 8.0 mg/L",7.8,"","FeCl3"]
["Category","MEW_nonplant","Paper and data unique identifier(eg. 1-1,10-150)","113-3"]
["Scores",10,5,0,5,5,5,0,5,5,4,0,0,0,4,4,1,1,1,1,3,59,0.62765957446808507,"The highest possible grade for this datum is acceptable."]
["Answers","","","","LOECS and NOECs statistically testing at 5% level of probability","","","","4 lobed setae bearing embyros where heart beat was visible","filtered seawater","static renewal","","","","one way ANOVA and Tukey's HSD NOEC and LOECS","","34 ppt","6.5 - 8.0 mg/L",7.8,"","FeCl3"]
["Category","MEW_nonplant","Paper and data unique identifier(eg. 1-1,10-150)","113-4"]
["Scores",10,5,0,5,5,5,0,5,5,4,0,0,0,4,4,1,1,1,1,3,59,0.62765957446808507,"The highest possible grade for this datum is acceptable."]
["Answers","","","","LOECS and NOECs statistically testing at 5% level of probability","","","","4 lobed setae bearing embyros where heart beat was visible","filtered seawater","static renewal","","","","one way ANOVA and Tukey's HSD NOEC and LOECS","","34 ppt","6.5 - 8.0 mg/L",7.8,"","FeCl3"]
["Category","MEW_nonplant","Paper and data unique identifier(eg. 1-1,10-150)","114-1"]
["Scores",10,10,0,0,5,5,0,5,5,0,0,4,0,0,4,1,0,0,1,3,53,0.56382978723404253,"The highest possible grade for this datum is acceptable."]
["Answers","","","","","","5 reps","Referred to previous publications but not to the ASTM or OECD protocols that are commonly used for sea urchin bioassays","","","","No measurements and no acknowledgment of precipitation at very high concentrations. Reporting of concentrations is questionable - could be confusion about whether Fe or FeCl3.6H2O used","Cd ref test but no information on whether the tests met the reference test conditions","","Use of \"G\" statistics adapted from log-likelihood ratio test","","","","","","\"purest grade\""]
["Category","MEW_nonplant","Paper and data unique identifier(eg. 1-1,10-150)","114-2"]
["Scores",10,10,0,0,5,5,0,5,5,0,0,4,0,0,4,1,0,0,1,3,53,0.56382978723404253,"The highest possible grade for this datum is acceptable."]
["Answers","","","","","","5 reps","Referred to previous publications but not to the ASTM or OECD protocols that are commonly used for sea urchin bioassays","","","","No measurements and no acknowledgment of precipitation at very high concentrations. Reporting of concentrations is questionable - could be confusion about whether Fe or FeCl3.6H2O used","Cd ref test but no information on whether the tests met the reference test conditions","","Use of \"G\" statistics adapted from log-likelihood ratio test","","","","","","\"purest grade\""]
["Category","MEW_nonplant","Paper and data unique identifier(eg. 1-1,10-150)","114-3"]
["Scores",10,10,0,0,5,5,0,5,5,0,0,4,0,0,4,1,0,0,1,3,53,0.56382978723404253,"The highest possible grade for this datum is acceptable."]
["Answers","","","","","","5 reps","Referred to previous publications but not to the ASTM or OECD protocols that are commonly used for sea urchin bioassays","","","","No measurements and no acknowledgment of precipitation at very high concentrations. Reporting of concentrations is questionable - could be confusion about whether Fe or FeCl3.6H2O used","Cd ref test but no information on whether the tests met the reference test conditions","","Use of \"G\" statistics adapted from log-likelihood ratio test","","","","","","\"purest grade\""]
["Category","MEW_nonplant","Paper and data unique identifier(eg. 1-1,10-150)","114-4"]
["Scores",10,10,0,0,5,5,0,5,5,0,0,4,0,0,4,1,0,0,1,3,53,0.56382978723404253,"The highest possible grade for this datum is acceptable."]
["Answers","","","","","","5 reps","Referred to previous publications but not to the ASTM or OECD protocols that are commonly used for sea urchin bioassays","","","","No measurements and no acknowledgment of precipitation at very high concentrations. Reporting of concentrations is questionable - could be confusion about whether Fe or FeCl3.6H2O used","Cd ref test but no information on whether the tests met the reference test conditions","","Use of \"G\" statistics adapted from log-likelihood ratio test","","","","","","\"purest grade\""]
["Category","MEW_nonplant","Paper and data unique identifier(eg. 1-1,10-150)","114-5"]
["Scores",10,10,0,0,5,5,0,5,5,0,0,4,0,0,4,1,0,0,1,3,53,0.56382978723404253,"The highest possible grade for this datum is acceptable."]
["Answers","","","","","","5 reps","Referred to previous publications but not to the ASTM or OECD protocols that are commonly used for sea urchin bioassays","","","","No measurements and no acknowledgment of precipitation at very high concentrations. Reporting of concentrations is questionable - could be confusion about whether Fe or FeCl3.6H2O used","Cd ref test but no information on whether the tests met the reference test conditions","","Use of \"G\" statistics adapted from log-likelihood ratio test","","","","","","\"purest grade\""]
["Category","MEW_nonplant","Paper and data unique identifier(eg. 1-1,10-150)","114-6"]
["Scores",10,10,0,0,5,5,0,5,5,0,0,4,0,0,4,1,0,0,1,3,53,0.56382978723404253,"The highest possible grade for this datum is acceptable."]
["Answers","","","","","","5 reps","Referred to previous publications but not to the ASTM or OECD protocols that are commonly used for sea urchin bioassays","","","","No measurements and no acknowledgment of precipitation at very high concentrations. Reporting of concentrations is questionable - could be confusion about whether Fe or FeCl3.6H2O used","Cd ref test but no information on whether the tests met the reference test conditions","","Use of \"G\" statistics adapted from log-likelihood ratio test","","","","","","\"purest grade\""]
["Category","MEW_nonplant","Paper and data unique identifier(eg. 1-1,10-150)","114-6"]
["Scores",10,10,0,0,5,5,0,5,5,0,0,4,0,0,4,1,0,0,1,3,53,0.56382978723404253,"The highest possible grade for this datum is acceptable."]
["Answers","","","","","","5 reps","Referred to previous publications but not to the ASTM or OECD protocols that are commonly used for sea urchin bioassays","","","","No measurements and no acknowledgment of precipitation at very high concentrations. Reporting of concentrations is questionable - could be confusion about whether Fe or FeCl3.6H2O used","Cd ref test but no information on whether the tests met the reference test conditions","","Use of \"G\" statistics adapted from log-likelihood ratio test","","","","","","\"purest grade\""]
["Category","MEW_nonplant","Paper and data unique identifier(eg. 1-1,10-150)","115-1"]
["Scores",10,0,5,5,5,5,0,0,5,0,0,0,0,0,0,1,0,0,0,0,36,0.38297872340425532,"The highest possible grade for this datum is acceptable."]
["Answers","","","","","","","","","","","","","","Not stated and a range of LC50 values presented in the table","","","","","",""]
["Category","MEW_nonplant","Paper and data unique identifier(eg. 1-1,10-150)","116-1"]
["Scores",10,10,5,5,0,5,0,0,5,4,0,0,0,0,0,0,0,0,0,0,44,0.46808510638297873,"The highest possible grade for this datum is acceptable."]
["Answers","","","","","Not stated","","","","","Static","Awareness of precipitation and that concentration may not be accurate","","","Probit analysis used but used half log concentration scale and just recorded the range of the half log concentration scale that corresponded to the 50% lethality effect","","","","","",""]
["Category","MEW_nonplant","Paper and data unique identifier(eg. 1-1,10-150)","116-2"]
["Scores",10,10,5,5,0,5,0,0,5,4,0,0,0,0,0,0,0,0,0,0,44,0.46808510638297873,"The highest possible grade for this datum is acceptable."]
["Answers","","","","","Not stated","","","","","Static","Awareness of precipitation and that concentration may not be accurate","","","Probit analysis used but used half log concentration scale and just recorded the range of the half log concentration scale that corresponded to the 50% lethality effect","","","","","",""]
["Category","MEW_nonplant","Paper and data unique identifier(eg. 1-1,10-150)","117-1"]
["Scores",10,5,0,0,5,5,0,5,5,0,0,0,4,0,0,1,0,0,1,0,41,0.43617021276595747,"The highest possible grade for this datum is acceptable."]
["Answers","","","","","Only 28% hatching in the control","8 reps","","egg","0.45 um filtered natural seawater","","Purposely looked at concentrations that exceeded solubility to look at toxicity associated with precipitates","","","LC50 read from concentration-response graph","","","","","",""]
["Category","MEW_nonplant","Paper and data unique identifier(eg. 1-1,10-150)","118-1"]
["Scores",10,10,5,5,5,5,0,5,5,4,0,0,0,4,0,1,1,0,1,0,61,0.64893617021276595,"The highest possible grade for this datum is acceptable."]
["Answers","24 h","valve gapes or no movement when prodded","","","","5 reps","","4-5 cm","","static","","","","probit analysis ","","","7-8 mg/L DO","","","FeSO4.7H2O"]
["Category","MEW_nonplant","Paper and data unique identifier(eg. 1-1,10-150)","119-1"]
["Scores",10,5,0,0,0,0,0,0,5,0,0,0,0,0,0,0,0,0,0,0,20,0.21276595744680851,"The highest possible grade for this datum is acceptable."]
["Answers","","Development","","","Not stated","Not stated","","","","Not stated","","","","","","","","","","FeCl2 used. Tests where precipitation was observed were discarded"]
["Category","MEW_nonplant","Paper and data unique identifier(eg. 1-1,10-150)","120-1"]
["Scores",10,10,5,5,5,5,2,5,5,0,2,0,0,4,4,1,0,1,1,3,68,0.72340425531914898,""]
["Answers","","","","","","5 reps","ASTM and Krassoi","3 year old adults","","","total iron was measured but nominal values reported as measured were within 10% of nominal","","","","","","","","","AR grade of Fe(III) sulphate"]
["Category","MEW_nonplant","Paper and data unique identifier(eg. 1-1,10-150)","120-2"]
["Scores",10,10,5,5,5,5,2,5,5,0,2,0,0,4,4,1,0,1,1,3,68,0.72340425531914898,""]
["Answers","","","","","","5 reps","ASTM and Krassoi","3 year old adults","","","total iron was measured but nominal values reported as measured were within 10% of nominal","","","","","","","","","AR grade of Fe(III) sulphate"]
["Category","MEW_nonplant","Paper and data unique identifier(eg. 1-1,10-150)","120-3"]
["Scores",10,10,5,5,5,5,2,5,5,0,2,0,0,4,4,1,0,1,1,3,68,0.72340425531914898,""]
["Answers","","","","","","5 reps","ASTM and Krassoi","3 year old adults","","","total iron was measured but nominal values reported as measured were within 10% of nominal","","","","","","","","","AR grade of Fe(III) sulphate"]
["Category","MEW_nonplant","Paper and data unique identifier(eg. 1-1,10-150)","123-1"]
["Scores",10,10,0,0,5,5,0,0,5,0,2,0,4,4,0,1,0,1,1,0,48,0.51063829787234039,""]
["Answers","","","","","Control development was unacceptably low and makes results questionable","3 reps","","","","","0.2 µm filtered solutions analysed for total Fe ","","3 concentrations used however, control development was low (approximately 55%)","","","","","","",""]
["Category","MEW_nonplant","Paper and data unique identifier(eg. 1-1,10-150)","125-1"]
["Scores",10,5,5,5,0,0,0,0,5,0,0,0,0,0,0,0,0,0,1,0,31,0.32978723404255317,"The highest possible grade for this datum is acceptable."]
["Answers","Was given in previous paper (Kobayashi and Okamura, 2004) as 27-30 h","","","","Not stated","no mention of replicates","","","","","","","","Not stated","","","","","",""]
["Category","MEW_nonplant","Paper and data unique identifier(eg. 1-1,10-150)","126-1"]
["Scores",10,10,5,5,5,5,2,5,5,0,2,4,4,4,4,3,3,3,3,3,85,0.9042553191489362,""]
["Answers","30 min exposure of eggs and sperm separately, then an additional 5 h exposure of eggs and sperm together","Eggs that had undergone cleavage were defined as fertilised","EC10","","","5 replicates","Previous method development had been conducted. The control fertilisation rates were stated for each experiment. Because it is a tropical bioassay, there aren't standard methods in standardized texts.","eggs and sperm collected on the night of coral spawning","unfiltered sperm-free natural seawater","Assumed to be static but not stated","Filtered (0.45 µm) and unfiltered (total Fe) water samples were collected, acidified, stored at 4oC until analysis by ICP-OES","","","probit analysis using SSPS software","21-36 mg/L 95% CL","37-39 (no units given but assume ppt)","7.20-7.92 mg/L DO","7.88-8.45 pH units","24-25 oC","High purity FeCl3 used 97% ACS Sigma-Aldrich"]
["Category","MEW_nonplant","Paper and data unique identifier(eg. 1-1,10-150)","126-2"]
["Scores",10,10,5,5,5,5,2,5,5,0,2,4,4,4,4,3,3,3,3,3,85,0.9042553191489362,""]
["Answers","30 min exposure of eggs and sperm separately, then an additional 5 h exposure of eggs and sperm together","Eggs that had undergone cleavage were defined as fertilised","EC10","","","5 replicates","Previous method development had been conducted. The control fertilisation rates were stated for each experiment. Because it is a tropical bioassay, there aren't standard methods in standardized texts.","eggs and sperm collected on the night of coral spawning","unfiltered sperm-free natural seawater","Assumed to be static but not stated","Filtered (0.45 µm) and unfiltered (total Fe) water samples were collected, acidified, stored at 4oC until analysis by ICP-OES","","","probit analysis using SSPS software","5-17 mg/L 95% CL","37-39 (no units given but assume ppt)","7.20-7.92 mg/L DO","7.88-8.45 pH units","24-25 oC","High purity FeCl3 used 97% ACS Sigma-Aldrich"]
["Category","MEW_nonplant","Paper and data unique identifier(eg. 1-1,10-150)","126-3"]
["Scores",10,10,5,5,5,5,2,5,5,0,2,4,4,4,4,3,3,3,3,3,85,0.9042553191489362,""]
["Answers","30 min exposure of eggs and sperm separately, then an additional 5 h exposure of eggs and sperm together","Eggs that had undergone cleavage were defined as fertilised","EC10","","","5 replicates","Previous method development had been conducted. The control fertilisation rates were stated for each experiment. Because it is a tropical bioassay, there aren't standard methods in standardized texts.","eggs and sperm collected on the night of coral spawning","unfiltered sperm-free natural seawater","Assumed to be static but not stated","Filtered (0.45 µm) and unfiltered (total Fe) water samples were collected, acidified, stored at 4oC until analysis by ICP-OES","","","probit analysis using SSPS software","18-24 mg/L 95% CL","37-39 (no units given but assume ppt)","7.20-7.92 mg/L DO","7.88-8.45 pH units","24-25 oC","High purity FeCl3 used 97% ACS Sigma-Aldrich"]
["Category","MEW_nonplant","Paper and data unique identifier(eg. 1-1,10-150)","126-4"]
["Scores",10,10,5,5,5,5,2,5,5,0,2,4,4,4,4,3,3,3,3,3,85,0.9042553191489362,""]
["Answers","30 min exposure of eggs and sperm separately, then an additional 5 h exposure of eggs and sperm together","Eggs that had undergone cleavage were defined as fertilised","EC50","","","5 replicates","Previous method development had been conducted. The control fertilisation rates were stated for each experiment. Because it is a tropical bioassay, there aren't standard methods in standardized texts.","eggs and sperm collected on the night of coral spawning","unfiltered sperm-free natural seawater","Assumed to be static but not stated","Filtered (0.45 µm) and unfiltered (total Fe) water samples were collected, acidified, stored at 4oC until analysis by ICP-OES","","","probit analysis using SSPS software","52-95 mg/L 95% CL","37-39 (no units given but assume ppt)","7.20-7.92 mg/L DO","7.88-8.45 pH units","24-25 oC","High purity FeCl3 used 97% ACS Sigma-Aldrich"]
["Category","MEW_nonplant","Paper and data unique identifier(eg. 1-1,10-150)","126-5"]
["Scores",10,10,5,5,5,5,2,5,5,0,2,4,4,4,4,3,3,3,3,3,85,0.9042553191489362,""]
["Answers","30 min exposure of eggs and sperm separately, then an additional 5 h exposure of eggs and sperm together","Eggs that had undergone cleavage were defined as fertilised","EC50","","","5 replicates","Previous method development had been conducted. The control fertilisation rates were stated for each experiment. Because it is a tropical bioassay, there aren't standard methods in standardized texts.","eggs and sperm collected on the night of coral spawning","unfiltered sperm-free natural seawater","Assumed to be static but not stated","Filtered (0.45 µm) and unfiltered (total Fe) water samples were collected, acidified, stored at 4oC until analysis by ICP-OES","","","probit analysis using SSPS software","35-47 mg/L 95% CL","37-39 (no units given but assume ppt)","7.20-7.92 mg/L DO","7.88-8.45 pH units","24-25 oC","High purity FeCl3 used 97% ACS Sigma-Aldrich"]
["Category","MEW_nonplant","Paper and data unique identifier(eg. 1-1,10-150)","126-6"]
["Scores",10,10,5,5,5,5,2,5,5,0,2,4,4,4,4,3,3,3,3,3,85,0.9042553191489362,""]
["Answers","30 min exposure of eggs and sperm separately, then an additional 5 h exposure of eggs and sperm together","Eggs that had undergone cleavage were defined as fertilised","EC50","","","5 replicates","Previous method development had been conducted. The control fertilisation rates were stated for each experiment. Because it is a tropical bioassay, there aren't standard methods in standardized texts.","eggs and sperm collected on the night of coral spawning","unfiltered sperm-free natural seawater","Assumed to be static but not stated","Filtered (0.45 µm) and unfiltered (total Fe) water samples were collected, acidified, stored at 4oC until analysis by ICP-OES","","","probit analysis using SSPS software","51-59 mg/L 95% CL","37-39 (no units given but assume ppt)","7.20-7.92 mg/L DO","7.88-8.45 pH units","24-25 oC","High purity FeCl3 used 97% ACS Sigma-Aldrich"]
["Category","MEW_nonplant","Paper and data unique identifier(eg. 1-1,10-150)","126-7"]
["Scores",10,10,5,5,5,5,2,5,5,0,2,4,4,4,4,3,3,3,3,3,85,0.9042553191489362,""]
["Answers","30 min exposure of eggs and sperm separately, then an additional 5 h exposure of eggs and sperm together","Eggs that had undergone cleavage were defined as fertilised","NOEC"," Not significantly different from the controls","","5 replicates","Previous method development had been conducted. The control fertilisation rates were stated for each experiment. Because it is a tropical bioassay, there aren't standard methods in standardized texts.","eggs and sperm collected on the night of coral spawning","unfiltered sperm-free natural seawater","Assumed to be static but not stated","Filtered (0.45 µm) and unfiltered (total Fe) water samples were collected, acidified, stored at 4oC until analysis by ICP-OES","","","ANOVA and Tukey HSD in R","P<0.001","37-39 (no units given but assume ppt)","7.20-7.92 mg/L DO","7.88-8.45 pH units","24-25 oC","High purity FeCl3 used 97% ACS Sigma-Aldrich"]
["Category","MEW_nonplant","Paper and data unique identifier(eg. 1-1,10-150)","126-8"]
["Scores",10,10,5,5,5,5,2,5,5,0,2,4,4,4,4,3,3,3,3,3,85,0.9042553191489362,""]
["Answers","30 min exposure of eggs and sperm separately, then an additional 5 h exposure of eggs and sperm together","Eggs that had undergone cleavage were defined as fertilised","NOEC"," Not significantly different from the controls","","5 replicates","Previous method development had been conducted. The control fertilisation rates were stated for each experiment. Because it is a tropical bioassay, there aren't standard methods in standardized texts.","eggs and sperm collected on the night of coral spawning","unfiltered sperm-free natural seawater","Assumed to be static but not stated","Filtered (0.45 µm) and unfiltered (total Fe) water samples were collected, acidified, stored at 4oC until analysis by ICP-OES","","","ANOVA and Tukey HSD in R","P<0.001","37-39 (no units given but assume ppt)","7.20-7.92 mg/L DO","7.88-8.45 pH units","24-25 oC","High purity FeCl3 used 97% ACS Sigma-Aldrich"]
["Category","MEW_nonplant","Paper and data unique identifier(eg. 1-1,10-150)","126-9"]
["Scores",10,10,5,5,5,5,2,5,5,0,2,4,4,4,4,3,3,3,3,3,85,0.9042553191489362,""]
["Answers","30 min exposure of eggs and sperm separately, then an additional 5 h exposure of eggs and sperm together","Eggs that had undergone cleavage were defined as fertilised","NOEC"," Not significantly different from the controls","","5 replicates","Previous method development had been conducted. The control fertilisation rates were stated for each experiment. Because it is a tropical bioassay, there aren't standard methods in standardized texts.","eggs and sperm collected on the night of coral spawning","unfiltered sperm-free natural seawater","Assumed to be static but not stated","Filtered (0.45 µm) and unfiltered (total Fe) water samples were collected, acidified, stored at 4oC until analysis by ICP-OES","","","ANOVA and Tukey HSD in R","P<0.001","37-39 (no units given but assume ppt)","7.20-7.92 mg/L DO","7.88-8.45 pH units","24-25 oC","High purity FeCl3 used 97% ACS Sigma-Aldrich"]
["Category","MEW_nonplant","Paper and data unique identifier(eg. 1-1,10-150)","126-10"]
["Scores",10,10,5,0,5,5,2,5,5,0,2,4,4,4,4,3,3,3,3,3,80,0.85106382978723405,""]
["Answers","30 min exposure of eggs and sperm separately, then an additional 5 h exposure of eggs and sperm together","Eggs that had undergone cleavage were defined as fertilised","LOEC","","","5 replicates","Previous method development had been conducted. The control fertilisation rates were stated for each experiment. Because it is a tropical bioassay, there aren't standard methods in standardized texts.","eggs and sperm collected on the night of coral spawning","unfiltered sperm-free natural seawater","Assumed to be static but not stated","Filtered (0.45 µm) and unfiltered (total Fe) water samples were collected, acidified, stored at 4oC until analysis by ICP-OES","","","ANOVA and Tukey HSD in R","P<0.001","37-39 (no units given but assume ppt)","7.20-7.92 mg/L DO","7.88-8.45 pH units","24-25 oC","High purity FeCl3 used 97% ACS Sigma-Aldrich"]
["Category","MEW_nonplant","Paper and data unique identifier(eg. 1-1,10-150)","126-11"]
["Scores",10,10,5,0,5,5,2,5,5,0,2,4,4,4,4,3,3,3,3,3,80,0.85106382978723405,""]
["Answers","30 min exposure of eggs and sperm separately, then an additional 5 h exposure of eggs and sperm together","Eggs that had undergone cleavage were defined as fertilised","LOEC","","","5 replicates","Previous method development had been conducted. The control fertilisation rates were stated for each experiment. Because it is a tropical bioassay, there aren't standard methods in standardized texts.","eggs and sperm collected on the night of coral spawning","unfiltered sperm-free natural seawater","Assumed to be static but not stated","Filtered (0.45 µm) and unfiltered (total Fe) water samples were collected, acidified, stored at 4oC until analysis by ICP-OES","","","ANOVA and Tukey HSD in R","P<0.001","37-39 (no units given but assume ppt)","7.20-7.92 mg/L DO","7.88-8.45 pH units","24-25 oC","High purity FeCl3 used 97% ACS Sigma-Aldrich"]
["Category","MEW_nonplant","Paper and data unique identifier(eg. 1-1,10-150)","126-12"]
["Scores",10,10,5,0,5,5,2,5,5,0,2,4,4,4,4,3,3,3,3,3,80,0.85106382978723405,""]
["Answers","30 min exposure of eggs and sperm separately, then an additional 5 h exposure of eggs and sperm together","Eggs that had undergone cleavage were defined as fertilised","LOEC","","","5 replicates","Previous method development had been conducted. The control fertilisation rates were stated for each experiment. Because it is a tropical bioassay, there aren't standard methods in standardized texts.","eggs and sperm collected on the night of coral spawning","unfiltered sperm-free natural seawater","Assumed to be static but not stated","Filtered (0.45 µm) and unfiltered (total Fe) water samples were collected, acidified, stored at 4oC until analysis by ICP-OES","","","ANOVA and Tukey HSD in R","P<0.001","37-39 (no units given but assume ppt)","7.20-7.92 mg/L DO","7.88-8.45 pH units","24-25 oC","High purity FeCl3 used 97% ACS Sigma-Aldrich"]
["Category","MEW_nonplant","Paper and data unique identifier(eg. 1-1,10-150)","126-13"]
["Scores",10,10,5,5,5,5,2,5,5,0,2,4,4,4,4,3,3,3,3,3,85,0.9042553191489362,""]
["Answers","30 min exposure of eggs and sperm separately, then an additional 5 h exposure of eggs and sperm together","Eggs that had undergone cleavage were defined as fertilised","EC50","","","5 replicates","Previous method development had been conducted. The control fertilisation rates were stated for each experiment. Because it is a tropical bioassay, there aren't standard methods in standardized texts.","eggs and sperm collected on the night of coral spawning","unfiltered sperm-free natural seawater","Assumed to be static but not stated","Filtered (0.45 µm) and unfiltered (total Fe) water samples were collected, acidified, stored at 4oC until analysis by ICP-OES","","","probit analysis using SSPS software","21-29 95% confidence limits","37-39 (no units given but assume ppt)","7.20-7.92 mg/L DO","7.88-8.45 pH units","24-25 oC","High purity FeCl3 used 97% ACS Sigma-Aldrich"]
["Category","MEW_nonplant","Paper and data unique identifier(eg. 1-1,10-150)","126-14"]
["Scores",10,10,5,5,5,5,2,5,5,0,2,4,4,4,4,3,3,3,3,3,85,0.9042553191489362,""]
["Answers","30 min exposure of eggs and sperm separately, then an additional 5 h exposure of eggs and sperm together","Eggs that had undergone cleavage were defined as fertilised","NOEC","Statistically significantly different from the control","","5 replicates","Previous method development had been conducted. The control fertilisation rates were stated for each experiment. Because it is a tropical bioassay, there aren't standard methods in standardized texts.","eggs and sperm collected on the night of coral spawning","unfiltered sperm-free natural seawater","Assumed to be static but not stated","Filtered (0.45 µm) and unfiltered (total Fe) water samples were collected, acidified, stored at 4oC until analysis by ICP-OES","","","ANOVA and Tukey's HSD in R","P<0.001","37-39 (no units given but assume ppt)","7.20-7.92 mg/L DO","7.88-8.45 pH units","24-25 oC","High purity FeCl3 used 97% ACS Sigma-Aldrich"]
["Category","MEW_nonplant","Paper and data unique identifier(eg. 1-1,10-150)","126-15"]
["Scores",10,10,5,0,5,5,2,5,5,0,2,4,4,4,4,3,3,3,3,3,80,0.85106382978723405,""]
["Answers","30 min exposure of eggs and sperm separately, then an additional 5 h exposure of eggs and sperm together","Eggs that had undergone cleavage were defined as fertilised","LOEC","","","5 replicates","Previous method development had been conducted. The control fertilisation rates were stated for each experiment. Because it is a tropical bioassay, there aren't standard methods in standardized texts.","eggs and sperm collected on the night of coral spawning","unfiltered sperm-free natural seawater","Assumed to be static but not stated","Filtered (0.45 µm) and unfiltered (total Fe) water samples were collected, acidified, stored at 4oC until analysis by ICP-OES","","","ANOVA and Tukey's HSD in R","P<0.001","37-39 (no units given but assume ppt)","7.20-7.92 mg/L DO","7.88-8.45 pH units","24-25 oC","High purity FeCl3 used 97% ACS Sigma-Aldrich"]
["Category","MEW_nonplant","Paper and data unique identifier(eg. 1-1,10-150)","126-16"]
["Scores",10,10,5,5,5,5,2,5,5,0,4,4,4,4,0,3,3,3,3,3,83,0.88297872340425498]
["Answers","24 h","Defined as alive if motile or had an elongate shape","LC10","","","5 replicates","Previous method development had been conducted. The control survival rate was 87% at 72-h (not given for 24-h). Because it is a tropical bioassay, there aren't standard methods in standardized texts.","4.5 day old larvae","unfiltered sperm-free natural seawater","static renewal every 1-2 d","Filtered (0.45 µm) and unfiltered (total Fe) water samples were collected, acidified, stored at 4oC until analysis by ICP-OES","","","Probit analysis using SPSS","not calculable","37-39 (no units given but assume ppt)","6.08-7.92 mg/L DO","7.81-8.37 pH units","23.5-26 oC","High purity FeCl3 used 97% ACS Sigma-Aldrich"]
["Category","MEW_nonplant","Paper and data unique identifier(eg. 1-1,10-150)","126-17"]
["Scores",10,10,5,5,5,5,2,5,5,0,4,4,4,4,0,3,3,3,3,3,83,0.88297872340425498,""]
["Answers","24 h","Defined as alive if motile or had an elongate shape","LC50","","","5 replicates","Previous method development had been conducted. The control survival rate was 87% at 72-h (not given for 24-h). Because it is a tropical bioassay, there aren't standard methods in standardized texts.","4.5 day old larvae","unfiltered sperm-free natural seawater","static renewal every 1-2 d","Filtered (0.45 µm) and unfiltered (total Fe) water samples were collected, acidified, stored at 4oC until analysis by ICP-OES","","","Probit analysis using SPSS","not calculable","37-39 (no units given but assume ppt)","6.08-7.92 mg/L DO","7.81-8.37 pH units","23.5-26 oC","High purity FeCl3 used 97% ACS Sigma-Aldrich"]
["Category","MEW_nonplant","Paper and data unique identifier(eg. 1-1,10-150)","126-18"]
["Scores",10,10,5,5,5,5,2,5,5,0,4,4,4,4,4,3,3,3,3,3,87,0.92553191489361697]
["Answers","48 h","Defined as alive if motile or had an elongate shape","LC50","","","5 replicates","Previous method development had been conducted. The control survival rate was 87% at 72-h (not given for 24-h). Because it is a tropical bioassay, there aren't standard methods in standardized texts.","4.5 day old larvae","unfiltered sperm-free natural seawater","static renewal every 1-2 d","Filtered (0.45 µm) and unfiltered (total Fe) water samples were collected, acidified, stored at 4oC until analysis by ICP-OES","","","Probit analysis using SPSS","48-167 mg/L 95% CL","37-39 (no units given but assume ppt)","6.08-7.92 mg/L DO","7.81-8.37 pH units","23.5-26 oC","High purity FeCl3 used 97% ACS Sigma-Aldrich"]
["Category","MEW_nonplant","Paper and data unique identifier(eg. 1-1,10-150)","126-19"]
["Scores",10,10,5,5,5,5,2,5,5,0,4,4,4,4,4,3,3,3,3,3,87,0.92553191489361697]
["Answers","72 h","Defined as alive if motile or had an elongate shape","LC50","","","5 replicates","Previous method development had been conducted. The control survival rate was 87% at 72-h (not given for 24-h). Because it is a tropical bioassay, there aren't standard methods in standardized texts.","4.5 day old larvae","unfiltered sperm-free natural seawater","static renewal every 1-2 d","Filtered (0.45 µm) and unfiltered (total Fe) water samples were collected, acidified, stored at 4oC until analysis by ICP-OES","","","Probit analysis using SPSS","34-84 mg/L 95% CL","37-39 (no units given but assume ppt)","6.08-7.92 mg/L DO","7.81-8.37 pH units","23.5-26 oC","High purity FeCl3 used 97% ACS Sigma-Aldrich"]
["Category","MEW_nonplant","Paper and data unique identifier(eg. 1-1,10-150)","126-20"]
["Scores",10,10,5,0,5,5,2,5,5,0,4,4,4,4,4,3,3,3,3,3,82,0.87234042553191493]
["Answers","24 h","Defined as alive if motile or had an elongate shape","NOEC","","","5 replicates","Previous method development had been conducted. The control survival rate was 87% at 72-h (not given for 48-h). Because it is a tropical bioassay, there aren't standard methods in standardized texts.","4.5 day old larvae","unfiltered sperm-free natural seawater","static renewal every 1-2 d","Filtered (0.45 µm) and unfiltered (total Fe) water samples were collected, acidified, stored at 4oC until analysis by ICP-OES","","","ANOVA with Tukey HSD using R","P<0.05","37-39 (no units given but assume ppt)","6.08-7.92 mg/L DO","7.81-8.37 pH units","23.5-26 oC","High purity FeCl3 used 97% ACS Sigma-Aldrich"]
["Category","MEW_nonplant","Paper and data unique identifier(eg. 1-1,10-150)","126-21"]
["Scores",10,10,5,0,5,5,2,5,5,0,4,4,4,4,4,3,3,3,3,3,82,0.87234042553191493,""]
["Answers","48 h","Defined as alive if motile or had an elongate shape","NOEC","","","5 replicates","Previous method development had been conducted. The control survival rate was 87% at 72-h (not given for 48-h). Because it is a tropical bioassay, there aren't standard methods in standardized texts.","4.5 day old larvae","unfiltered sperm-free natural seawater","static renewal every 1-2 d","Filtered (0.45 µm) and unfiltered (total Fe) water samples were collected, acidified, stored at 4oC until analysis by ICP-OES","","","ANOVA with Tukey HSD using R","P<0.05","37-39 (no units given but assume ppt)","6.08-7.92 mg/L DO","7.81-8.37 pH units","23.5-26 oC","High purity FeCl3 used 97% ACS Sigma-Aldrich"]
["Category","MEW_nonplant","Paper and data unique identifier(eg. 1-1,10-150)","126-22"]
["Scores",10,10,5,0,5,5,2,5,5,0,4,4,4,4,4,3,3,3,3,3,82,0.85106382978723405,""]
["Answers","72 h","Defined as alive if motile or had an elongate shape","NOEC","","","5 replicates","Previous method development had been conducted. The control survival rate was 87% at 72-h (not given for 48-h). Because it is a tropical bioassay, there aren't standard methods in standardized texts.","4.5 day old larvae","unfiltered sperm-free natural seawater","static renewal every 1-2 d","Filtered (0.45 µm) and unfiltered (total Fe) water samples were collected, acidified, stored at 4oC until analysis by ICP-OES","","","ANOVA with Tukey HSD using R","P<0.05","37-39 (no units given but assume ppt)","6.08-7.92 mg/L DO","7.81-8.37 pH units","23.5-26 oC","High purity FeCl3 used 97% ACS Sigma-Aldrich"]
["Category","MEW_nonplant","Paper and data unique identifier(eg. 1-1,10-150)","126-23"]
["Scores",10,10,5,0,5,5,2,5,5,0,4,4,4,4,4,3,3,3,3,3,82,0.87234042553191493,""]
["Answers","24 h","Defined as alive if motile or had an elongate shape","LOEC","","","5 replicates","Previous method development had been conducted. The control survival rate was 87% at 72-h (not given for 48-h). Because it is a tropical bioassay, there aren't standard methods in standardized texts.","4.5 day old larvae","unfiltered sperm-free natural seawater","static renewal every 1-2 d","Filtered (0.45 µm) and unfiltered (total Fe) water samples were collected, acidified, stored at 4oC until analysis by ICP-OES","","","ANOVA with Tukey HSD using R","P<0.05","37-39 (no units given but assume ppt)","6.08-7.92 mg/L DO","7.81-8.37 pH units","23.5-26 oC","High purity FeCl3 used 97% ACS Sigma-Aldrich"]
["Category","MEW_nonplant","Paper and data unique identifier(eg. 1-1,10-150)","126-24"]
["Scores",10,10,5,0,5,5,2,5,5,0,4,4,4,4,4,3,3,3,3,3,82,0.87234042553191493,""]
["Answers","48 h","Defined as alive if motile or had an elongate shape","LOEC","","","5 replicates","Previous method development had been conducted. The control survival rate was 87% at 72-h (not given for 48-h). Because it is a tropical bioassay, there aren't standard methods in standardized texts.","4.5 day old larvae","unfiltered sperm-free natural seawater","static renewal every 1-2 d","Filtered (0.45 µm) and unfiltered (total Fe) water samples were collected, acidified, stored at 4oC until analysis by ICP-OES","","","ANOVA with Tukey HSD using R","P<0.05","37-39 (no units given but assume ppt)","6.08-7.92 mg/L DO","7.81-8.37 pH units","23.5-26 oC","High purity FeCl3 used 97% ACS Sigma-Aldrich"]
["Category","MEW_nonplant","Paper and data unique identifier(eg. 1-1,10-150)","126-25"]
["Scores",10,10,5,0,5,5,2,5,5,0,4,4,4,4,4,3,3,3,3,3,82,0.87234042553191493,""]
["Answers","48 h","Defined as alive if motile or had an elongate shape","LOEC","","","5 replicates","Previous method development had been conducted. The control survival rate was 87% at 72-h (not given for 48-h). Because it is a tropical bioassay, there aren't standard methods in standardized texts.","4.5 day old larvae","unfiltered sperm-free natural seawater","static renewal every 1-2 d","Filtered (0.45 µm) and unfiltered (total Fe) water samples were collected, acidified, stored at 4oC until analysis by ICP-OES","","","ANOVA with Tukey HSD using R","P<0.05","37-39 (no units given but assume ppt)","6.08-7.92 mg/L DO","7.81-8.37 pH units","23.5-26 oC","High purity FeCl3 used 97% ACS Sigma-Aldrich"]

{"sheet":"MEW plant","index":7,"n_rows":81,"n_cols":53,"rows_kept":81,"cut":false,"hidden":false,"merged":[[52,2,54,2],[52,7,54,7],[59,7,61,7],[62,2,64,2],[62,7,64,7],[56,1,58,1],[56,2,58,2],[56,7,58,7],[65,2,68,2],[65,7,68,7],[43,2,45,2],[43,7,45,7],[46,2,48,2],[46,7,48,7],[49,2,51,2],[49,7,51,7],[34,2,36,2],[34,7,36,7],[37,2,39,2],[37,7,39,7],[40,2,42,2],[40,7,42,7],[25,2,27,2],[25,7,27,7],[28,2,30,2],[28,7,30,7],[31,2,33,2],[31,7,33,7],[17,2,19,2],[17,7,19,7],[20,2,21,2],[20,7,21,7],[22,2,24,2],[22,7,24,7],[3,4,7,4],[9,2,9,4],[11,2,13,2],[11,7,13,7],[14,2,16,2],[14,7,16,7]]}
[null,1,"Fill in the blank cells below, based on information provided in the paper being assessed. You can either pick an option from the dropdown list or add the appropriate detail using the 'Add to list' button. ",null,null,{"$f":"IF(BA3=\"\",0,1)","v":1},null,null,null,null,null,null,null,null,"* All the text in RED are used for drop down list ,make changes with caution."]
[null,null,"Category",{"$f":"IF(AF3=\"\",0,1)","v":1},"MEW_plant",{"$f":"IF(E3=\"\",0,1)","v":1},"Citation No.",{"$f":"IF(ISERROR(FIND(\"-\",E3)),E3,LEFT(E3,FIND(\"-\",E3)-1))","v":"124.6"},null,"Taxonomic group",null,null,null,null,"Species",null,null,"Lifestage",null,null,"Exposure duration",null,null,"Measure of toxicity",null,null,"Toxicity endpoint",null,null,"Taxonomic group",null,null,"Phylum",null,null,"Class",null,null,"Media",null,null,"Temperature ",null,null,"Acute Or Chronic",null,null,"PH",null,null,"Salinity/Comdictivity"]
[null,null,"Paper and data unique identifier(eg. 1-1,10-150)",{"$f":"IF(AI3=\"\",0,1)","v":1},"124.6",{"$f":"IF(E4=\"\",0,1)","v":1},"Species (Scientific name)",null,null,"Phylum",null,null,null,null,"Aedes albopictus",12,{"$f":"IF(P3=0,\"\",INDEX(O3:O102,P3))","v":"Pavlova viridis"},"1 month",4,{"$f":"IF(S3=0,\"\",INDEX(R3:R102,S3))","v":"Not stated"},"11 hour",7,{"$f":"IF(V3=0,\"\",INDEX(U3:U102,V3))","v":"10 d"},"Cell yield - chlorophyll a",3,{"$f":"IF(Y3=0,\"\",INDEX(X3:X102,Y3))","v":"growth rate inhibition"},"Fish ",3,{"$f":"IF(AB3=0,\"\",INDEX(AA3:AA102,AB3))","v":"LOEC"},"Fish ",2,{"$f":"IF(AE3=0,\"\",INDEX(AD3:AD102,AE3))","v":"Microalga"},"Chlorophyta",3,{"$f":"IF(AH3=0,\"\",INDEX(AG3:AG102,AH3))","v":"Haptophyta"},"Bacillariophyceae",9,{"$f":"IF(AK3=0,\"\",INDEX(AJ3:AJ102,AK3))","v":"Pavlovophyceae"},"Artificial seawater",7,{"$f":"IF(AN3=0,\"\",INDEX(AM3:AM102,AN3))","v":"F/2 media"},"15°C",2,{"$f":"IF(AQ3=0,\"\",INDEX(AP3:AP102,AQ3))","v":"20 oC"},"Acute",2,{"$f":"IF(AT3=0,\"\",INDEX(AS3:AS102,AT3))","v":"Chronic"},"8 - 8.2",4,{"$f":"IF(AW3=0,\"\",INDEX(AV3:AV102,AW3))","v":"Not stated"},"150 uS/cm",6,{"$f":"IF(AZ3=0,\"\",INDEX(AY3:AY102,AZ3))","v":"20 ppt"}]
[null,null,"Citation",{"$f":"IF(AL3=\"\",0,1)","v":1},"Huang X, Wei L, Huang Z and Yan J (2014). Effect of high ferric ion concentrations on total lipids and lipid characteristics of Tetraselmis subcordiformis, Nannochloropsis oculata and Pavlova viridis. Journal of Applied Phycology, 26(1), 105-114. ",{"$f":"IF(H8=\"\",0,1)","v":1},"Lifestage",null,null,"Class",null,null,null,null,"Australian Bass",null,null,"1 year old",null,null,"13 days",null,null,"chlorophyll",null,null,"IC50",null,null,"Microalga",null,null,"Diatom",null,null,"Branchiopoda",null,null,"F/2 media without trace metals and without EDTA",null,null,"20 oC",null,null,"Chronic",null,null,"8.1 - 8.3",null,null,"28 ppt"]
[null,null,null,{"$f":"IF(AO3=\"\",0,1)","v":1},null,{"$f":"IF(AX3=\"\",0,1)","v":1},"Exposure duration",null,null,"Media",null,null,null,null,"Glenodinium halli",null,null,"N.A.",null,null,"4 d",null,null,"growth rate inhibition",null,null,"LOEC",null,null,"N.A.",null,null,"Haptophyta",null,null,"Chlorophyceae",null,null,"Freshwater",null,null,"25°C",null,null,"N.A.",null,null,"N.A.",null,null,"30 ppt"]
[null,null,null,{"$f":"IF(AR3=\"\",0,1)","v":1},null,{"$f":"IF(Q3=\"\",0,1)","v":1},"Measure of toxicity",null,null,"Temperature ",null,null,null,null,"Glenodinium splendens",null,null,"Not stated",null,null,"48 h",null,null,"LC50",null,null,"Maximum non-toxic level  (NTL)",null,null,null,null,null,"Harosa",null,null,"Dinophyceae",null,null,"Marinewater",null,null,"N.A.",null,null,null,null,null,"Not stated",null,null,"34 ppt"]
[null,null,null,{"$f":"IF(AU3=\"\",0,1)","v":1},null,{"$f":"IF(T3=\"\",0,1)","v":1},"Toxicity endpoint",null,null,"Acute Or Chronic ",null,null,null,null,"Gymnodinium splendens",null,null,null,null,null,"96 h",null,null,"N.A.",null,null,"Microalga",null,null,null,null,null,"Myzozoa",null,null,"N.A.",null,null,"N.A.",null,null,null,null,null,null,null,null,"PH11",null,null,"N.A."]
[null,null,null,null,null,{"$f":"IF(W3=\"\",0,1)","v":1},"Toxicity value","67000 ug/L",null,"PH",null,null,null,null,"Isochrysis galbana",null,null,null,null,null,"N.A.",null,null,"NOEC",null,null,"N.A.",null,null,null,null,null,"N.A.",null,null,"Prymnesiophyceae",null,null,"F/3 media",null,null,null,null,null,null,null,null,"PH7.0",null,null,"20 ppt"]
[null,2,"Select the appropriate answer option to each question. Comments can be added to the cells in column H.",null,null,{"$f":"IF(Z3=\"\",0,1)","v":1},null,null,null,"Salinity/Conductivity",null,null,null,null,"N.A.",null,null,null,null,null,"10 d",null,null,null,null,null,"NOEC",null,null,null,null,null,"Ochrophyta",null,null,"Prasinophyceae",null,null,"F/2 media"]
[null,"*","If the selected answer option does not work try clicking on any other cell first and then click back on the answer option again.",null,null,{"$f":"IF(AC3=\"\",0,1)","v":1},null,null,null,null,null,null,null,null,"Phytoplankton community",null,null,null,null,null,null,null,null,null,null,null,null,null,null,null,null,null,"Tracheophyta",null,null,"Ochrophyta"]
[null,"No.","Question","Marks Awarded","Answer Options","Option References","Scores","Answers",null,null,null,null,null,null,"Thalassiosira pseudonana",null,null,null,null,null,null,null,null,null,null,null,null,null,null,null,null,null,null,null,null,"Pavlovophyceae"]
[null,null,"Was the duration of the exposure stated (e.g. 48 or 96 h)?",10,null,1,{"$f":"IF(F15=0,0,INDEX($D12:$D13,F12,1))","v":10},null,null,null,null,null,null,null,"Tetraselmis subcordiformis"]
[null,1,null,0,null,null,null,null,null,null,null,null,null,null,"Nannochloropsis oculata"]
[null,null,null,null,null,null,null,null,null,null,null,null,null,null,"Pavlova viridis"]
[null,null,"Was the biological endpoint (e.g., immobilization or population growth) stated and defined (10 marks)? Award 5 marks if the biological endpoint is only stated.",10,null,1,{"$f":"IF(F15=0,0,INDEX($D15:$D17,F15,1))","v":10}]
[null,2,null,5]
[null,null,null,0]
[null,null,"Was the biological effect stated (e.g. LC or NOEC)?",5,null,2,{"$f":"IF(F18=0,0,INDEX($D18:$D19,F18,1))","v":0}]
[null,3,null,0]
[]
[null,4,"Was the biological effect quantified (e.g. 50% effect, 25% effect)? \nNote: The effect for NOEC and LOEC data must be quantified.",5,null,1,{"$f":"IF(F21=0,0,INDEX($D21:$D22,F21,1))","v":5},"multiple comparisons"]
[null,null,null,0]
[null,5,"Were appropriate controls (e.g. a no-toxicant control and/or solvent control) used?",5,null,2,{"$f":"IF(F23=0,0,INDEX($D23:$D24,F23,1))","v":0},"control had the standard Fe concentrations for the F/2 media"]
[null,null,null,0]
[]
[null,6,"Was each control and contaminant concentration at least duplicated?",5,null,1,{"$f":"IF(F26=0,0,INDEX($D26:$D27,F26,1))","v":5},"3 reps"]
[null,null,null,0]
[]
[null,7,"Were test acceptability criteria stated (e.g. mortality in controls must not exceed a certain percentage) (5 marks)?\nOR Were test acceptability criteria inferred (e.g. test method used [USEPA, OECD, ASTM etc.]) (award 2 marks). \nNote: Data that fail the acceptability criteria are automatically deemed to be of unacceptable quality and must not be used. ",5,null,3,{"$f":"IF(F29=0,0,INDEX($D29:$D31,F29,1))","v":0}]
[null,null,null,2]
[null,null,null,0]
[null,8,"Were the characteristics of the test organism (e.g. length, mass, age) stated?",5,null,2,{"$f":"IF(F32=0,0,INDEX($D32:$D34,F32,1))","v":0}]
[null,null,null,0]
[]
[null,9,"Was the type of test media used stated?",5,null,1,{"$f":"IF(F35=0,0,INDEX($D35:$D37,F35,1))","v":5},"F/2 media"]
[null,null,null,0]
[]
[null,null,"Was the type of exposure (e.g. static, flow through) stated? ",4,null,2,{"$f":"IF(F38=0,0,INDEX($D38:$D40,F38,1))","v":0}]
[null,10,null,0]
[]
[null,null,"Were the contaminant concentrations measured at the beginning and end of the exposure (4 marks)? Award 2 marks if they were measured only once during the test.\nNote: If the concentrations were not measured then automatically the data cannot be high quality. ",4,null,3,{"$f":"IF(F41=0,0,INDEX($D41:$D43,F41,1))","v":0}]
[null,11,null,2]
[null,null,null,0]
[null,null,"Were parallel reference toxicant toxicity tests conducted?",4,null,2,{"$f":"IF(F44=0,0,INDEX($D44:$D46,F44,1))","v":0}]
[null,12,null,0]
[]
[null,null,"Was there a concentration–response relationship either observable or stated?",4,null,1,{"$f":"IF(F47=0,0,INDEX($D47:$D49,F47,1))","v":4}]
[null,13,null,0]
[]
[null,null,"Was an appropriate statistical method or model used to determine the toxicity?\nNote: They should be accepted by a recognised national or international regulatory body (e.g. USEPA, OECD, ASTM). ",4,null,1,{"$f":"IF(F50=0,0,INDEX($D50:$D52,F50,1))","v":4},"ANOVA with Duncan's (Dunnett's ) pairwise comparisons"]
[null,14,null,0]
[]
[null,15,"For LC/EC/BEC data was an estimate of variability provided? \nOR \nFor NO EC/LOEC data was the significance level 0.05 or less?  \n\n",4,null,1,{"$f":"IF(F53=0,0,INDEX($D53:$D55,F53,1))","v":4}]
[null,null,null,0]
[]
[null,16,"Were the following parameters measured and stated? (3 marks if measured and stated, 1 mark if just measured)."]
[null,16.100000000000001,"Conductivity/Salinity",3,null,2,{"$f":"IF(F57=0,0,INDEX(D57:D59,F57,1))","v":1}]
[null,null,null,1]
[null,null,null,0]
[null,null,null,3,null,3,{"$f":"IF(F60=0,0,INDEX($D60:$D62,F60,1))","v":0}]
[null,16.2,"pH ",1]
[null,null,null,0]
[null,null,"Was the temperature measured and stated (3 marks)? Award 1 mark if the temperature was measured but not stated or if only the temperature settings of the room or chamber are stated.\n",3,null,2,{"$f":"IF(F63=0,0,INDEX($D63:$D65,F63,1))","v":1}]
[null,17,null,1]
[null,null,null,0]
[null,null,"Were test solutions, blanks and/or controls tested for contamination OR were analytical reagent grade chemicals used or the highest possible purity chemicals used for the experiment? (3 marks).",3,null,2,{"$f":"IF(F66=0,0,INDEX($D66:$D67,F66,1))","v":0}]
[null,18,null,0]
[]
[null,null,null,null,null,null,null,null,{"$f":"(COUNTIF(F12:F67,\"=0\"))+COUNTIF(F1:F10,\"=0\")+COUNTIF(D2:D7,\"=0\")","v":0}]
[]
[]
[null,null,"Total score",null,null,null,{"$f":"IF(SUM(G12:G66)=0,\"\",SUM(G12:G66))","v":49}]
[null,null,"Total Max. possible score for the various types of data and contaminants ",null,{"$f":"D12+D15+D18+D21+D23+D26+D29+D32+D35+D38+D41+D44+D47+D50+D53+D60+D63+D66+D57","v":91}]
[null,null,"Quality Score",null,{"$f":"\"= [Total score / Total possible score] * 100 = \"","v":"= [Total score / Total possible score] * 100 = "},null,{"$f":"IF(ISERROR(G72/E73),#N/A,G72/E73)","v":0.53846153846153844},{"$f":"IF(F41=3,\"The highest possible grade for this datum is acceptable.\",\"\")","v":"The highest possible grade for this datum is acceptable."}]
[]
[null,null,"H = high quality                           Quality score ≥ 80%    "]
[null,null,"A = acceptable quality         > 50% Quality score < 80%  "]
[null,null,"U = unacceptable quality              Quality score ≤ 50%"]
[]
[3,null,"Click the 'Save & Update' button to save and export the answers to the 'All results' worksheet. "]
[null,null,"Select the 'Reset Answers' button if you wish to clear all answers."]

{"sheet":"MEW plant_WS","index":8,"n_rows":68,"n_cols":23,"rows_kept":68,"cut":false,"hidden":false,"merged":[]}
[]
["Question No.",1,2,3,4,5,6,7,8,9,10,11,12,13,14,15,16.100000000000001,16.3,17,18,"Total Score","Quality Score","Comment "]
["Short Questions","Duration of the exposure ","Biological endpoint","Biological effect stated or not","Biological effect quantified or not","Appropriate controls","Control & contaminant concentration","Test acceptability criteria","Characteristics of the test organism"," Type of test media","Type of exposure","Contaminant concentrations","Parallel reference toxicant toxicity tests","Concentration–response relationship","Determine the toxicity","NOEC/LOEC or LC/EC/BEC","Conductivity/Salinity","PH","Temperature","Grade or purity"]
["Marks Awarded ","10 or 0","10,5 or 0","5 or 0 ","5 or 0 ","5 or 0 ","5 or 0 ","5 or 0 ","5 or 0 ","5 or 0 ","4 or 0","4 or 2 or 0","4 or 2","4 or 2","4 or 2","4 or 2","3 or 1 or 0","3 or 1 or 0","3 or 0","3 or 0 "]
["Max. Possible Score",10,10,5,5,5,5,5,5,5,4,4,4,4,4,4,3,3,3,3,{"$f":"SUM(B5:T5)","v":91}]
["Category","MEW_plant","Paper and data unique identifier(eg. 1-1,10-150)","105-1"]
["Scores",10,5,0,0,5,5,0,0,5,0,2,0,4,0,0,0,0,0,0,39,0.42857142857142855,""]
["Answers","","","","","","","","","","","","","Only one Fe concentration of 0.1 ugL","","","","","",""]
["Category","MEW_plant","Paper and data unique identifier(eg. 1-1,10-150)","121-1"]
["Scores",10,5,5,5,0,0,0,0,5,4,0,0,0,0,0,1,0,0,0,37,0.40659340659340659,"The highest possible grade for this datum is acceptable."]
["Answers","","","Non toxic level (NTL)","The level of maximum metal addition at which the increase of relative chlorophylla of the test population was significantly greater than 65 percent of the increase in the control population during the 48-hour test periol. Since the results of more than one experiment are included in these determinations this value can be either higher , lower or the same as the MTL","not stated","not stated","This is an EPA report","","","Chemostat flow  through","","","","","","","","",""]
["Category","MEW_plant","Paper and data unique identifier(eg. 1-1,10-150)","121-2"]
["Scores",10,5,5,5,0,0,0,0,5,4,0,0,0,0,0,1,0,0,0,37,0.40659340659340659,"The highest possible grade for this datum is acceptable."]
["Answers","","","Non toxic level (NTL)","The level of maximum metal addition at which the increase of relative chlorophylla of the test population was significantly greater than 65 percent of the increase in the control population during the 48-hour test periol. Since the results of more than one experiment are included in these determinations this value can be either higher , lower or the same as the MTL","not stated","not stated","This is an EPA report","","","Chemostat flow  through","","","","","","","","",""]
["Category","MEW_plant","Paper and data unique identifier(eg. 1-1,10-150)","121-3"]
["Scores",10,5,5,5,0,0,0,0,5,4,0,0,0,0,0,1,0,0,0,37,0.40659340659340659,"The highest possible grade for this datum is acceptable."]
["Answers","","","Non toxic level (NTL)","The level of maximum metal addition at which the increase of relative chlorophylla of the test population was significantly greater than 65 percent of the increase in the control population during the 48-hour test periol. Since the results of more than one experiment are included in these determinations this value can be either higher , lower or the same as the MTL","not stated","not stated","This is an EPA report","","","Chemostat flow  through","","","","","","","","",""]
["Category","MEW_plant","Paper and data unique identifier(eg. 1-1,10-150)","121-4"]
["Scores",10,5,5,5,0,0,0,0,5,4,0,0,0,0,0,1,0,0,0,37,0.40659340659340659,"The highest possible grade for this datum is acceptable."]
["Answers","","","Non toxic level (NTL)","The level of maximum metal addition at which the increase of relative chlorophylla of the test population was significantly greater than 65 percent of the increase in the control population during the 48-hour test periol. Since the results of more than one experiment are included in these determinations this value can be either higher , lower or the same as the MTL","not stated","not stated","This is an EPA report","","","Chemostat flow  through","","","","","","","","",""]
["Category","MEW_plant","Paper and data unique identifier(eg. 1-1,10-150)","121-5"]
["Scores",10,5,5,5,0,0,0,0,5,4,0,0,0,0,0,1,0,0,0,37,0.40659340659340659,"The highest possible grade for this datum is acceptable."]
["Answers","","","Non toxic level (NTL)","The level of maximum metal addition at which the increase of relative chlorophylla of the test population was significantly greater than 65 percent of the increase in the control population during the 48-hour test periol. Since the results of more than one experiment are included in these determinations this value can be either higher , lower or the same as the MTL","not stated","not stated","This is an EPA report","","","Chemostat flow  through","","","","","","","","",""]
["Category","MEW_plant","Paper and data unique identifier(eg. 1-1,10-150)","121-6"]
["Scores",10,5,5,5,0,0,0,0,5,4,0,0,0,0,0,1,0,0,0,37,0.40659340659340659,"The highest possible grade for this datum is acceptable."]
["Answers","","","Non toxic level (NTL)","The level of maximum metal addition at which the increase of relative chlorophylla of the test population was significantly greater than 65 percent of the increase in the control population during the 48-hour test periol. Since the results of more than one experiment are included in these determinations this value can be either higher , lower or the same as the MTL","not stated","not stated","This is an EPA report","","","Chemostat flow  through","","","","","","","","",""]
["Category","MEW_plant","Paper and data unique identifier(eg. 1-1,10-150)","121-7"]
["Scores",10,5,5,5,0,0,0,0,5,4,0,0,0,0,0,1,0,0,0,37,0.40659340659340659,"The highest possible grade for this datum is acceptable."]
["Answers","","","Non toxic level (NTL)","The level of maximum metal addition at which the increase of relative chlorophylla of the test population was significantly greater than 65 percent of the increase in the control population during the 48-hour test periol. Since the results of more than one experiment are included in these determinations this value can be either higher , lower or the same as the MTL","not stated","not stated","This is an EPA report","","","Chemostat flow  through","","","","","","","","",""]
["Category","MEW_plant","Paper and data unique identifier(eg. 1-1,10-150)","121-8"]
["Scores",10,5,5,5,0,0,0,0,5,4,0,0,0,0,0,1,0,0,0,37,0.40659340659340659,"The highest possible grade for this datum is acceptable."]
["Answers","","","Non toxic level (NTL)","The level of maximum metal addition at which the increase of relative chlorophylla of the test population was significantly greater than 65 percent of the increase in the control population during the 48-hour test periol. Since the results of more than one experiment are included in these determinations this value can be either higher , lower or the same as the MTL","not stated","not stated","This is an EPA report","","","Chemostat flow  through","","","","","","","","",""]
["Category","MEW_plant","Paper and data unique identifier(eg. 1-1,10-150)","122-1"]
["Scores",10,5,5,0,0,5,0,0,5,0,2,0,4,4,0,1,0,0,0,48,0.52747252747252749,""]
["Answers","","","Incorrectly defined LOEC as NOEC","","Not stated","5 reps","","","F/2 media without trace metals and without EDTA","","Tested Fe2+ and Fe3+ chloride salts separately but did not measure speciation i.e. only total Fe. No mention of filtering sample","","Used this to estimate endpoints","No method for IC50 - this was estimated from Figure 5 by me and NOEC and LOEC were incorrectly defined","","","","","Background Fe in seawater was measured, not quality of FeCl2 or FeCl3 was given"]
["Category","MEW_plant","Paper and data unique identifier(eg. 1-1,10-150)","122-2"]
["Scores",10,5,5,0,0,5,0,0,5,0,2,0,4,4,0,1,0,0,0,48,0.52747252747252749,""]
["Answers","","","Incorrectly defined LOEC as NOEC","","Not stated","5 reps","","","F/2 media without trace metals and without EDTA","","Tested Fe2+ and Fe3+ chloride salts separately but did not measure speciation i.e. only total Fe. No mention of filtering sample","","Used this to estimate endpoints","No method for IC50 - this was estimated from Figure 5 by me and NOEC and LOEC were incorrectly defined","","","","","Background Fe in seawater was measured, not quality of FeCl2 or FeCl3 was given"]
["Category","MEW_plant","Paper and data unique identifier(eg. 1-1,10-150)","122-3"]
["Scores",10,5,5,0,0,5,0,0,5,0,2,0,4,4,0,1,0,0,0,48,0.52747252747252749,""]
["Answers","","","Incorrectly defined LOEC as NOEC","","Not stated","5 reps","","","F/2 media without trace metals and without EDTA","","Tested Fe2+ and Fe3+ chloride salts separately but did not measure speciation i.e. only total Fe. No mention of filtering sample","","Used this to estimate endpoints","No method for IC50 - this was estimated from Figure 5 by me and NOEC and LOEC were incorrectly defined","","","","","Background Fe in seawater was measured, not quality of FeCl2 or FeCl3 was given"]
["Category","MEW_plant","Paper and data unique identifier(eg. 1-1,10-150)","122-4"]
["Scores",10,5,5,0,0,5,0,0,5,0,2,0,4,4,0,1,0,0,0,48,0.52747252747252749,""]
["Answers","","","Incorrectly defined LOEC as NOEC","","Not stated","5 reps","","","F/2 media without trace metals and without EDTA","","Tested Fe2+ and Fe3+ chloride salts separately but did not measure speciation i.e. only total Fe. No mention of filtering sample","","Used this to estimate endpoints","No method for IC50 - this was estimated from Figure 5 by me and NOEC and LOEC were incorrectly defined","","","","","Background Fe in seawater was measured, not quality of FeCl2 or FeCl3 was given"]
["Category","MEW_plant","Paper and data unique identifier(eg. 1-1,10-150)","122-5"]
["Scores",10,5,5,0,0,5,0,0,5,0,2,0,4,4,0,1,0,0,0,48,0.52747252747252749,""]
["Answers","","","Incorrectly defined LOEC as NOEC","","Not stated","5 reps","","","F/2 media without trace metals and without EDTA","","Tested Fe2+ and Fe3+ chloride salts separately but did not measure speciation i.e. only total Fe. No mention of filtering sample","","Used this to estimate endpoints","No method for IC50 - this was estimated from Figure 5 by me and NOEC and LOEC were incorrectly defined","","","","","Background Fe in seawater was measured, not quality of FeCl2 or FeCl3 was given"]
["Category","MEW_plant","Paper and data unique identifier(eg. 1-1,10-150)","122-6"]
["Scores",10,5,5,0,0,5,0,0,5,0,2,0,4,4,0,1,0,0,0,48,0.52747252747252749,""]
["Answers","","","Incorrectly defined LOEC as NOEC","","Not stated","5 reps","","","F/2 media without trace metals and without EDTA","","Tested Fe2+ and Fe3+ chloride salts separately but did not measure speciation i.e. only total Fe. No mention of filtering sample","","Used this to estimate endpoints","No method for IC50 - this was estimated from Figure 5 by me and NOEC and LOEC were incorrectly defined","","","","","Background Fe in seawater was measured, not quality of FeCl2 or FeCl3 was given"]
["Category","MEW_plant","Paper and data unique identifier(eg. 1-1,10-150)","124.1"]
["Scores",10,10,0,5,0,5,0,0,5,0,0,0,4,4,4,1,0,0,0,49,0.53846153846153844,"The highest possible grade for this datum is acceptable."]
["Answers","","","","multiple comparisons","control had the standard Fe concentrations for the F/2 media","3 reps","","","F/2 media","","","","","ANOVA with Duncan's (Dunnett's ) pairwise comparisons","","","","",""]
["Category","MEW_plant","Paper and data unique identifier(eg. 1-1,10-150)","124.2"]
["Scores",10,10,0,5,0,5,0,0,5,0,0,0,4,4,4,1,0,0,0,49,0.53846153846153844,"The highest possible grade for this datum is acceptable."]
["Answers","","","","multiple comparisons","control had the standard Fe concentrations for the F/2 media","3 reps","","","F/2 media","","","","","ANOVA with Duncan's (Dunnett's ) pairwise comparisons","","","","",""]
["Category","MEW_plant","Paper and data unique identifier(eg. 1-1,10-150)","124.3"]
["Scores",10,10,0,5,0,5,0,0,5,0,0,0,4,4,4,1,0,0,0,49,0.53846153846153844,"The highest possible grade for this datum is acceptable."]
["Answers","","","","multiple comparisons","control had the standard Fe concentrations for the F/2 media","3 reps","","","F/2 media","","","","","ANOVA with Duncan's (Dunnett's ) pairwise comparisons","","","","",""]
["Category","MEW_plant","Paper and data unique identifier(eg. 1-1,10-150)","124.4"]
["Scores",10,10,0,5,0,5,0,0,5,0,0,0,4,4,4,1,0,0,0,49,0.53846153846153844,"The highest possible grade for this datum is acceptable."]
["Answers","","","","multiple comparisons","control had the standard Fe concentrations for the F/2 media","3 reps","","","F/2 media","","","","","ANOVA with Duncan's (Dunnett's ) pairwise comparisons","","","","",""]
["Category","MEW_plant","Paper and data unique identifier(eg. 1-1,10-150)","124.5"]
["Scores",10,10,0,5,0,5,0,0,5,0,0,0,4,4,4,1,0,0,0,49,0.53846153846153844,"The highest possible grade for this datum is acceptable."]
["Answers","","","","multiple comparisons","control had the standard Fe concentrations for the F/2 media","3 reps","","","F/2 media","","","","","ANOVA with Duncan's (Dunnett's ) pairwise comparisons","","","","",""]
["Category","MEW_plant","Paper and data unique identifier(eg. 1-1,10-150)","124.6"]
["Scores",10,10,0,5,0,5,0,0,5,0,0,0,4,4,4,1,0,0,0,49,0.53846153846153844,"The highest possible grade for this datum is acceptable."]
["Answers","","","","multiple comparisons","control had the standard Fe concentrations for the F/2 media","3 reps","","","F/2 media","","","","","ANOVA with Duncan's (Dunnett's ) pairwise comparisons","","","","",""]